Body_Code,Body_Name,Service,Posting Date,GL Code,GL Code Desc,Doc Number,Doc Net Amount,Supplier Name
http://statistics.data.gov.uk/id/local-authority/38,Oxfordshire County Council,SEN TRANSPORT,18/03/2024,4330,Transport to School Activities,3111636776,880.00,001 Alpha Cars Ltd
http://statistics.data.gov.uk/id/local-authority/38,Oxfordshire County Council,SEN TRANSPORT,18/03/2024,4330,Transport to School Activities,3111636779,928.00,001 Alpha Cars Ltd
http://statistics.data.gov.uk/id/local-authority/38,Oxfordshire County Council,MEADOWBROOK TRANSPT,18/03/2024,4330,Transport to School Activities,3111636790,981.00,001 Alpha Cars Ltd
http://statistics.data.gov.uk/id/local-authority/38,Oxfordshire County Council,SEN TRANSPORT,18/03/2024,4330,Transport to School Activities,3111636778,"1,264.00",001 Alpha Cars Ltd
http://statistics.data.gov.uk/id/local-authority/38,Oxfordshire County Council,SEN TRANSPORT,18/03/2024,4330,Transport to School Activities,3111636777,"2,368.00",001 Alpha Cars Ltd
http://statistics.data.gov.uk/id/local-authority/38,Oxfordshire County Council,MEADOWBROOK TRANSPT,18/03/2024,4330,Transport to School Activities,3111636791,"2,497.00",001 Alpha Cars Ltd
http://statistics.data.gov.uk/id/local-authority/38,Oxfordshire County Council,Community Support Service Oxford,18/03/2024,5227,Other Transport Arrangements,3111636734,500.00,007 Taxi Limited
http://statistics.data.gov.uk/id/local-authority/38,Oxfordshire County Council,SEN TRANSPORT,18/03/2024,4330,Transport to School Activities,3111636784,"1,248.00",007 Taxi Limited
http://statistics.data.gov.uk/id/local-authority/38,Oxfordshire County Council,Support at Home U65 Learning Disability,18/03/2024,5227,Other Transport Arrangements,3111636733,"2,112.00",007 Taxi Limited
http://statistics.data.gov.uk/id/local-authority/38,Oxfordshire County Council,Family Solutions Plus Non-staff - Centra,18/03/2024,5227,Other Transport Arrangements,3111636731,"3,090.00",007 Taxi Limited
http://statistics.data.gov.uk/id/local-authority/38,Oxfordshire County Council,SEN TRANSPORT,18/03/2024,5227,Other Transport Arrangements,3111636789,"3,936.00",007 Taxi Limited
http://statistics.data.gov.uk/id/local-authority/38,Oxfordshire County Council,SEN TRANSPORT,18/03/2024,5227,Other Transport Arrangements,3111636785,"4,800.00",007 Taxi Limited
http://statistics.data.gov.uk/id/local-authority/38,Oxfordshire County Council,SEN TRANSPORT,18/03/2024,5227,Other Transport Arrangements,3111636786,"5,120.00",007 Taxi Limited
http://statistics.data.gov.uk/id/local-authority/38,Oxfordshire County Council,Support at Home 65+ Physical Support,20/03/2024,5689,,3111638194,830.07,1 to 1 Care
http://statistics.data.gov.uk/id/local-authority/38,Oxfordshire County Council,Support at Home 65+ Mental Health,20/03/2024,5693,,3111638193,"1,520.00",1 to 1 Care
http://statistics.data.gov.uk/id/local-authority/38,Oxfordshire County Council,TRADING STANDARDS,21/03/2024,5251,Legal Costs,2201211956,900.00,12CP Barristers
http://statistics.data.gov.uk/id/local-authority/38,Oxfordshire County Council,SCH CAUSING CONCERN,20/03/2024,5380,"Author, Speaker and Lecturer Fees",2201211342,"3,600.00",1440 Leadership Services Ltd
http://statistics.data.gov.uk/id/local-authority/38,Oxfordshire County Council,Support at Home 65+ Memory & Cognition,20/03/2024,5693,,3111638192,"1,167.80",1st Homecare (Oxford) Ltd
http://statistics.data.gov.uk/id/local-authority/38,Oxfordshire County Council,Support at Home 65+ Physical Support,26/03/2024,5699,,3111641007,"1,346.03",1st Homecare (Oxford) Ltd
http://statistics.data.gov.uk/id/local-authority/38,Oxfordshire County Council,Care Homes - Under 65 MH - OBC Contract,08/03/2024,5686,,3111628849,798.93,2 Care
http://statistics.data.gov.uk/id/local-authority/38,Oxfordshire County Council,Care Homes - Under 65 MH - OBC Contract,08/03/2024,5686,,3111628848,838.74,2 Care
http://statistics.data.gov.uk/id/local-authority/38,Oxfordshire County Council,Care Homes - Under 65 MH - OBC Contract,08/03/2024,5686,,3111628845,"1,359.15",2 Care
http://statistics.data.gov.uk/id/local-authority/38,Oxfordshire County Council,Care Homes - Under 65 MH - OBC Contract,08/03/2024,5686,,3111628850,"1,359.15",2 Care
http://statistics.data.gov.uk/id/local-authority/38,Oxfordshire County Council,Care Homes - Under 65 MH - OBC Contract,08/03/2024,5686,,3111628846,"1,372.52",2 Care
http://statistics.data.gov.uk/id/local-authority/38,Oxfordshire County Council,Care Homes - Under 65 Mental Health,08/03/2024,5686,,3111628847,"1,603.67",2 Care
http://statistics.data.gov.uk/id/local-authority/38,Oxfordshire County Council,Care Homes - Under 65 MH - OBC Contract,12/03/2024,5686,,3111634797,"4,462.23",2 Care
http://statistics.data.gov.uk/id/local-authority/38,Oxfordshire County Council,Care Homes - Under 65 MH - OBC Contract,12/03/2024,5686,,3111634800,"4,462.23",2 Care
http://statistics.data.gov.uk/id/local-authority/38,Oxfordshire County Council,Care Homes - Under 65 MH - OBC Contract,12/03/2024,5686,,3111634798,"4,506.82",2 Care
http://statistics.data.gov.uk/id/local-authority/38,Oxfordshire County Council,Care Homes - Under 65 MH - OBC Contract,08/03/2024,5686,,3111628851,"5,063.04",2 Care
http://statistics.data.gov.uk/id/local-authority/38,Oxfordshire County Council,Care Homes - Under 65 Mental Health,12/03/2024,5686,,3111634799,"5,266.32",2 Care
http://statistics.data.gov.uk/id/local-authority/38,Oxfordshire County Council,Support at Home 65+ Physical Support,04/03/2024,5227,Other Transport Arrangements,3111626723,"3,360.00",24 Seven Cars (Oxford) Ltd
http://statistics.data.gov.uk/id/local-authority/38,Oxfordshire County Council,SEN TRANSPORT,07/03/2024,4330,Transport to School Activities,3111628548,"5,280.00",24 Seven Cars (Oxford) Ltd
http://statistics.data.gov.uk/id/local-authority/38,Oxfordshire County Council,SEN TRANSPORT,20/03/2024,4330,Transport to School Activities,3111638544,773.50,24/7 LTD
http://statistics.data.gov.uk/id/local-authority/38,Oxfordshire County Council,MAINSTREAM-PRIMARY,20/03/2024,4330,Transport to School Activities,3111638552,"1,248.00",24/7 LTD
http://statistics.data.gov.uk/id/local-authority/38,Oxfordshire County Council,MAINSTREAM-SECONDARY,20/03/2024,4330,Transport to School Activities,3111638562,"1,280.00",24/7 LTD
http://statistics.data.gov.uk/id/local-authority/38,Oxfordshire County Council,MAINSTREAM-PRIMARY,20/03/2024,4330,Transport to School Activities,3111638549,"1,360.00",24/7 LTD
http://statistics.data.gov.uk/id/local-authority/38,Oxfordshire County Council,MAINSTREAM-SECONDARY,20/03/2024,4330,Transport to School Activities,3111638527,"1,374.40",24/7 LTD
http://statistics.data.gov.uk/id/local-authority/38,Oxfordshire County Council,MAINSTREAM-SECONDARY,20/03/2024,4330,Transport to School Activities,3111638551,"1,408.00",24/7 LTD
http://statistics.data.gov.uk/id/local-authority/38,Oxfordshire County Council,MAINSTREAM-SECONDARY,20/03/2024,4330,Transport to School Activities,3111638563,"1,440.00",24/7 LTD
http://statistics.data.gov.uk/id/local-authority/38,Oxfordshire County Council,MAINSTREAM-PRIMARY,20/03/2024,4330,Transport to School Activities,3111638548,"1,472.00",24/7 LTD
http://statistics.data.gov.uk/id/local-authority/38,Oxfordshire County Council,MAINSTREAM-SECONDARY,20/03/2024,4330,Transport to School Activities,3111638553,"1,488.00",24/7 LTD
http://statistics.data.gov.uk/id/local-authority/38,Oxfordshire County Council,SEN TRANSPORT,20/03/2024,4330,Transport to School Activities,3111638561,"1,504.00",24/7 LTD
http://statistics.data.gov.uk/id/local-authority/38,Oxfordshire County Council,MAINSTREAM-SECONDARY,20/03/2024,4330,Transport to School Activities,3111638524,"1,511.36",24/7 LTD
http://statistics.data.gov.uk/id/local-authority/38,Oxfordshire County Council,MAINSTREAM-SECONDARY,20/03/2024,4330,Transport to School Activities,3111638560,"1,536.00",24/7 LTD
http://statistics.data.gov.uk/id/local-authority/38,Oxfordshire County Council,MAINSTREAM-SECONDARY,20/03/2024,4330,Transport to School Activities,3111638554,"1,568.00",24/7 LTD
http://statistics.data.gov.uk/id/local-authority/38,Oxfordshire County Council,MAINSTREAM-SECONDARY,20/03/2024,4330,Transport to School Activities,3111638556,"1,576.00",24/7 LTD
http://statistics.data.gov.uk/id/local-authority/38,Oxfordshire County Council,SEN TRANSPORT,20/03/2024,4330,Transport to School Activities,3111638546,"1,664.00",24/7 LTD
http://statistics.data.gov.uk/id/local-authority/38,Oxfordshire County Council,MAINSTREAM-SECONDARY,20/03/2024,4330,Transport to School Activities,3111638555,"1,686.00",24/7 LTD
http://statistics.data.gov.uk/id/local-authority/38,Oxfordshire County Council,SEN TRANSPORT,20/03/2024,4330,Transport to School Activities,3111638550,"1,696.00",24/7 LTD
http://statistics.data.gov.uk/id/local-authority/38,Oxfordshire County Council,SEN TRANSPORT,20/03/2024,4330,Transport to School Activities,3111638541,"1,712.00",24/7 LTD
http://statistics.data.gov.uk/id/local-authority/38,Oxfordshire County Council,MAINSTREAM-SECONDARY,20/03/2024,4330,Transport to School Activities,3111638523,"1,755.52",24/7 LTD
http://statistics.data.gov.uk/id/local-authority/38,Oxfordshire County Council,SEN TRANSPORT,20/03/2024,4330,Transport to School Activities,3111638557,"1,804.80",24/7 LTD
http://statistics.data.gov.uk/id/local-authority/38,Oxfordshire County Council,MAINSTREAM-PRIMARY,20/03/2024,4330,Transport to School Activities,3111638559,"1,840.00",24/7 LTD
http://statistics.data.gov.uk/id/local-authority/38,Oxfordshire County Council,SEN TRANSPORT,20/03/2024,4330,Transport to School Activities,3111638529,"1,900.00",24/7 LTD
http://statistics.data.gov.uk/id/local-authority/38,Oxfordshire County Council,MAINSTREAM-SECONDARY,20/03/2024,4330,Transport to School Activities,3111638558,"1,984.00",24/7 LTD
http://statistics.data.gov.uk/id/local-authority/38,Oxfordshire County Council,SEN TRANSPORT,20/03/2024,4330,Transport to School Activities,3111638525,"1,992.00",24/7 LTD
http://statistics.data.gov.uk/id/local-authority/38,Oxfordshire County Council,MAINSTREAM-SECONDARY,20/03/2024,4330,Transport to School Activities,3111638545,"2,000.00",24/7 LTD
http://statistics.data.gov.uk/id/local-authority/38,Oxfordshire County Council,MAINSTREAM-PRIMARY,20/03/2024,4330,Transport to School Activities,3111638530,"2,058.88",24/7 LTD
http://statistics.data.gov.uk/id/local-authority/38,Oxfordshire County Council,SEN TRANSPORT,20/03/2024,4330,Transport to School Activities,3111638532,"2,080.00",24/7 LTD
http://statistics.data.gov.uk/id/local-authority/38,Oxfordshire County Council,SEN TRANSPORT,20/03/2024,5227,Other Transport Arrangements,3111638526,"2,128.00",24/7 LTD
http://statistics.data.gov.uk/id/local-authority/38,Oxfordshire County Council,SEN TRANSPORT,20/03/2024,5227,Other Transport Arrangements,3111638537,"2,325.60",24/7 LTD
http://statistics.data.gov.uk/id/local-authority/38,Oxfordshire County Council,SEN TRANSPORT,20/03/2024,4330,Transport to School Activities,3111638536,"2,369.92",24/7 LTD
http://statistics.data.gov.uk/id/local-authority/38,Oxfordshire County Council,SEN TRANSPORT,20/03/2024,5227,Other Transport Arrangements,3111638547,"2,432.00",24/7 LTD
http://statistics.data.gov.uk/id/local-authority/38,Oxfordshire County Council,SEN TRANSPORT,20/03/2024,5227,Other Transport Arrangements,3111638535,"2,490.00",24/7 LTD
http://statistics.data.gov.uk/id/local-authority/38,Oxfordshire County Council,MAINSTREAM-SECONDARY,20/03/2024,4330,Transport to School Activities,3111638542,"2,640.00",24/7 LTD
http://statistics.data.gov.uk/id/local-authority/38,Oxfordshire County Council,SEN TRANSPORT,20/03/2024,5227,Other Transport Arrangements,3111638539,"2,644.16",24/7 LTD
http://statistics.data.gov.uk/id/local-authority/38,Oxfordshire County Council,Support at Home U65 Learning Disability,27/03/2024,5227,Other Transport Arrangements,3111642927,"2,708.40",24/7 LTD
http://statistics.data.gov.uk/id/local-authority/38,Oxfordshire County Council,SEN TRANSPORT,20/03/2024,5227,Other Transport Arrangements,3111638538,"2,960.00",24/7 LTD
http://statistics.data.gov.uk/id/local-authority/38,Oxfordshire County Council,SEN TRANSPORT,20/03/2024,5227,Other Transport Arrangements,3111638543,"3,008.00",24/7 LTD
http://statistics.data.gov.uk/id/local-authority/38,Oxfordshire County Council,SEN TRANSPORT,20/03/2024,4330,Transport to School Activities,3111638531,"3,130.56",24/7 LTD
http://statistics.data.gov.uk/id/local-authority/38,Oxfordshire County Council,SEN TRANSPORT,20/03/2024,5227,Other Transport Arrangements,3111638533,"3,136.00",24/7 LTD
http://statistics.data.gov.uk/id/local-authority/38,Oxfordshire County Council,SEN TRANSPORT,20/03/2024,5227,Other Transport Arrangements,3111638534,"3,191.36",24/7 LTD
http://statistics.data.gov.uk/id/local-authority/38,Oxfordshire County Council,MAINSTREAM-SECONDARY,20/03/2024,4330,Transport to School Activities,3111638540,"3,455.36",24/7 LTD
http://statistics.data.gov.uk/id/local-authority/38,Oxfordshire County Council,SEN TRANSPORT,20/03/2024,5227,Other Transport Arrangements,3111638528,"3,750.00",24/7 LTD
http://statistics.data.gov.uk/id/local-authority/38,Oxfordshire County Council,Support at Home 65+ Physical Support,20/03/2024,5693,,3111638195,"1,887.23",247 HOME CARE LTD
http://statistics.data.gov.uk/id/local-authority/38,Oxfordshire County Council,Support at Home 65+ Memory & Cognition,20/03/2024,5693,,3111638197,"3,060.33",247 HOME CARE LTD
http://statistics.data.gov.uk/id/local-authority/38,Oxfordshire County Council,CONTRACEPTION,04/03/2024,4933,,3111627038,"1,428.00",28 Beaumont Street
http://statistics.data.gov.uk/id/local-authority/38,Oxfordshire County Council,Swindon Adoption Support Fund,28/03/2024,4861,Hired and Contracted Services,2201215101,665.00,2PIP Theraputic Services
http://statistics.data.gov.uk/id/local-authority/38,Oxfordshire County Council,Swindon Adoption Support Fund,28/03/2024,4861,Hired and Contracted Services,2201215103,760.00,2PIP Theraputic Services
http://statistics.data.gov.uk/id/local-authority/38,Oxfordshire County Council,Swindon Adoption Support Fund,28/03/2024,4861,Hired and Contracted Services,2201215102,950.00,2PIP Theraputic Services
http://statistics.data.gov.uk/id/local-authority/38,Oxfordshire County Council,Swindon Adoption Support Fund,04/03/2024,4861,Hired and Contracted Services,2201204714,"1,140.00",2PIP Theraputic Services
http://statistics.data.gov.uk/id/local-authority/38,Oxfordshire County Council,Swindon Adoption Support Fund,25/03/2024,4861,Hired and Contracted Services,2201212953,"1,140.00",2PIP Theraputic Services
http://statistics.data.gov.uk/id/local-authority/38,Oxfordshire County Council,Swindon Adoption Support Fund,26/03/2024,4861,Hired and Contracted Services,2201213632,"1,330.00",2PIP Theraputic Services
http://statistics.data.gov.uk/id/local-authority/38,Oxfordshire County Council,Swindon Adoption Support Fund,25/03/2024,4861,Hired and Contracted Services,2201212923,"1,425.00",2PIP Theraputic Services
http://statistics.data.gov.uk/id/local-authority/38,Oxfordshire County Council,Swindon Adoption Support Fund,28/03/2024,4861,Hired and Contracted Services,2201215100,"1,520.00",2PIP Theraputic Services
http://statistics.data.gov.uk/id/local-authority/38,Oxfordshire County Council,Swindon Adoption Support Fund,27/03/2024,4861,Hired and Contracted Services,2201214375,"1,550.00",2PIP Theraputic Services
http://statistics.data.gov.uk/id/local-authority/38,Oxfordshire County Council,Swindon Adoption Support Fund,27/03/2024,4861,Hired and Contracted Services,2201214353,"1,900.00",2PIP Theraputic Services
http://statistics.data.gov.uk/id/local-authority/38,Oxfordshire County Council,West Berkshire Adoption Support Fund,27/03/2024,4861,Hired and Contracted Services,2201214351,"3,330.00",2PIP Theraputic Services
http://statistics.data.gov.uk/id/local-authority/38,Oxfordshire County Council,West Berkshire Adoption Support Fund,20/03/2024,4861,Hired and Contracted Services,2201211262,"4,465.00",2PIP Theraputic Services
http://statistics.data.gov.uk/id/local-authority/38,Oxfordshire County Council,MENTAL CAPACITY,28/03/2024,2040,Agency Staff,2201215409,"1,000.00",3D Human Asset Solution Ltd
http://statistics.data.gov.uk/id/local-authority/38,Oxfordshire County Council,Support at Home U65 HFA,06/03/2024,5688,,3111628215,"4,214.18",4 Syte
http://statistics.data.gov.uk/id/local-authority/38,Oxfordshire County Council,Support at Home U65 HFA,06/03/2024,5688,,3111628213,"4,553.02",4 Syte
http://statistics.data.gov.uk/id/local-authority/38,Oxfordshire County Council,Support at Home U65 HFA,06/03/2024,5688,,3111628214,"4,553.02",4 Syte
http://statistics.data.gov.uk/id/local-authority/38,Oxfordshire County Council,Support at Home U65 HFA,06/03/2024,5688,,3111628212,"4,587.60",4 Syte
http://statistics.data.gov.uk/id/local-authority/38,Oxfordshire County Council,ICT Operations & Maintenance,06/03/2024,5039,ICT Services,2201205806,"-1,273.94",8 * 8 UK Limited
http://statistics.data.gov.uk/id/local-authority/38,Oxfordshire County Council,ICT Operations & Maintenance,20/03/2024,5039,ICT Services,2201211943,"14,754.99",8 * 8 UK Limited
http://statistics.data.gov.uk/id/local-authority/38,Oxfordshire County Council,TRADING STANDARDS,07/03/2024,4861,Hired and Contracted Services,2201206121,"1,371.60",A & D Instruments Ltd
http://statistics.data.gov.uk/id/local-authority/38,Oxfordshire County Council,Support at Home 65+ Physical Support,20/03/2024,5693,,3111638207,549.60,A CARING HAND LTD
http://statistics.data.gov.uk/id/local-authority/38,Oxfordshire County Council,Support at Home 65+ Physical Support,20/03/2024,5693,,3111638204,576.80,A CARING HAND LTD
http://statistics.data.gov.uk/id/local-authority/38,Oxfordshire County Council,Support at Home U65 Physical Support,20/03/2024,5693,,3111638199,659.52,A CARING HAND LTD
http://statistics.data.gov.uk/id/local-authority/38,Oxfordshire County Council,Support at Home 65+ Memory & Cognition,20/03/2024,5693,,3111638215,718.91,A CARING HAND LTD
http://statistics.data.gov.uk/id/local-authority/38,Oxfordshire County Council,Support at Home U65 Physical Support,20/03/2024,5693,,3111638214,769.44,A CARING HAND LTD
http://statistics.data.gov.uk/id/local-authority/38,Oxfordshire County Council,Support at Home 65+ Physical Support,25/03/2024,5693,,3111639250,769.44,A CARING HAND LTD
http://statistics.data.gov.uk/id/local-authority/38,Oxfordshire County Council,Support at Home 65+ Physical Support,27/03/2024,5693,,3111642881,806.07,A CARING HAND LTD
http://statistics.data.gov.uk/id/local-authority/38,Oxfordshire County Council,Support at Home 65+ Physical Support,20/03/2024,5693,,3111638201,961.52,A CARING HAND LTD
http://statistics.data.gov.uk/id/local-authority/38,Oxfordshire County Council,Support at Home 65+ Physical Support,27/03/2024,5693,,3111642880,961.65,A CARING HAND LTD
http://statistics.data.gov.uk/id/local-authority/38,Oxfordshire County Council,Support at Home U65 Physical Support,25/03/2024,5693,,3111639249,"1,099.12",A CARING HAND LTD
http://statistics.data.gov.uk/id/local-authority/38,Oxfordshire County Council,Support at Home 65+ Physical Support,20/03/2024,5693,,3111638208,"1,128.89",A CARING HAND LTD
http://statistics.data.gov.uk/id/local-authority/38,Oxfordshire County Council,Support at Home 65+ Physical Support,20/03/2024,5693,,3111638198,"1,291.24",A CARING HAND LTD
http://statistics.data.gov.uk/id/local-authority/38,Oxfordshire County Council,Support at Home 65+ Physical Support,25/03/2024,5693,,3111639247,"1,730.96",A CARING HAND LTD
http://statistics.data.gov.uk/id/local-authority/38,Oxfordshire County Council,Support at Home 65+ Physical Support,20/03/2024,5693,,3111638210,"1,923.04",A CARING HAND LTD
http://statistics.data.gov.uk/id/local-authority/38,Oxfordshire County Council,Support at Home U65 Physical Support,25/03/2024,5693,,3111639251,"2,307.48",A CARING HAND LTD
http://statistics.data.gov.uk/id/local-authority/38,Oxfordshire County Council,Support at Home U65 Physical Support,20/03/2024,5693,,3111638206,"2,307.49",A CARING HAND LTD
http://statistics.data.gov.uk/id/local-authority/38,Oxfordshire County Council,Support at Home 65+ Memory & Cognition,20/03/2024,5693,,3111638212,"2,966.88",A CARING HAND LTD
http://statistics.data.gov.uk/id/local-authority/38,Oxfordshire County Council,Support at Home U65 Physical Support,20/03/2024,5693,,3111638209,"3,461.28",A CARING HAND LTD
http://statistics.data.gov.uk/id/local-authority/38,Oxfordshire County Council,Support at Home 65+ Physical Support,20/03/2024,5693,,3111638213,"3,461.36",A CARING HAND LTD
http://statistics.data.gov.uk/id/local-authority/38,Oxfordshire County Council,Support at Home 65+ Physical Support,20/03/2024,5689,,3111638211,"3,845.80",A CARING HAND LTD
http://statistics.data.gov.uk/id/local-authority/38,Oxfordshire County Council,Support at Home 65+ Physical Support,20/03/2024,5693,,3111638205,"4,615.24",A CARING HAND LTD
http://statistics.data.gov.uk/id/local-authority/38,Oxfordshire County Council,Support at Home 65+ Physical Support,20/03/2024,5693,,3111638200,"4,615.52",A CARING HAND LTD
http://statistics.data.gov.uk/id/local-authority/38,Oxfordshire County Council,FOSTERING MAIN,05/03/2024,5549,B*Fostering Allowance - Regulation 38,3111627312,542.00,Redacted Personal Data
http://statistics.data.gov.uk/id/local-authority/38,Oxfordshire County Council,FOSTERING MAIN,12/03/2024,5549,B*Fostering Allowance - Regulation 38,3111629347,542.00,Redacted Personal Data
http://statistics.data.gov.uk/id/local-authority/38,Oxfordshire County Council,FOSTERING MAIN,19/03/2024,5549,B*Fostering Allowance - Regulation 38,3111637509,542.00,Redacted Personal Data
http://statistics.data.gov.uk/id/local-authority/38,Oxfordshire County Council,FOSTERING MAIN,26/03/2024,5549,B*Fostering Allowance - Regulation 38,3111641293,542.00,Redacted Personal Data
http://statistics.data.gov.uk/id/local-authority/38,Oxfordshire County Council,FOSTERING MAIN,05/03/2024,5549,B*Fostering Allowance - Regulation 38,3111627300,542.00,Redacted Personal Data
http://statistics.data.gov.uk/id/local-authority/38,Oxfordshire County Council,FOSTERING MAIN,12/03/2024,5549,B*Fostering Allowance - Regulation 38,3111629323,542.00,Redacted Personal Data
http://statistics.data.gov.uk/id/local-authority/38,Oxfordshire County Council,FOSTERING MAIN,19/03/2024,5549,B*Fostering Allowance - Regulation 38,3111637480,542.00,Redacted Personal Data
http://statistics.data.gov.uk/id/local-authority/38,Oxfordshire County Council,FOSTERING MAIN,26/03/2024,5549,B*Fostering Allowance - Regulation 38,3111641271,542.00,Redacted Personal Data
http://statistics.data.gov.uk/id/local-authority/38,Oxfordshire County Council,MAINSTREAM-SECONDARY,22/03/2024,4330,Transport to School Activities,3111639012,800.00,A2B Castle Cars Ltd
http://statistics.data.gov.uk/id/local-authority/38,Oxfordshire County Council,Support at Home U65 Learning Disability,21/03/2024,5227,Other Transport Arrangements,3111638682,864.00,A2B Castle Cars Ltd
http://statistics.data.gov.uk/id/local-authority/38,Oxfordshire County Council,MAINSTREAM-PRIMARY,22/03/2024,4330,Transport to School Activities,3111639014,"1,120.00",A2B Castle Cars Ltd
http://statistics.data.gov.uk/id/local-authority/38,Oxfordshire County Council,POST 16 SEN,27/03/2024,4330,Transport to School Activities,3111642857,"1,140.00",A2B Castle Cars Ltd
http://statistics.data.gov.uk/id/local-authority/38,Oxfordshire County Council,Support at Home U65 Learning Disability,21/03/2024,5227,Other Transport Arrangements,3111638680,"1,200.00",A2B Castle Cars Ltd
http://statistics.data.gov.uk/id/local-authority/38,Oxfordshire County Council,MAINSTREAM-PRIMARY,22/03/2024,4330,Transport to School Activities,3111639011,"1,263.68",A2B Castle Cars Ltd
http://statistics.data.gov.uk/id/local-authority/38,Oxfordshire County Council,SEN TRANSPORT,22/03/2024,5227,Other Transport Arrangements,3111639006,"1,280.00",A2B Castle Cars Ltd
http://statistics.data.gov.uk/id/local-authority/38,Oxfordshire County Council,MAINSTREAM-PRIMARY,22/03/2024,4330,Transport to School Activities,3111639018,"1,280.00",A2B Castle Cars Ltd
http://statistics.data.gov.uk/id/local-authority/38,Oxfordshire County Council,Support at Home U65 Learning Disability,04/03/2024,5227,Other Transport Arrangements,3111627041,"1,470.64",A2B Castle Cars Ltd
http://statistics.data.gov.uk/id/local-authority/38,Oxfordshire County Council,Support at Home U65 Learning Disability,04/03/2024,5227,Other Transport Arrangements,3111627043,"1,470.68",A2B Castle Cars Ltd
http://statistics.data.gov.uk/id/local-authority/38,Oxfordshire County Council,Support at Home U65 Learning Disability,21/03/2024,5227,Other Transport Arrangements,3111638681,"1,752.00",A2B Castle Cars Ltd
http://statistics.data.gov.uk/id/local-authority/38,Oxfordshire County Council,SEN TRANSPORT,22/03/2024,4330,Transport to School Activities,3111639003,"1,792.00",A2B Castle Cars Ltd
http://statistics.data.gov.uk/id/local-authority/38,Oxfordshire County Council,SEN TRANSPORT,22/03/2024,4330,Transport to School Activities,3111639016,"1,856.00",A2B Castle Cars Ltd
http://statistics.data.gov.uk/id/local-authority/38,Oxfordshire County Council,SEN TRANSPORT,22/03/2024,5227,Other Transport Arrangements,3111639005,"2,112.00",A2B Castle Cars Ltd
http://statistics.data.gov.uk/id/local-authority/38,Oxfordshire County Council,Support at Home U65 Learning Disability,04/03/2024,5227,Other Transport Arrangements,3111627042,"2,250.68",A2B Castle Cars Ltd
http://statistics.data.gov.uk/id/local-authority/38,Oxfordshire County Council,SEN TRANSPORT,22/03/2024,5227,Other Transport Arrangements,3111639017,"2,304.00",A2B Castle Cars Ltd
http://statistics.data.gov.uk/id/local-authority/38,Oxfordshire County Council,TRANSPORT COSTS,22/03/2024,4330,Transport to School Activities,3111638999,"2,336.00",A2B Castle Cars Ltd
http://statistics.data.gov.uk/id/local-authority/38,Oxfordshire County Council,SEN TRANSPORT,22/03/2024,5227,Other Transport Arrangements,3111639000,"2,400.00",A2B Castle Cars Ltd
http://statistics.data.gov.uk/id/local-authority/38,Oxfordshire County Council,SEN TRANSPORT,26/03/2024,5227,Other Transport Arrangements,3111642804,"2,416.00",A2B Castle Cars Ltd
http://statistics.data.gov.uk/id/local-authority/38,Oxfordshire County Council,SEN TRANSPORT,22/03/2024,4330,Transport to School Activities,3111639015,"2,640.00",A2B Castle Cars Ltd
http://statistics.data.gov.uk/id/local-authority/38,Oxfordshire County Council,SEN TRANSPORT,04/03/2024,5227,Other Transport Arrangements,3111626750,"2,718.00",A2B Castle Cars Ltd
http://statistics.data.gov.uk/id/local-authority/38,Oxfordshire County Council,MAINSTREAM-SECONDARY,13/03/2024,4330,Transport to School Activities,3111635955,"2,805.00",A2B Castle Cars Ltd
http://statistics.data.gov.uk/id/local-authority/38,Oxfordshire County Council,SEN TRANSPORT,22/03/2024,5227,Other Transport Arrangements,3111639004,"3,008.00",A2B Castle Cars Ltd
http://statistics.data.gov.uk/id/local-authority/38,Oxfordshire County Council,SEN TRANSPORT,22/03/2024,5227,Other Transport Arrangements,3111639019,"3,168.00",A2B Castle Cars Ltd
http://statistics.data.gov.uk/id/local-authority/38,Oxfordshire County Council,SEN TRANSPORT,22/03/2024,4330,Transport to School Activities,3111639001,"3,296.00",A2B Castle Cars Ltd
http://statistics.data.gov.uk/id/local-authority/38,Oxfordshire County Council,SEN TRANSPORT,22/03/2024,5227,Other Transport Arrangements,3111639013,"3,360.00",A2B Castle Cars Ltd
http://statistics.data.gov.uk/id/local-authority/38,Oxfordshire County Council,SEN TRANSPORT,22/03/2024,5227,Other Transport Arrangements,3111639008,"3,424.00",A2B Castle Cars Ltd
http://statistics.data.gov.uk/id/local-authority/38,Oxfordshire County Council,SEN TRANSPORT,04/03/2024,5227,Other Transport Arrangements,3111626751,"3,446.00",A2B Castle Cars Ltd
http://statistics.data.gov.uk/id/local-authority/38,Oxfordshire County Council,PLACEMENTS- RELEVANT,26/03/2024,5785,Client Lodgings and Accommodation,3111639862,855.82,A2dominion
http://statistics.data.gov.uk/id/local-authority/38,Oxfordshire County Council,PLACEMENTS- RELEVANT,26/03/2024,5785,Client Lodgings and Accommodation,3111639863,855.82,A2dominion
http://statistics.data.gov.uk/id/local-authority/38,Oxfordshire County Council,PLACEMENTS- RELEVANT,26/03/2024,5785,Client Lodgings and Accommodation,3111639867,"1,164.98",A2dominion
http://statistics.data.gov.uk/id/local-authority/38,Oxfordshire County Council,PLACEMENTS- RELEVANT,26/03/2024,5785,Client Lodgings and Accommodation,3111639868,"1,164.98",A2dominion
http://statistics.data.gov.uk/id/local-authority/38,Oxfordshire County Council,PLACEMENTS- RELEVANT,26/03/2024,5785,Client Lodgings and Accommodation,3111639869,"1,164.98",A2dominion
http://statistics.data.gov.uk/id/local-authority/38,Oxfordshire County Council,POST18 UASC DCSF FND,26/03/2024,5785,Client Lodgings and Accommodation,3111639814,"2,262.11",A2dominion
http://statistics.data.gov.uk/id/local-authority/38,Oxfordshire County Council,POST18 UASC DCSF FND,26/03/2024,5785,Client Lodgings and Accommodation,3111639815,"2,262.11",A2dominion
http://statistics.data.gov.uk/id/local-authority/38,Oxfordshire County Council,POST18 UASC DCSF FND,26/03/2024,5785,Client Lodgings and Accommodation,3111639816,"2,262.11",A2dominion
http://statistics.data.gov.uk/id/local-authority/38,Oxfordshire County Council,YP PATHWAY,26/03/2024,5601,,3111639866,"6,142.21",A2dominion
http://statistics.data.gov.uk/id/local-authority/38,Oxfordshire County Council,YP PATHWAY,26/03/2024,5601,,3111639864,"8,166.64",A2dominion
http://statistics.data.gov.uk/id/local-authority/38,Oxfordshire County Council,YP PATHWAY,26/03/2024,5601,,3111639861,"11,666.63",A2dominion
http://statistics.data.gov.uk/id/local-authority/38,Oxfordshire County Council,POST18 UASC DCSF FND,26/03/2024,5785,Client Lodgings and Accommodation,3111639813,"19,522.02",A2dominion
http://statistics.data.gov.uk/id/local-authority/38,Oxfordshire County Council,DOMESTIC ABUSE SERVICES,04/03/2024,4940,Other Services,2201204902,"57,349.80",A2dominion
http://statistics.data.gov.uk/id/local-authority/38,Oxfordshire County Council,Care Homes - Over 65 Physical Sypport,12/03/2024,5686,,3111631261,"3,100.00",Aarandale Lodge Ltd
http://statistics.data.gov.uk/id/local-authority/38,Oxfordshire County Council,CHC Fast Track - Care Homes - Over 65,12/03/2024,5687,,3111631295,"-7,966.71",Abbey Crest Nursing Home
http://statistics.data.gov.uk/id/local-authority/38,Oxfordshire County Council,Funded Nursing Care  - Over 65,12/03/2024,5692,,3111631300,"-2,667.91",Abbey Crest Nursing Home
http://statistics.data.gov.uk/id/local-authority/38,Oxfordshire County Council,Funded Nursing Care  - Over 65,12/03/2024,5692,,3111631298,"-1,035.78",Abbey Crest Nursing Home
http://statistics.data.gov.uk/id/local-authority/38,Oxfordshire County Council,Funded Nursing Care  - Over 65,12/03/2024,5692,,3111631302,-596.36,Abbey Crest Nursing Home
http://statistics.data.gov.uk/id/local-authority/38,Oxfordshire County Council,Funded Nursing Care  - Over 65,12/03/2024,5692,,3111631263,973.00,Abbey Crest Nursing Home
http://statistics.data.gov.uk/id/local-authority/38,Oxfordshire County Council,Funded Nursing Care  - Over 65,12/03/2024,5692,,3111631265,973.00,Abbey Crest Nursing Home
http://statistics.data.gov.uk/id/local-authority/38,Oxfordshire County Council,Funded Nursing Care  - Over 65,12/03/2024,5692,,3111631266,973.00,Abbey Crest Nursing Home
http://statistics.data.gov.uk/id/local-authority/38,Oxfordshire County Council,Funded Nursing Care  - Over 65,12/03/2024,5692,,3111631267,973.00,Abbey Crest Nursing Home
http://statistics.data.gov.uk/id/local-authority/38,Oxfordshire County Council,Funded Nursing Care  - Over 65,12/03/2024,5692,,3111631268,973.00,Abbey Crest Nursing Home
http://statistics.data.gov.uk/id/local-authority/38,Oxfordshire County Council,Funded Nursing Care  - Over 65,12/03/2024,5692,,3111631270,973.00,Abbey Crest Nursing Home
http://statistics.data.gov.uk/id/local-authority/38,Oxfordshire County Council,Funded Nursing Care  - Over 65,12/03/2024,5692,,3111631271,973.00,Abbey Crest Nursing Home
http://statistics.data.gov.uk/id/local-authority/38,Oxfordshire County Council,Funded Nursing Care  - Over 65,12/03/2024,5692,,3111631273,973.00,Abbey Crest Nursing Home
http://statistics.data.gov.uk/id/local-authority/38,Oxfordshire County Council,Funded Nursing Care  - Over 65,12/03/2024,5692,,3111631275,973.00,Abbey Crest Nursing Home
http://statistics.data.gov.uk/id/local-authority/38,Oxfordshire County Council,Funded Nursing Care  - Over 65,12/03/2024,5692,,3111631277,973.00,Abbey Crest Nursing Home
http://statistics.data.gov.uk/id/local-authority/38,Oxfordshire County Council,Funded Nursing Care  - Over 65,12/03/2024,5692,,3111631278,973.00,Abbey Crest Nursing Home
http://statistics.data.gov.uk/id/local-authority/38,Oxfordshire County Council,Funded Nursing Care  - Over 65,12/03/2024,5692,,3111631279,973.00,Abbey Crest Nursing Home
http://statistics.data.gov.uk/id/local-authority/38,Oxfordshire County Council,Funded Nursing Care  - Over 65,12/03/2024,5692,,3111631280,973.00,Abbey Crest Nursing Home
http://statistics.data.gov.uk/id/local-authority/38,Oxfordshire County Council,Funded Nursing Care  - Over 65,12/03/2024,5692,,3111631281,973.00,Abbey Crest Nursing Home
http://statistics.data.gov.uk/id/local-authority/38,Oxfordshire County Council,Funded Nursing Care  - Over 65,12/03/2024,5692,,3111631284,973.00,Abbey Crest Nursing Home
http://statistics.data.gov.uk/id/local-authority/38,Oxfordshire County Council,Funded Nursing Care  - Over 65,12/03/2024,5692,,3111631285,973.00,Abbey Crest Nursing Home
http://statistics.data.gov.uk/id/local-authority/38,Oxfordshire County Council,Funded Nursing Care  - Over 65,12/03/2024,5692,,3111631286,973.00,Abbey Crest Nursing Home
http://statistics.data.gov.uk/id/local-authority/38,Oxfordshire County Council,Funded Nursing Care  - Over 65,12/03/2024,5692,,3111631287,973.00,Abbey Crest Nursing Home
http://statistics.data.gov.uk/id/local-authority/38,Oxfordshire County Council,Funded Nursing Care  - Over 65,12/03/2024,5692,,3111631288,973.00,Abbey Crest Nursing Home
http://statistics.data.gov.uk/id/local-authority/38,Oxfordshire County Council,Funded Nursing Care  - Over 65,12/03/2024,5692,,3111631289,973.00,Abbey Crest Nursing Home
http://statistics.data.gov.uk/id/local-authority/38,Oxfordshire County Council,Funded Nursing Care  - Over 65,12/03/2024,5692,,3111631293,973.00,Abbey Crest Nursing Home
http://statistics.data.gov.uk/id/local-authority/38,Oxfordshire County Council,Funded Nursing Care  - Over 65,12/03/2024,5692,,3111631294,973.00,Abbey Crest Nursing Home
http://statistics.data.gov.uk/id/local-authority/38,Oxfordshire County Council,Funded Nursing Care  - Over 65,12/03/2024,5692,,3111631297,973.00,Abbey Crest Nursing Home
http://statistics.data.gov.uk/id/local-authority/38,Oxfordshire County Council,Funded Nursing Care  - Over 65,12/03/2024,5692,,3111631299,973.00,Abbey Crest Nursing Home
http://statistics.data.gov.uk/id/local-authority/38,Oxfordshire County Council,Funded Nursing Care  - Over 65,12/03/2024,5692,,3111631304,973.00,Abbey Crest Nursing Home
http://statistics.data.gov.uk/id/local-authority/38,Oxfordshire County Council,Funded Nursing Care  - Over 65,12/03/2024,5692,,3111631305,973.00,Abbey Crest Nursing Home
http://statistics.data.gov.uk/id/local-authority/38,Oxfordshire County Council,Funded Nursing Care  - Over 65,12/03/2024,5692,,3111631306,973.00,Abbey Crest Nursing Home
http://statistics.data.gov.uk/id/local-authority/38,Oxfordshire County Council,Funded Nursing Care  - Over 65,12/03/2024,5692,,3111631309,973.00,Abbey Crest Nursing Home
http://statistics.data.gov.uk/id/local-authority/38,Oxfordshire County Council,Funded Nursing Care  - Over 65,12/03/2024,5692,,3111631276,"1,663.52",Abbey Crest Nursing Home
http://statistics.data.gov.uk/id/local-authority/38,Oxfordshire County Council,Funded Nursing Care  - Over 65,12/03/2024,5692,,3111631303,"1,914.62",Abbey Crest Nursing Home
http://statistics.data.gov.uk/id/local-authority/38,Oxfordshire County Council,Funded Nursing Care  - Over 65,12/03/2024,5692,,3111631301,"2,008.78",Abbey Crest Nursing Home
http://statistics.data.gov.uk/id/local-authority/38,Oxfordshire County Council,Funded Nursing Care  - Over 65,12/03/2024,5692,,3111631274,"2,479.59",Abbey Crest Nursing Home
http://statistics.data.gov.uk/id/local-authority/38,Oxfordshire County Council,Funded Nursing Care  - Over 65,12/03/2024,5692,,3111631291,"3,452.59",Abbey Crest Nursing Home
http://statistics.data.gov.uk/id/local-authority/38,Oxfordshire County Council,Care Homes - Over 65 Physical Sypport,12/03/2024,5687,,3111631290,"6,910.87",Abbey Crest Nursing Home
http://statistics.data.gov.uk/id/local-authority/38,Oxfordshire County Council,Continuing Care - Care Homes - 65+,12/03/2024,5687,,3111631283,"7,578.30",Abbey Crest Nursing Home
http://statistics.data.gov.uk/id/local-authority/38,Oxfordshire County Council,Continuing Care - Care Homes - 65+,12/03/2024,5687,,3111631292,"7,586.05",Abbey Crest Nursing Home
http://statistics.data.gov.uk/id/local-authority/38,Oxfordshire County Council,Care Homes - Over 65 Memory & Cognition,12/03/2024,5687,,3111631269,"8,478.46",Abbey Crest Nursing Home
http://statistics.data.gov.uk/id/local-authority/38,Oxfordshire County Council,CHC Fast Track - Care Homes - Over 65,12/03/2024,5687,,3111631272,"8,516.14",Abbey Crest Nursing Home
http://statistics.data.gov.uk/id/local-authority/38,Oxfordshire County Council,Continuing Care - Care Homes - 65+,12/03/2024,5687,,3111631296,"8,516.14",Abbey Crest Nursing Home
http://statistics.data.gov.uk/id/local-authority/38,Oxfordshire County Council,CHC Fast Track - Care Homes - Over 65,12/03/2024,5687,,3111631282,"8,525.00",Abbey Crest Nursing Home
http://statistics.data.gov.uk/id/local-authority/38,Oxfordshire County Council,Continuing Care - Care Homes - 65+,12/03/2024,5687,,3111631262,"8,746.43",Abbey Crest Nursing Home
http://statistics.data.gov.uk/id/local-authority/38,Oxfordshire County Council,Continuing Care - Care Homes - 65+,12/03/2024,5687,,3111631264,"8,746.43",Abbey Crest Nursing Home
http://statistics.data.gov.uk/id/local-authority/38,Oxfordshire County Council,Care Homes - Over 65 Memory & Cognition,12/03/2024,5686,,3111631307,"40,597.03",Abbey Crest Nursing Home
http://statistics.data.gov.uk/id/local-authority/38,Oxfordshire County Council,Care Homes - Over 65 Physical Sypport,12/03/2024,5686,,3111631308,"40,597.03",Abbey Crest Nursing Home
http://statistics.data.gov.uk/id/local-authority/38,Oxfordshire County Council,Care Homes - Over 65 Memory & Cognition,12/03/2024,5685,B*Cycle tracks,3111631310,"5,314.29",ABBEY RAVENSCROFT PARK NURSING HOME
http://statistics.data.gov.uk/id/local-authority/38,Oxfordshire County Council,SEN Additional Funding,04/03/2024,5537,Payments to Other Establishments,3111626791,"1,773.44",Abbey Woods Academy
http://statistics.data.gov.uk/id/local-authority/38,Oxfordshire County Council,SEN Additional Funding,04/03/2024,5537,Payments to Other Establishments,3111626781,"1,877.76",Abbey Woods Academy
http://statistics.data.gov.uk/id/local-authority/38,Oxfordshire County Council,HSF Welfare Support Grant & FSM support,19/03/2024,4939,,3111636874,"2,100.00",Abbey Woods Academy
http://statistics.data.gov.uk/id/local-authority/38,Oxfordshire County Council,SEN Additional Funding,04/03/2024,5537,Payments to Other Establishments,3111626797,"2,112.48",Abbey Woods Academy
http://statistics.data.gov.uk/id/local-authority/38,Oxfordshire County Council,SEN TRANSPORT,05/03/2024,5227,Other Transport Arrangements,3111627255,"2,080.00",ABC Travel(Wokingham) limited t/a A
http://statistics.data.gov.uk/id/local-authority/38,Oxfordshire County Council,LD Continuing Care - Sup at Home - U65,12/03/2024,5899,Social Care - Direct Payments,3111631212,"15,737.12",Redacted Personal Data
http://statistics.data.gov.uk/id/local-authority/38,Oxfordshire County Council,CONCESSIONARY FARES,20/03/2024,5781,Payments to Transport Operators,2201211336,"6,345.50",ABILITY (Northants) cic
http://statistics.data.gov.uk/id/local-authority/38,Oxfordshire County Council,HSF Welfare Support Grant & FSM support,19/03/2024,4939,,3111636875,"3,870.00",Abingdon & Witney College
http://statistics.data.gov.uk/id/local-authority/38,Oxfordshire County Council,Multiply,28/03/2024,3103,Other Training Courses and Qualification,2201215261,"66,809.00",Abingdon & Witney College
http://statistics.data.gov.uk/id/local-authority/38,Oxfordshire County Council,Multiply,28/03/2024,3103,Other Training Courses and Qualification,2201215293,"66,809.00",Abingdon & Witney College
http://statistics.data.gov.uk/id/local-authority/38,Oxfordshire County Council,DEVELOPMENT WORK EY PD Group,27/03/2024,3942,Hire of Accommodation and Facilities,2201214762,630.00,Abingdon Carousel
http://statistics.data.gov.uk/id/local-authority/38,Oxfordshire County Council,NURSERY ED FUND,18/03/2024,5537,Payments to Other Establishments,3111636796,-534.45,Abingdon Learning Trust
http://statistics.data.gov.uk/id/local-authority/38,Oxfordshire County Council,Quality TPPG,28/03/2024,5537,Payments to Other Establishments,3111644338,606.24,Abingdon Learning Trust
http://statistics.data.gov.uk/id/local-authority/38,Oxfordshire County Council,NURSERY ED FUND,27/03/2024,5537,Payments to Other Establishments,3111643772,916.20,Abingdon Learning Trust
http://statistics.data.gov.uk/id/local-authority/38,Oxfordshire County Council,NURSERY ED FUND,18/03/2024,5537,Payments to Other Establishments,3111636798,"1,068.90",Abingdon Learning Trust
http://statistics.data.gov.uk/id/local-authority/38,Oxfordshire County Council,NURSERY ED FUND,27/03/2024,5537,Payments to Other Establishments,3111643774,"1,679.70",Abingdon Learning Trust
http://statistics.data.gov.uk/id/local-authority/38,Oxfordshire County Council,SEN TRANSPORT,22/03/2024,4330,Transport to School Activities,3111638975,"1,600.00",Abingdon Taxis FKN Autotaxis
http://statistics.data.gov.uk/id/local-authority/38,Oxfordshire County Council,SEN TRANSPORT,22/03/2024,4330,Transport to School Activities,3111638976,"1,760.00",Abingdon Taxis FKN Autotaxis
http://statistics.data.gov.uk/id/local-authority/38,Oxfordshire County Council,Support at Home U65 Learning Disability,22/03/2024,5227,Other Transport Arrangements,3111638980,"1,960.00",Abingdon Taxis FKN Autotaxis
http://statistics.data.gov.uk/id/local-authority/38,Oxfordshire County Council,SEN TRANSPORT,22/03/2024,5227,Other Transport Arrangements,3111638971,"3,840.00",Abingdon Taxis FKN Autotaxis
http://statistics.data.gov.uk/id/local-authority/38,Oxfordshire County Council,SEN TRANSPORT,22/03/2024,5227,Other Transport Arrangements,3111638973,"3,840.00",Abingdon Taxis FKN Autotaxis
http://statistics.data.gov.uk/id/local-authority/38,Oxfordshire County Council,SEN TRANSPORT,22/03/2024,5227,Other Transport Arrangements,3111638977,"4,000.00",Abingdon Taxis FKN Autotaxis
http://statistics.data.gov.uk/id/local-authority/38,Oxfordshire County Council,SEN TRANSPORT,22/03/2024,5227,Other Transport Arrangements,3111638978,"4,160.00",Abingdon Taxis FKN Autotaxis
http://statistics.data.gov.uk/id/local-authority/38,Oxfordshire County Council,SEN TRANSPORT,22/03/2024,5227,Other Transport Arrangements,3111638974,"4,256.00",Abingdon Taxis FKN Autotaxis
http://statistics.data.gov.uk/id/local-authority/38,Oxfordshire County Council,SEN TRANSPORT,22/03/2024,5227,Other Transport Arrangements,3111638972,"4,320.00",Abingdon Taxis FKN Autotaxis
http://statistics.data.gov.uk/id/local-authority/38,Oxfordshire County Council,Support at Home U65 HFA,26/03/2024,5699,,3111641010,769.16,Abi-Support Ltd
http://statistics.data.gov.uk/id/local-authority/38,Oxfordshire County Council,Support at Home 65+ Physical Support,26/03/2024,5699,,3111641017,824.11,Abi-Support Ltd
http://statistics.data.gov.uk/id/local-authority/38,Oxfordshire County Council,Support at Home U65 Physical Support,26/03/2024,5699,,3111641014,961.45,Abi-Support Ltd
http://statistics.data.gov.uk/id/local-authority/38,Oxfordshire County Council,Support at Home 65+ Physical Support,26/03/2024,5689,,3111640406,"1,153.75",Abi-Support Ltd
http://statistics.data.gov.uk/id/local-authority/38,Oxfordshire County Council,Support at Home 65+ Physical Support,26/03/2024,5699,,3111641012,"1,153.75",Abi-Support Ltd
http://statistics.data.gov.uk/id/local-authority/38,Oxfordshire County Council,Support at Home 65+ Memory & Cognition,26/03/2024,5699,,3111641024,"1,153.75",Abi-Support Ltd
http://statistics.data.gov.uk/id/local-authority/38,Oxfordshire County Council,Support at Home U65 Learning Disability,26/03/2024,5699,,3111641019,"1,455.91",Abi-Support Ltd
http://statistics.data.gov.uk/id/local-authority/38,Oxfordshire County Council,Support at Home 65+ Memory & Cognition,26/03/2024,5699,,3111641018,"1,538.32",Abi-Support Ltd
http://statistics.data.gov.uk/id/local-authority/38,Oxfordshire County Council,Support at Home 65+ Physical Support,26/03/2024,5699,,3111641021,"1,648.20",Abi-Support Ltd
http://statistics.data.gov.uk/id/local-authority/38,Oxfordshire County Council,Support at Home 65+ Physical Support,26/03/2024,5689,,3111640405,"1,922.90",Abi-Support Ltd
http://statistics.data.gov.uk/id/local-authority/38,Oxfordshire County Council,Support at Home 65+ Physical Support,26/03/2024,5693,,3111640404,"1,922.91",Abi-Support Ltd
http://statistics.data.gov.uk/id/local-authority/38,Oxfordshire County Council,Support at Home 65+ Memory & Cognition,26/03/2024,5699,,3111641025,"1,922.91",Abi-Support Ltd
http://statistics.data.gov.uk/id/local-authority/38,Oxfordshire County Council,Support at Home 65+ Physical Support,26/03/2024,5699,,3111641022,"2,307.48",Abi-Support Ltd
http://statistics.data.gov.uk/id/local-authority/38,Oxfordshire County Council,Support at Home U65 Mental Health,26/03/2024,5699,,3111641026,"2,362.43",Abi-Support Ltd
http://statistics.data.gov.uk/id/local-authority/38,Oxfordshire County Council,Funded Nursing Care  - Over 65,12/03/2024,5692,,3111631382,"-7,062.10",Acacia Lodge Care Home
http://statistics.data.gov.uk/id/local-authority/38,Oxfordshire County Council,Continuing Care - Care Homes - 65+,12/03/2024,5687,,3111631441,"-4,428.57",Acacia Lodge Care Home
http://statistics.data.gov.uk/id/local-authority/38,Oxfordshire County Council,Care Homes - Over 65 Memory & Cognition,12/03/2024,5687,,3111631425,"-3,985.71",Acacia Lodge Care Home
http://statistics.data.gov.uk/id/local-authority/38,Oxfordshire County Council,CHC Fast Track - Care Homes - Over 65,12/03/2024,5687,,3111631369,"-2,514.29",Acacia Lodge Care Home
http://statistics.data.gov.uk/id/local-authority/38,Oxfordshire County Council,Funded Nursing Care  - Over 65,12/03/2024,5692,,3111631372,973.00,Acacia Lodge Care Home
http://statistics.data.gov.uk/id/local-authority/38,Oxfordshire County Council,Funded Nursing Care  - Over 65,12/03/2024,5692,,3111631376,973.00,Acacia Lodge Care Home
http://statistics.data.gov.uk/id/local-authority/38,Oxfordshire County Council,Funded Nursing Care  - Over 65,12/03/2024,5692,,3111631388,973.00,Acacia Lodge Care Home
http://statistics.data.gov.uk/id/local-authority/38,Oxfordshire County Council,Funded Nursing Care  - Over 65,12/03/2024,5692,,3111631390,973.00,Acacia Lodge Care Home
http://statistics.data.gov.uk/id/local-authority/38,Oxfordshire County Council,Funded Nursing Care  - Over 65,12/03/2024,5692,,3111631396,973.00,Acacia Lodge Care Home
http://statistics.data.gov.uk/id/local-authority/38,Oxfordshire County Council,Funded Nursing Care  - Over 65,12/03/2024,5692,,3111631399,973.00,Acacia Lodge Care Home
http://statistics.data.gov.uk/id/local-authority/38,Oxfordshire County Council,Funded Nursing Care  - Over 65,12/03/2024,5692,,3111631401,973.00,Acacia Lodge Care Home
http://statistics.data.gov.uk/id/local-authority/38,Oxfordshire County Council,Funded Nursing Care  - Over 65,12/03/2024,5692,,3111631415,973.00,Acacia Lodge Care Home
http://statistics.data.gov.uk/id/local-authority/38,Oxfordshire County Council,Funded Nursing Care  - Over 65,12/03/2024,5692,,3111631423,973.00,Acacia Lodge Care Home
http://statistics.data.gov.uk/id/local-authority/38,Oxfordshire County Council,Funded Nursing Care  - Over 65,12/03/2024,5692,,3111631431,973.00,Acacia Lodge Care Home
http://statistics.data.gov.uk/id/local-authority/38,Oxfordshire County Council,Care Homes - Over 65 Physical Sypport,12/03/2024,5686,,3111631370,"4,878.51",Acacia Lodge Care Home
http://statistics.data.gov.uk/id/local-authority/38,Oxfordshire County Council,Care Homes - Over 65 Physical Sypport,12/03/2024,5686,,3111631380,"5,314.29",Acacia Lodge Care Home
http://statistics.data.gov.uk/id/local-authority/38,Oxfordshire County Council,Care Homes - Over 65 Physical Sypport,12/03/2024,5685,B*Cycle tracks,3111631419,"5,448.43",Acacia Lodge Care Home
http://statistics.data.gov.uk/id/local-authority/38,Oxfordshire County Council,Care Homes - Over 65 Physical Sypport,12/03/2024,5687,,3111631429,"5,643.82",Acacia Lodge Care Home
http://statistics.data.gov.uk/id/local-authority/38,Oxfordshire County Council,Care Homes - Over 65 Physical Sypport,12/03/2024,5687,,3111631392,"5,754.09",Acacia Lodge Care Home
http://statistics.data.gov.uk/id/local-authority/38,Oxfordshire County Council,Care Homes - Over 65 Physical Sypport,12/03/2024,5687,,3111631439,"5,754.09",Acacia Lodge Care Home
http://statistics.data.gov.uk/id/local-authority/38,Oxfordshire County Council,Care Homes - Over 65 Physical Sypport,12/03/2024,5687,,3111631384,"5,805.64",Acacia Lodge Care Home
http://statistics.data.gov.uk/id/local-authority/38,Oxfordshire County Council,Care Homes - Over 65 Physical Sypport,12/03/2024,5687,,3111631403,"6,000.71",Acacia Lodge Care Home
http://statistics.data.gov.uk/id/local-authority/38,Oxfordshire County Council,Care Homes - Over 65 Memory & Cognition,12/03/2024,5687,,3111631437,"6,000.71",Acacia Lodge Care Home
http://statistics.data.gov.uk/id/local-authority/38,Oxfordshire County Council,Care Homes - Over 65 Physical Sypport,12/03/2024,5687,,3111631443,"6,000.71",Acacia Lodge Care Home
http://statistics.data.gov.uk/id/local-authority/38,Oxfordshire County Council,Care Homes - Over 65 Memory & Cognition,12/03/2024,5687,,3111631405,"6,120.77",Acacia Lodge Care Home
http://statistics.data.gov.uk/id/local-authority/38,Oxfordshire County Council,Care Homes - Over 65 Memory & Cognition,12/03/2024,5687,,3111631409,"6,155.71",Acacia Lodge Care Home
http://statistics.data.gov.uk/id/local-authority/38,Oxfordshire County Council,Care Homes - Over 65 Mental Health,12/03/2024,5687,,3111631386,"6,158.02",Acacia Lodge Care Home
http://statistics.data.gov.uk/id/local-authority/38,Oxfordshire County Council,Care Homes - Over 65 Physical Sypport,12/03/2024,5687,,3111631374,"6,200.00",Acacia Lodge Care Home
http://statistics.data.gov.uk/id/local-authority/38,Oxfordshire County Council,Care Homes - Over 65 Memory & Cognition,12/03/2024,5687,,3111631433,"6,200.00",Acacia Lodge Care Home
http://statistics.data.gov.uk/id/local-authority/38,Oxfordshire County Council,Care Homes - Over 65 Mental Health,12/03/2024,5687,,3111631435,"6,468.02",Acacia Lodge Care Home
http://statistics.data.gov.uk/id/local-authority/38,Oxfordshire County Council,Continuing Care - Care Homes - 65+,12/03/2024,5687,,3111631417,"6,554.29",Acacia Lodge Care Home
http://statistics.data.gov.uk/id/local-authority/38,Oxfordshire County Council,Care Homes - Over 65 Physical Sypport,12/03/2024,5687,,3111631394,"6,563.63",Acacia Lodge Care Home
http://statistics.data.gov.uk/id/local-authority/38,Oxfordshire County Council,Continuing Care - Care Homes - 65+,12/03/2024,5687,,3111631378,"6,642.86",Acacia Lodge Care Home
http://statistics.data.gov.uk/id/local-authority/38,Oxfordshire County Council,Continuing Care - Care Homes - 65+,12/03/2024,5687,,3111631407,"6,642.86",Acacia Lodge Care Home
http://statistics.data.gov.uk/id/local-authority/38,Oxfordshire County Council,CHC Fast Track - Care Homes - Over 65,12/03/2024,5687,,3111631413,"6,642.86",Acacia Lodge Care Home
http://statistics.data.gov.uk/id/local-authority/38,Oxfordshire County Council,CHC Fast Track - Care Homes - Over 65,12/03/2024,5687,,3111631427,"6,642.86",Acacia Lodge Care Home
http://statistics.data.gov.uk/id/local-authority/38,Oxfordshire County Council,Continuing Care - Care Homes - 65+,12/03/2024,5687,,3111631368,"7,085.71",Acacia Lodge Care Home
http://statistics.data.gov.uk/id/local-authority/38,Oxfordshire County Council,CHC Fast Track - Care Homes - Over 65,12/03/2024,5687,,3111631411,"7,307.14",Acacia Lodge Care Home
http://statistics.data.gov.uk/id/local-authority/38,Oxfordshire County Council,Care Homes - Over 65 Memory & Cognition,12/03/2024,5686,,3111631421,"10,150.00",Acacia Lodge Care Home
http://statistics.data.gov.uk/id/local-authority/38,Oxfordshire County Council,DISABILITIES TEAM S,05/03/2024,5785,Client Lodgings and Accommodation,2201205431,"5,500.00",Academy Properties Ltd
http://statistics.data.gov.uk/id/local-authority/38,Oxfordshire County Council,HOME SUPPORT,11/03/2024,4495,IT Software,2201207256,"2,849.06",Access UK Ltd
http://statistics.data.gov.uk/id/local-authority/38,Oxfordshire County Council,"Education, Employment & Training Team",19/03/2024,4495,IT Software,2201211019,"27,157.11",Access UK Ltd
http://statistics.data.gov.uk/id/local-authority/38,Oxfordshire County Council,SEN TRANSPORT,13/03/2024,4330,Transport to School Activities,3111635983,525.00,ACE CARS BANBURY LTD
http://statistics.data.gov.uk/id/local-authority/38,Oxfordshire County Council,DISABILITIES TEAM-N,19/03/2024,5227,Other Transport Arrangements,3111638124,547.50,ACE CARS BANBURY LTD
http://statistics.data.gov.uk/id/local-authority/38,Oxfordshire County Council,SEN TRANSPORT,13/03/2024,4330,Transport to School Activities,3111635990,"1,430.00",ACE CARS BANBURY LTD
http://statistics.data.gov.uk/id/local-authority/38,Oxfordshire County Council,SEN TRANSPORT,13/03/2024,4330,Transport to School Activities,3111635997,"1,916.80",ACE CARS BANBURY LTD
http://statistics.data.gov.uk/id/local-authority/38,Oxfordshire County Council,Support at Home U65 Learning Disability,19/03/2024,5227,Other Transport Arrangements,3111638123,"1,942.40",ACE CARS BANBURY LTD
http://statistics.data.gov.uk/id/local-authority/38,Oxfordshire County Council,SEN TRANSPORT,13/03/2024,5227,Other Transport Arrangements,3111635981,"2,040.00",ACE CARS BANBURY LTD
http://statistics.data.gov.uk/id/local-authority/38,Oxfordshire County Council,SEN TRANSPORT,13/03/2024,5227,Other Transport Arrangements,3111636001,"2,208.00",ACE CARS BANBURY LTD
http://statistics.data.gov.uk/id/local-authority/38,Oxfordshire County Council,SEN TRANSPORT,13/03/2024,5227,Other Transport Arrangements,3111636000,"2,560.00",ACE CARS BANBURY LTD
http://statistics.data.gov.uk/id/local-authority/38,Oxfordshire County Council,SEN TRANSPORT,13/03/2024,4330,Transport to School Activities,3111635973,"2,660.00",ACE CARS BANBURY LTD
http://statistics.data.gov.uk/id/local-authority/38,Oxfordshire County Council,POST 16 SEN,13/03/2024,4330,Transport to School Activities,3111635982,"3,240.00",ACE CARS BANBURY LTD
http://statistics.data.gov.uk/id/local-authority/38,Oxfordshire County Council,SEN TRANSPORT,13/03/2024,5227,Other Transport Arrangements,3111635976,"3,449.60",ACE CARS BANBURY LTD
http://statistics.data.gov.uk/id/local-authority/38,Oxfordshire County Council,SEN TRANSPORT,13/03/2024,5227,Other Transport Arrangements,3111635975,"3,475.20",ACE CARS BANBURY LTD
http://statistics.data.gov.uk/id/local-authority/38,Oxfordshire County Council,CHC Fast Track - Care Homes - Over 65,12/03/2024,5687,,3111631330,"-4,478.57",ACER HEALTHCARE LTD
http://statistics.data.gov.uk/id/local-authority/38,Oxfordshire County Council,Continuing Care - Care Homes - 65+,12/03/2024,5687,,3111631312,"-2,107.91",ACER HEALTHCARE LTD
http://statistics.data.gov.uk/id/local-authority/38,Oxfordshire County Council,Care Homes - Over 65 Physical Sypport,12/03/2024,5687,,3111631363,"-1,070.12",ACER HEALTHCARE LTD
http://statistics.data.gov.uk/id/local-authority/38,Oxfordshire County Council,Funded Nursing Care  - Over 65,12/03/2024,5692,,3111631311,973.00,ACER HEALTHCARE LTD
http://statistics.data.gov.uk/id/local-authority/38,Oxfordshire County Council,Funded Nursing Care  - Over 65,12/03/2024,5692,,3111631314,973.00,ACER HEALTHCARE LTD
http://statistics.data.gov.uk/id/local-authority/38,Oxfordshire County Council,Funded Nursing Care  - Over 65,12/03/2024,5692,,3111631318,973.00,ACER HEALTHCARE LTD
http://statistics.data.gov.uk/id/local-authority/38,Oxfordshire County Council,Funded Nursing Care  - Over 65,12/03/2024,5692,,3111631320,973.00,ACER HEALTHCARE LTD
http://statistics.data.gov.uk/id/local-authority/38,Oxfordshire County Council,Funded Nursing Care  - Over 65,12/03/2024,5692,,3111631321,973.00,ACER HEALTHCARE LTD
http://statistics.data.gov.uk/id/local-authority/38,Oxfordshire County Council,Funded Nursing Care  - Over 65,12/03/2024,5692,,3111631325,973.00,ACER HEALTHCARE LTD
http://statistics.data.gov.uk/id/local-authority/38,Oxfordshire County Council,Funded Nursing Care  - Over 65,12/03/2024,5692,,3111631326,973.00,ACER HEALTHCARE LTD
http://statistics.data.gov.uk/id/local-authority/38,Oxfordshire County Council,Funded Nursing Care  - Over 65,12/03/2024,5692,,3111631333,973.00,ACER HEALTHCARE LTD
http://statistics.data.gov.uk/id/local-authority/38,Oxfordshire County Council,Funded Nursing Care  - Over 65,12/03/2024,5692,,3111631335,973.00,ACER HEALTHCARE LTD
http://statistics.data.gov.uk/id/local-authority/38,Oxfordshire County Council,Funded Nursing Care  - Over 65,12/03/2024,5692,,3111631337,973.00,ACER HEALTHCARE LTD
http://statistics.data.gov.uk/id/local-authority/38,Oxfordshire County Council,Funded Nursing Care  - Over 65,12/03/2024,5692,,3111631347,973.00,ACER HEALTHCARE LTD
http://statistics.data.gov.uk/id/local-authority/38,Oxfordshire County Council,Funded Nursing Care  - Over 65,12/03/2024,5692,,3111631349,973.00,ACER HEALTHCARE LTD
http://statistics.data.gov.uk/id/local-authority/38,Oxfordshire County Council,Funded Nursing Care  - Over 65,12/03/2024,5692,,3111631350,973.00,ACER HEALTHCARE LTD
http://statistics.data.gov.uk/id/local-authority/38,Oxfordshire County Council,Funded Nursing Care  - Over 65,12/03/2024,5692,,3111631354,973.00,ACER HEALTHCARE LTD
http://statistics.data.gov.uk/id/local-authority/38,Oxfordshire County Council,Funded Nursing Care  - Over 65,12/03/2024,5692,,3111631358,973.00,ACER HEALTHCARE LTD
http://statistics.data.gov.uk/id/local-authority/38,Oxfordshire County Council,Funded Nursing Care  - Over 65,12/03/2024,5692,,3111631361,973.00,ACER HEALTHCARE LTD
http://statistics.data.gov.uk/id/local-authority/38,Oxfordshire County Council,Funded Nursing Care  - Over 65,12/03/2024,5692,,3111631362,973.00,ACER HEALTHCARE LTD
http://statistics.data.gov.uk/id/local-authority/38,Oxfordshire County Council,Funded Nursing Care  - Over 65,12/03/2024,5692,,3111631364,973.00,ACER HEALTHCARE LTD
http://statistics.data.gov.uk/id/local-authority/38,Oxfordshire County Council,Funded Nursing Care  - Over 65,12/03/2024,5692,,3111631366,973.00,ACER HEALTHCARE LTD
http://statistics.data.gov.uk/id/local-authority/38,Oxfordshire County Council,Funded Nursing Care  - Over 65,12/03/2024,5692,,3111631367,973.00,ACER HEALTHCARE LTD
http://statistics.data.gov.uk/id/local-authority/38,Oxfordshire County Council,CHC Fast Track - Care Homes - Over 65,12/03/2024,5687,,3111631331,"2,828.57",ACER HEALTHCARE LTD
http://statistics.data.gov.uk/id/local-authority/38,Oxfordshire County Council,Care Homes - Over 65 Memory & Cognition,12/03/2024,5686,,3111631327,"4,827.14",ACER HEALTHCARE LTD
http://statistics.data.gov.uk/id/local-authority/38,Oxfordshire County Council,Care Homes - Over 65 Memory & Cognition,12/03/2024,5685,B*Cycle tracks,3111631365,"4,872.71",ACER HEALTHCARE LTD
http://statistics.data.gov.uk/id/local-authority/38,Oxfordshire County Council,Care Homes - Over 65 Physical Sypport,12/03/2024,5686,,3111631344,"4,969.79",ACER HEALTHCARE LTD
http://statistics.data.gov.uk/id/local-authority/38,Oxfordshire County Council,Care Homes - Over 65 Memory & Cognition,12/03/2024,5687,,3111631355,"4,975.23",ACER HEALTHCARE LTD
http://statistics.data.gov.uk/id/local-authority/38,Oxfordshire County Council,Care Homes - Over 65 Physical Sypport,12/03/2024,5685,B*Cycle tracks,3111631319,"5,027.71",ACER HEALTHCARE LTD
http://statistics.data.gov.uk/id/local-authority/38,Oxfordshire County Council,Care Homes - Over 65 Memory & Cognition,12/03/2024,5686,,3111631342,"5,093.79",ACER HEALTHCARE LTD
http://statistics.data.gov.uk/id/local-authority/38,Oxfordshire County Council,Care Homes - Over 65 Physical Sypport,12/03/2024,5687,,3111631313,"5,209.42",ACER HEALTHCARE LTD
http://statistics.data.gov.uk/id/local-authority/38,Oxfordshire County Council,Care Homes - Over 65 Physical Sypport,12/03/2024,5687,,3111631324,"5,488.02",ACER HEALTHCARE LTD
http://statistics.data.gov.uk/id/local-authority/38,Oxfordshire County Council,Care Homes - Over 65 Memory & Cognition,12/03/2024,5687,,3111631338,"5,528.94",ACER HEALTHCARE LTD
http://statistics.data.gov.uk/id/local-authority/38,Oxfordshire County Council,Care Homes - Over 65 Physical Sypport,12/03/2024,5687,,3111631345,"5,540.05",ACER HEALTHCARE LTD
http://statistics.data.gov.uk/id/local-authority/38,Oxfordshire County Council,Care Homes - Over 65 Physical Sypport,12/03/2024,5687,,3111631322,"5,581.86",ACER HEALTHCARE LTD
http://statistics.data.gov.uk/id/local-authority/38,Oxfordshire County Council,Care Homes - Over 65 Physical Sypport,12/03/2024,5687,,3111631341,"5,757.14",ACER HEALTHCARE LTD
http://statistics.data.gov.uk/id/local-authority/38,Oxfordshire County Council,Care Homes - Over 65 Memory & Cognition,12/03/2024,5687,,3111631328,"5,805.64",ACER HEALTHCARE LTD
http://statistics.data.gov.uk/id/local-authority/38,Oxfordshire County Council,Care Homes - Under 65 Physical Sypport,12/03/2024,5687,,3111631315,"6,000.71",ACER HEALTHCARE LTD
http://statistics.data.gov.uk/id/local-authority/38,Oxfordshire County Council,Care Homes - Over 65 Physical Sypport,12/03/2024,5687,,3111631317,"6,000.71",ACER HEALTHCARE LTD
http://statistics.data.gov.uk/id/local-authority/38,Oxfordshire County Council,Care Homes - Over 65 Physical Sypport,12/03/2024,5687,,3111631329,"6,000.71",ACER HEALTHCARE LTD
http://statistics.data.gov.uk/id/local-authority/38,Oxfordshire County Council,Care Homes - Over 65 Memory & Cognition,12/03/2024,5687,,3111631336,"6,000.71",ACER HEALTHCARE LTD
http://statistics.data.gov.uk/id/local-authority/38,Oxfordshire County Council,Care Homes - Over 65 Mental Health,12/03/2024,5687,,3111631352,"6,000.71",ACER HEALTHCARE LTD
http://statistics.data.gov.uk/id/local-authority/38,Oxfordshire County Council,Care Homes - Over 65 Memory & Cognition,12/03/2024,5687,,3111631353,"6,000.71",ACER HEALTHCARE LTD
http://statistics.data.gov.uk/id/local-authority/38,Oxfordshire County Council,Care Homes - Over 65 Sensory Support,12/03/2024,5687,,3111631357,"6,000.71",ACER HEALTHCARE LTD
http://statistics.data.gov.uk/id/local-authority/38,Oxfordshire County Council,Care Homes - Over 65 Memory & Cognition,12/03/2024,5687,,3111631334,"6,025.16",ACER HEALTHCARE LTD
http://statistics.data.gov.uk/id/local-authority/38,Oxfordshire County Council,Care Homes - Over 65 Physical Sypport,12/03/2024,5687,,3111631360,"6,025.16",ACER HEALTHCARE LTD
http://statistics.data.gov.uk/id/local-authority/38,Oxfordshire County Council,Care Homes - Over 65 Memory & Cognition,12/03/2024,5687,,3111631332,"6,111.43",ACER HEALTHCARE LTD
http://statistics.data.gov.uk/id/local-authority/38,Oxfordshire County Council,Care Homes - Over 65 Memory & Cognition,12/03/2024,5686,,3111631339,"6,111.43",ACER HEALTHCARE LTD
http://statistics.data.gov.uk/id/local-authority/38,Oxfordshire County Council,Care Homes - Over 65 Physical Sypport,12/03/2024,5687,,3111631343,"6,158.02",ACER HEALTHCARE LTD
http://statistics.data.gov.uk/id/local-authority/38,Oxfordshire County Council,Care Homes - Over 65 Physical Sypport,12/03/2024,5687,,3111631359,"6,158.02",ACER HEALTHCARE LTD
http://statistics.data.gov.uk/id/local-authority/38,Oxfordshire County Council,CHC Fast Track - Care Homes - Over 65,12/03/2024,5687,,3111631351,"6,240.00",ACER HEALTHCARE LTD
http://statistics.data.gov.uk/id/local-authority/38,Oxfordshire County Council,Care Homes - Over 65 Memory & Cognition,12/03/2024,5687,,3111631316,"6,468.02",ACER HEALTHCARE LTD
http://statistics.data.gov.uk/id/local-authority/38,Oxfordshire County Council,Care Homes - Over 65 Memory & Cognition,12/03/2024,5687,,3111631346,"6,468.02",ACER HEALTHCARE LTD
http://statistics.data.gov.uk/id/local-authority/38,Oxfordshire County Council,Care Homes - Over 65 Physical Sypport,12/03/2024,5687,,3111631348,"6,554.29",ACER HEALTHCARE LTD
http://statistics.data.gov.uk/id/local-authority/38,Oxfordshire County Council,Care Homes - Over 65 Physical Sypport,12/03/2024,5687,,3111631356,"7,174.29",ACER HEALTHCARE LTD
http://statistics.data.gov.uk/id/local-authority/38,Oxfordshire County Council,Care Homes - Over 65 Physical Sypport,12/03/2024,5687,,3111631323,"7,440.00",ACER HEALTHCARE LTD
http://statistics.data.gov.uk/id/local-authority/38,Oxfordshire County Council,Care Homes - Over 65 Physical Sypport,12/03/2024,5685,B*Cycle tracks,3111631340,"8,677.87",ACER HEALTHCARE LTD
http://statistics.data.gov.uk/id/local-authority/38,Oxfordshire County Council,Homes for Ukraine - Education,21/03/2024,5537,Payments to Other Establishments,3111638653,919.38,Acer Trust
http://statistics.data.gov.uk/id/local-authority/38,Oxfordshire County Council,HN IN SEC SCHOOLS,25/03/2024,5537,Payments to Other Establishments,3111640345,"3,764.00",Acer Trust
http://statistics.data.gov.uk/id/local-authority/38,Oxfordshire County Council,HN IN SEC SCHOOLS,25/03/2024,5537,Payments to Other Establishments,3111640354,"5,441.00",Acer Trust
http://statistics.data.gov.uk/id/local-authority/38,Oxfordshire County Council,HN Sec School  Bonus Top Up,06/03/2024,5537,Payments to Other Establishments,3111628106,"20,140.89",Acer Trust
http://statistics.data.gov.uk/id/local-authority/38,Oxfordshire County Council,Support at Home U65 Sensory Support,12/03/2024,5688,,3111632572,"5,292.85",ACHIEVE TOGETHER LIMITED
http://statistics.data.gov.uk/id/local-authority/38,Oxfordshire County Council,Support at Home U65 Learning Disability,12/03/2024,5688,,3111632569,"5,854.53",ACHIEVE TOGETHER LIMITED
http://statistics.data.gov.uk/id/local-authority/38,Oxfordshire County Council,Care Homes - Under 65 Physical Sypport,12/03/2024,5686,,3111631445,"6,057.53",ACHIEVE TOGETHER LIMITED
http://statistics.data.gov.uk/id/local-authority/38,Oxfordshire County Council,Care Homes - Under 65 Leaning Disability,12/03/2024,5686,,3111633856,"7,455.54",ACHIEVE TOGETHER LIMITED
http://statistics.data.gov.uk/id/local-authority/38,Oxfordshire County Council,Care Homes - Under 65 Leaning Disability,12/03/2024,5686,,3111633859,"9,363.37",ACHIEVE TOGETHER LIMITED
http://statistics.data.gov.uk/id/local-authority/38,Oxfordshire County Council,Support at Home U65 Physical Support,12/03/2024,5899,Social Care - Direct Payments,3111630296,"2,800.68",Redacted Personal Data
http://statistics.data.gov.uk/id/local-authority/38,Oxfordshire County Council,High Cost INMSS Placements,28/03/2024,5537,Payments to Other Establishments,3111644364,"12,012.69",Acorn Care & Education
http://statistics.data.gov.uk/id/local-authority/38,Oxfordshire County Council,Mainstream Res,06/03/2024,5560,B*Boundary Fencing,3111628311,"5,887.18",Acorn Care & Education Ltd
http://statistics.data.gov.uk/id/local-authority/38,Oxfordshire County Council,Mainstream Res,20/03/2024,5558,,3111638497,"15,455.71",Acorn Care & Education Ltd
http://statistics.data.gov.uk/id/local-authority/38,Oxfordshire County Council,Mainstream Res,20/03/2024,5560,B*Boundary Fencing,3111638499,"16,062.20",Acorn Care & Education Ltd
http://statistics.data.gov.uk/id/local-authority/38,Oxfordshire County Council,Mainstream Res,20/03/2024,5558,,3111638496,"16,252.86",Acorn Care & Education Ltd
http://statistics.data.gov.uk/id/local-authority/38,Oxfordshire County Council,Mainstream Res,20/03/2024,5560,B*Boundary Fencing,3111638495,"16,383.06",Acorn Care & Education Ltd
http://statistics.data.gov.uk/id/local-authority/38,Oxfordshire County Council,Mainstream Res,20/03/2024,5558,,3111638494,"20,393.57",Acorn Care & Education Ltd
http://statistics.data.gov.uk/id/local-authority/38,Oxfordshire County Council,Mainstream Res,20/03/2024,5560,B*Boundary Fencing,3111638500,"21,704.52",Acorn Care & Education Ltd
http://statistics.data.gov.uk/id/local-authority/38,Oxfordshire County Council,Mainstream Res,20/03/2024,5558,,3111638498,"22,509.10",Acorn Care & Education Ltd
http://statistics.data.gov.uk/id/local-authority/38,Oxfordshire County Council,AGENCY RESID - DISAB,13/03/2024,5558,,3111636006,"24,013.93",Acorn Care & Education Ltd
http://statistics.data.gov.uk/id/local-authority/38,Oxfordshire County Council,Support at Home U65 MH OBC Contract,26/03/2024,5699,,3111641044,743.06,Acquire Care Ltd
http://statistics.data.gov.uk/id/local-authority/38,Oxfordshire County Council,Support at Home 65+ Physical Support,26/03/2024,5689,,3111640422,774.20,Acquire Care Ltd
http://statistics.data.gov.uk/id/local-authority/38,Oxfordshire County Council,Support at Home 65+ Physical Support,26/03/2024,5699,,3111641032,774.20,Acquire Care Ltd
http://statistics.data.gov.uk/id/local-authority/38,Oxfordshire County Council,Support at Home U65 Physical Support,26/03/2024,5699,,3111641046,788.39,Acquire Care Ltd
http://statistics.data.gov.uk/id/local-authority/38,Oxfordshire County Council,Support at Home 65+ Physical Support,26/03/2024,5698,,3111640409,790.78,Acquire Care Ltd
http://statistics.data.gov.uk/id/local-authority/38,Oxfordshire County Council,Support at Home 65+ Physical Support,26/03/2024,5699,,3111641028,792.97,Acquire Care Ltd
http://statistics.data.gov.uk/id/local-authority/38,Oxfordshire County Council,Support at Home 65+ Physical Support,26/03/2024,5698,,3111640416,809.33,Acquire Care Ltd
http://statistics.data.gov.uk/id/local-authority/38,Oxfordshire County Council,Support at Home 65+ Physical Support,26/03/2024,5699,,3111641042,854.78,Acquire Care Ltd
http://statistics.data.gov.uk/id/local-authority/38,Oxfordshire County Council,Support at Home 65+ Physical Support,26/03/2024,5693,,3111640428,861.64,Acquire Care Ltd
http://statistics.data.gov.uk/id/local-authority/38,Oxfordshire County Council,Support at Home 65+ Physical Support,26/03/2024,5699,,3111641048,931.23,Acquire Care Ltd
http://statistics.data.gov.uk/id/local-authority/38,Oxfordshire County Council,Support at Home 65+ Physical Support,26/03/2024,5699,,3111641050,973.81,Acquire Care Ltd
http://statistics.data.gov.uk/id/local-authority/38,Oxfordshire County Council,Support at Home 65+ Physical Support,26/03/2024,5689,,3111640429,"1,066.29",Acquire Care Ltd
http://statistics.data.gov.uk/id/local-authority/38,Oxfordshire County Council,Support at Home U65 Physical Support,26/03/2024,5699,,3111641031,"1,159.23",Acquire Care Ltd
http://statistics.data.gov.uk/id/local-authority/38,Oxfordshire County Council,Support at Home U65 Learning Disability,26/03/2024,5699,,3111641049,"1,167.48",Acquire Care Ltd
http://statistics.data.gov.uk/id/local-authority/38,Oxfordshire County Council,Support at Home 65+ Physical Support,26/03/2024,5699,,3111641036,"1,183.50",Acquire Care Ltd
http://statistics.data.gov.uk/id/local-authority/38,Oxfordshire County Council,Support at Home 65+ Physical Support,26/03/2024,5699,,3111641045,"1,224.24",Acquire Care Ltd
http://statistics.data.gov.uk/id/local-authority/38,Oxfordshire County Council,Support at Home 65+ Physical Support,26/03/2024,5698,,3111640412,"1,311.63",Acquire Care Ltd
http://statistics.data.gov.uk/id/local-authority/38,Oxfordshire County Council,Support at Home 65+ Memory & Cognition,26/03/2024,5693,,3111640430,"1,321.31",Acquire Care Ltd
http://statistics.data.gov.uk/id/local-authority/38,Oxfordshire County Council,Support at Home 65+ Physical Support,26/03/2024,5699,,3111641039,"1,336.42",Acquire Care Ltd
http://statistics.data.gov.uk/id/local-authority/38,Oxfordshire County Council,Support at Home 65+ Physical Support,26/03/2024,5699,,3111641040,"1,372.12",Acquire Care Ltd
http://statistics.data.gov.uk/id/local-authority/38,Oxfordshire County Council,Support at Home 65+ Physical Support,26/03/2024,5699,,3111641034,"1,552.51",Acquire Care Ltd
http://statistics.data.gov.uk/id/local-authority/38,Oxfordshire County Council,Support at Home 65+ Memory & Cognition,26/03/2024,5699,,3111641030,"1,603.33",Acquire Care Ltd
http://statistics.data.gov.uk/id/local-authority/38,Oxfordshire County Council,Support at Home U65 Physical Support,26/03/2024,5699,,3111641055,"1,695.81",Acquire Care Ltd
http://statistics.data.gov.uk/id/local-authority/38,Oxfordshire County Council,Support at Home 65+ Physical Support,26/03/2024,5699,,3111641053,"1,761.74",Acquire Care Ltd
http://statistics.data.gov.uk/id/local-authority/38,Oxfordshire County Council,Support at Home 65+ Physical Support,26/03/2024,5699,,3111641037,"1,867.50",Acquire Care Ltd
http://statistics.data.gov.uk/id/local-authority/38,Oxfordshire County Council,Support at Home 65+ Physical Support,26/03/2024,5689,,3111640424,"1,945.79",Acquire Care Ltd
http://statistics.data.gov.uk/id/local-authority/38,Oxfordshire County Council,Support at Home U65 Mental Health,26/03/2024,5698,,3111640410,"2,475.30",Acquire Care Ltd
http://statistics.data.gov.uk/id/local-authority/38,Oxfordshire County Council,Support at Home 65+ Physical Support,26/03/2024,5699,,3111641027,"2,590.88",Acquire Care Ltd
http://statistics.data.gov.uk/id/local-authority/38,Oxfordshire County Council,Support at Home U65 Learning Disability,26/03/2024,5693,,3111640427,"2,884.81",Acquire Care Ltd
http://statistics.data.gov.uk/id/local-authority/38,Oxfordshire County Council,Support at Home 65+ Memory & Cognition,26/03/2024,5689,,3111640418,"3,358.84",Acquire Care Ltd
http://statistics.data.gov.uk/id/local-authority/38,Oxfordshire County Council,Support at Home 65+ Physical Support,26/03/2024,5698,,3111640408,"3,377.39",Acquire Care Ltd
http://statistics.data.gov.uk/id/local-authority/38,Oxfordshire County Council,Support at Home 65+ Physical Support,26/03/2024,5699,,3111641041,"3,427.80",Acquire Care Ltd
http://statistics.data.gov.uk/id/local-authority/38,Oxfordshire County Council,Support at Home 65+ Memory & Cognition,26/03/2024,5699,,3111641038,"3,539.05",Acquire Care Ltd
http://statistics.data.gov.uk/id/local-authority/38,Oxfordshire County Council,Support at Home 65+ Physical Support,26/03/2024,5689,,3111640423,"3,586.66",Acquire Care Ltd
http://statistics.data.gov.uk/id/local-authority/38,Oxfordshire County Council,Support at Home 65+ Physical Support,26/03/2024,5699,,3111641047,"3,910.35",Acquire Care Ltd
http://statistics.data.gov.uk/id/local-authority/38,Oxfordshire County Council,Support at Home 65+ Physical Support,26/03/2024,5698,,3111640419,"3,961.32",Acquire Care Ltd
http://statistics.data.gov.uk/id/local-authority/38,Oxfordshire County Council,Support at Home U65 Physical Support,26/03/2024,5698,,3111640417,"3,984.97",Acquire Care Ltd
http://statistics.data.gov.uk/id/local-authority/38,Oxfordshire County Council,Support at Home U65 Physical Support,26/03/2024,5698,,3111640414,"3,999.81",Acquire Care Ltd
http://statistics.data.gov.uk/id/local-authority/38,Oxfordshire County Council,Support at Home U65 Physical Support,26/03/2024,5693,,3111640426,"4,160.00",Acquire Care Ltd
http://statistics.data.gov.uk/id/local-authority/38,Oxfordshire County Council,Support at Home 65+ Physical Support,26/03/2024,5699,,3111641033,"4,896.99",Acquire Care Ltd
http://statistics.data.gov.uk/id/local-authority/38,Oxfordshire County Council,Reactive Maintenance,19/03/2024,3830,Other Adhoc Site / Grounds Maintenanc,2201210777,675.00,Acreman's Arboriculture Ltd
http://statistics.data.gov.uk/id/local-authority/38,Oxfordshire County Council,TREE MAINT OPS,15/03/2024,5526,Payments to Private Contractors,2201209870,810.00,Acreman's Arboriculture Ltd
http://statistics.data.gov.uk/id/local-authority/38,Oxfordshire County Council,TREE MAINT OPS,21/03/2024,5526,Payments to Private Contractors,2201212368,945.00,Acreman's Arboriculture Ltd
http://statistics.data.gov.uk/id/local-authority/38,Oxfordshire County Council,Reactive Maintenance,19/03/2024,3830,Other Adhoc Site / Grounds Maintenanc,2201210778,"1,075.00",Acreman's Arboriculture Ltd
http://statistics.data.gov.uk/id/local-authority/38,Oxfordshire County Council,TREE MAINT OPS,19/03/2024,5526,Payments to Private Contractors,2201211094,"1,150.00",Acreman's Arboriculture Ltd
http://statistics.data.gov.uk/id/local-authority/38,Oxfordshire County Council,Community Support Service Banbury,19/03/2024,5526,Payments to Private Contractors,2201210779,"1,695.00",Acreman's Arboriculture Ltd
http://statistics.data.gov.uk/id/local-authority/38,Oxfordshire County Council,TREE MAINT OPS,21/03/2024,5526,Payments to Private Contractors,2201212367,"2,040.00",Acreman's Arboriculture Ltd
http://statistics.data.gov.uk/id/local-authority/38,Oxfordshire County Council,TREE MAINT OPS,21/03/2024,5526,Payments to Private Contractors,2201212369,"3,970.00",Acreman's Arboriculture Ltd
http://statistics.data.gov.uk/id/local-authority/38,Oxfordshire County Council,TREE MAINT OPS,21/03/2024,5526,Payments to Private Contractors,2201212366,"4,770.00",Acreman's Arboriculture Ltd
http://statistics.data.gov.uk/id/local-authority/38,Oxfordshire County Council,TREE MAINT OPS,21/03/2024,5526,Payments to Private Contractors,2201212370,"4,845.00",Acreman's Arboriculture Ltd
http://statistics.data.gov.uk/id/local-authority/38,Oxfordshire County Council,TREE MAINT OPS,19/03/2024,5526,Payments to Private Contractors,2201211095,"7,590.00",Acreman's Arboriculture Ltd
http://statistics.data.gov.uk/id/local-authority/38,Oxfordshire County Council,TREE MAINT OPS,11/03/2024,5526,Payments to Private Contractors,2201208123,"8,825.00",Acreman's Arboriculture Ltd
http://statistics.data.gov.uk/id/local-authority/38,Oxfordshire County Council,TREE MAINT OPS,25/03/2024,5526,Payments to Private Contractors,2201213559,"11,352.00",Acreman's Arboriculture Ltd
http://statistics.data.gov.uk/id/local-authority/38,Oxfordshire County Council,TREE MAINT OPS,25/03/2024,5526,Payments to Private Contractors,2201213558,"14,442.00",Acreman's Arboriculture Ltd
http://statistics.data.gov.uk/id/local-authority/38,Oxfordshire County Council,TREE MAINT OPS,25/03/2024,5526,Payments to Private Contractors,2201213139,"15,736.00",Acreman's Arboriculture Ltd
http://statistics.data.gov.uk/id/local-authority/38,Oxfordshire County Council,Interagency,07/03/2024,5500,Payments to Other Local Authorities,2201206547,"1,448.00",Action for Children
http://statistics.data.gov.uk/id/local-authority/38,Oxfordshire County Council,HSF Welfare Support Grant & FSM support,19/03/2024,4939,,3111636876,"6,510.00",Activate Learning
http://statistics.data.gov.uk/id/local-authority/38,Oxfordshire County Council,HN IN SEC SCHOOLS,25/03/2024,5537,Payments to Other Establishments,3111640365,"1,479.00",Activate Learning Education Trust
http://statistics.data.gov.uk/id/local-authority/38,Oxfordshire County Council,HN IN SEC SCHOOLS,25/03/2024,5537,Payments to Other Establishments,3111640333,"5,756.00",Activate Learning Education Trust
http://statistics.data.gov.uk/id/local-authority/38,Oxfordshire County Council,Support at Home U65 Mental Health,12/03/2024,5688,,3111632578,"11,341.57",Active Care Group
http://statistics.data.gov.uk/id/local-authority/38,Oxfordshire County Council,CHILD PHYS ACTIVITY,12/03/2024,5195,Grant Aid and Donations,2201208494,"3,000.00",Active Oxfordshire
http://statistics.data.gov.uk/id/local-authority/38,Oxfordshire County Council,Personal Health Budgets  - U65,12/03/2024,5899,Social Care - Direct Payments,3111629887,"2,086.40",Redacted Personal Data
http://statistics.data.gov.uk/id/local-authority/38,Oxfordshire County Council,Homes for Ukraine - Guests,27/03/2024,5896,Adult Social Care - Other Transfer Pay,3500104066,550.00,Redacted Personal Data
http://statistics.data.gov.uk/id/local-authority/38,Oxfordshire County Council,Support at Home U65 Physical Support,12/03/2024,5899,Social Care - Direct Payments,3111630608,"2,704.56",Redacted Personal Data
http://statistics.data.gov.uk/id/local-authority/38,Oxfordshire County Council,Support at Home U65 Learning Disability,12/03/2024,5899,Social Care - Direct Payments,3111630263,583.88,Redacted Personal Data
http://statistics.data.gov.uk/id/local-authority/38,Oxfordshire County Council,LANDLORD & TENANT,22/03/2024,3945,Rent,3500103946,"1,380.25",Adderbury PCC - Church House Accoun
http://statistics.data.gov.uk/id/local-authority/38,Oxfordshire County Council,Support at Home 65+ Memory & Cognition,12/03/2024,5899,Social Care - Direct Payments,3111630379,"4,796.00",Redacted Personal Data
http://statistics.data.gov.uk/id/local-authority/38,Oxfordshire County Council,Support at Home U65 Learning Disability,12/03/2024,5899,Social Care - Direct Payments,3111629815,697.60,Redacted Personal Data
http://statistics.data.gov.uk/id/local-authority/38,Oxfordshire County Council,UASC 16&17,06/03/2024,5558,,3111628285,"4,131.68",Aden Children's Homes
http://statistics.data.gov.uk/id/local-authority/38,Oxfordshire County Council,SMT Directorate Supp,21/03/2024,4625,"Newspapers, Periodicals and Publications",2201212094,"2,316.00",ADEPT
http://statistics.data.gov.uk/id/local-authority/38,Oxfordshire County Council,T&I Management,22/03/2024,5668,Technical and Professional Consultant F,2201212666,"10,000.00",ADEPT
http://statistics.data.gov.uk/id/local-authority/38,Oxfordshire County Council,RESIDENTIAL TREATMEN,26/03/2024,5686,,2201214097,"1,550.00",Adferiad Recovery
http://statistics.data.gov.uk/id/local-authority/38,Oxfordshire County Council,RESIDENTIAL TREATMEN,05/03/2024,5686,,2201205495,"2,712.50",Adferiad Recovery
http://statistics.data.gov.uk/id/local-authority/38,Oxfordshire County Council,RESIDENTIAL TREATMEN,27/03/2024,5686,,2201214861,"3,487.50",Adferiad Recovery
http://statistics.data.gov.uk/id/local-authority/38,Oxfordshire County Council,RESIDENTIAL TREATMEN,27/03/2024,5686,,2201214862,"3,487.50",Adferiad Recovery
http://statistics.data.gov.uk/id/local-authority/38,Oxfordshire County Council,RESIDENTIAL TREATMEN,27/03/2024,5686,,2201214863,"5,037.50",Adferiad Recovery
http://statistics.data.gov.uk/id/local-authority/38,Oxfordshire County Council,RESIDENTIAL TREATMEN,05/03/2024,5686,,2201205493,"5,425.00",Adferiad Recovery
http://statistics.data.gov.uk/id/local-authority/38,Oxfordshire County Council,RESIDENTIAL TREATMEN,26/03/2024,5686,,2201214099,"5,425.00",Adferiad Recovery
http://statistics.data.gov.uk/id/local-authority/38,Oxfordshire County Council,RESIDENTIAL TREATMEN,05/03/2024,5686,,2201205494,"12,012.50",Adferiad Recovery
http://statistics.data.gov.uk/id/local-authority/38,Oxfordshire County Council,RESIDENTIAL TREATMEN,26/03/2024,5686,,2201214096,"16,275.00",Adferiad Recovery
http://statistics.data.gov.uk/id/local-authority/38,Oxfordshire County Council,Continuing Care - Care Homes - 65+,12/03/2024,5687,,3111631447,"6,200.00",Admire Healthcare Ltd
http://statistics.data.gov.uk/id/local-authority/38,Oxfordshire County Council,DA GRANT 23-24,02/03/2024,4940,Other Services,2201204620,942.00,Adolescent Safeguarding Consultancy
http://statistics.data.gov.uk/id/local-authority/38,Oxfordshire County Council,DA GRANT 23-24,29/03/2024,4940,Other Services,2201216019,942.00,Adolescent Safeguarding Consultancy
http://statistics.data.gov.uk/id/local-authority/38,Oxfordshire County Council,Homes for Ukraine - Guests,22/03/2024,5896,Adult Social Care - Other Transfer Pay,3500103954,550.00,Redacted Personal Data
http://statistics.data.gov.uk/id/local-authority/38,Oxfordshire County Council,Support at Home 65+ Memory & Cognition,12/03/2024,5899,Social Care - Direct Payments,3111630357,805.44,Redacted Personal Data
http://statistics.data.gov.uk/id/local-authority/38,Oxfordshire County Council,Support at Home 65+ Physical Support,26/03/2024,5699,,3111641077,"-1,181.21",Adult Transition Services Ltd (ATrS
http://statistics.data.gov.uk/id/local-authority/38,Oxfordshire County Council,Support at Home 65+ Subsantance Abuse,26/03/2024,5699,,3111641109,521.93,Adult Transition Services Ltd (ATrS
http://statistics.data.gov.uk/id/local-authority/38,Oxfordshire County Council,Support at Home U65 MH OBC Contract,26/03/2024,5699,,3111641067,549.40,Adult Transition Services Ltd (ATrS
http://statistics.data.gov.uk/id/local-authority/38,Oxfordshire County Council,Support at Home U65 Physical Support,26/03/2024,5699,,3111641099,631.81,Adult Transition Services Ltd (ATrS
http://statistics.data.gov.uk/id/local-authority/38,Oxfordshire County Council,Support at Home U65 Learning Disability,26/03/2024,5699,,3111641064,769.16,Adult Transition Services Ltd (ATrS
http://statistics.data.gov.uk/id/local-authority/38,Oxfordshire County Council,Support at Home 65+ Physical Support,26/03/2024,5699,,3111641083,769.16,Adult Transition Services Ltd (ATrS
http://statistics.data.gov.uk/id/local-authority/38,Oxfordshire County Council,Support at Home U65 MH OBC Contract,26/03/2024,5699,,3111641101,769.16,Adult Transition Services Ltd (ATrS
http://statistics.data.gov.uk/id/local-authority/38,Oxfordshire County Council,Support at Home 65+ Physical Support,26/03/2024,5699,,3111641111,769.16,Adult Transition Services Ltd (ATrS
http://statistics.data.gov.uk/id/local-authority/38,Oxfordshire County Council,Support at Home U65 Mental Health,26/03/2024,5699,,3111641107,920.25,Adult Transition Services Ltd (ATrS
http://statistics.data.gov.uk/id/local-authority/38,Oxfordshire County Council,Support at Home U65 Mental Health,26/03/2024,5699,,3111641095,975.19,Adult Transition Services Ltd (ATrS
http://statistics.data.gov.uk/id/local-authority/38,Oxfordshire County Council,Support at Home 65+ Physical Support,26/03/2024,5699,,3111641069,"1,098.80",Adult Transition Services Ltd (ATrS
http://statistics.data.gov.uk/id/local-authority/38,Oxfordshire County Council,Support at Home 65+ Physical Support,26/03/2024,5699,,3111641071,"1,098.80",Adult Transition Services Ltd (ATrS
http://statistics.data.gov.uk/id/local-authority/38,Oxfordshire County Council,Support at Home 65+ Physical Support,26/03/2024,5699,,3111641117,"1,153.74",Adult Transition Services Ltd (ATrS
http://statistics.data.gov.uk/id/local-authority/38,Oxfordshire County Council,Support at Home U65 MH OBC Contract,26/03/2024,5699,,3111641115,"1,181.21",Adult Transition Services Ltd (ATrS
http://statistics.data.gov.uk/id/local-authority/38,Oxfordshire County Council,Support at Home 65+ Physical Support,26/03/2024,5699,,3111641085,"1,215.55",Adult Transition Services Ltd (ATrS
http://statistics.data.gov.uk/id/local-authority/38,Oxfordshire County Council,Support at Home 65+ Physical Support,26/03/2024,5699,,3111641065,"1,249.89",Adult Transition Services Ltd (ATrS
http://statistics.data.gov.uk/id/local-authority/38,Oxfordshire County Council,Support at Home 65+ Physical Support,26/03/2024,5699,,3111641057,"1,346.03",Adult Transition Services Ltd (ATrS
http://statistics.data.gov.uk/id/local-authority/38,Oxfordshire County Council,Support at Home 65+ Mental Health,26/03/2024,5699,,3111641062,"1,346.03",Adult Transition Services Ltd (ATrS
http://statistics.data.gov.uk/id/local-authority/38,Oxfordshire County Council,Support at Home 65+ Physical Support,26/03/2024,5699,,3111641073,"1,346.03",Adult Transition Services Ltd (ATrS
http://statistics.data.gov.uk/id/local-authority/38,Oxfordshire County Council,Support at Home 65+ Physical Support,26/03/2024,5699,,3111641079,"1,346.03",Adult Transition Services Ltd (ATrS
http://statistics.data.gov.uk/id/local-authority/38,Oxfordshire County Council,Support at Home U65 MH OBC Contract,26/03/2024,5699,,3111641056,"1,380.37",Adult Transition Services Ltd (ATrS
http://statistics.data.gov.uk/id/local-authority/38,Oxfordshire County Council,Support at Home U65 MH OBC Contract,26/03/2024,5699,,3111641063,"1,538.32",Adult Transition Services Ltd (ATrS
http://statistics.data.gov.uk/id/local-authority/38,Oxfordshire County Council,Support at Home U65 Other /Soc Isolation,26/03/2024,5699,,3111641105,"1,703.14",Adult Transition Services Ltd (ATrS
http://statistics.data.gov.uk/id/local-authority/38,Oxfordshire County Council,Support at Home 65+ Physical Support,26/03/2024,5699,,3111641089,"1,730.61",Adult Transition Services Ltd (ATrS
http://statistics.data.gov.uk/id/local-authority/38,Oxfordshire County Council,Support at Home 65+ Mental Health,26/03/2024,5699,,3111641113,"1,730.62",Adult Transition Services Ltd (ATrS
http://statistics.data.gov.uk/id/local-authority/38,Oxfordshire County Council,Support at Home U65 MH OBC Contract,26/03/2024,5699,,3111641061,"1,744.35",Adult Transition Services Ltd (ATrS
http://statistics.data.gov.uk/id/local-authority/38,Oxfordshire County Council,Support at Home 65+ Physical Support,26/03/2024,5699,,3111641097,"2,018.59",Adult Transition Services Ltd (ATrS
http://statistics.data.gov.uk/id/local-authority/38,Oxfordshire County Council,Support at Home 65+ Physical Support,26/03/2024,5699,,3111641091,"2,073.99",Adult Transition Services Ltd (ATrS
http://statistics.data.gov.uk/id/local-authority/38,Oxfordshire County Council,Support at Home 65+ Physical Support,26/03/2024,5699,,3111641066,"2,307.48",Adult Transition Services Ltd (ATrS
http://statistics.data.gov.uk/id/local-authority/38,Oxfordshire County Council,Support at Home U65 Physical Support,18/03/2024,5689,,3111636745,"3,231.02",Adult Transition Services Ltd (ATrS
http://statistics.data.gov.uk/id/local-authority/38,Oxfordshire County Council,Support at Home 65+ Memory & Cognition,26/03/2024,5699,,3111641059,"4,614.96",Adult Transition Services Ltd (ATrS
http://statistics.data.gov.uk/id/local-authority/38,Oxfordshire County Council,Support at Home 65+ Physical Support,26/03/2024,5699,,3111641093,"5,696.00",Adult Transition Services Ltd (ATrS
http://statistics.data.gov.uk/id/local-authority/38,Oxfordshire County Council,Support at Home 65+ Physical Support,12/03/2024,5690,,3111633123,528.11,ADVANCE HOUSING & SUPPORT LTD
http://statistics.data.gov.uk/id/local-authority/38,Oxfordshire County Council,Support at Home U65 Learning Disability,12/03/2024,5690,,3111633105,576.33,ADVANCE HOUSING & SUPPORT LTD
http://statistics.data.gov.uk/id/local-authority/38,Oxfordshire County Council,VOIDS/VACANCY COSTS,08/03/2024,3945,Rent,3111628764,588.00,ADVANCE HOUSING & SUPPORT LTD
http://statistics.data.gov.uk/id/local-authority/38,Oxfordshire County Council,Support at Home U65 Learning Disability,12/03/2024,5688,,3111632581,600.34,ADVANCE HOUSING & SUPPORT LTD
http://statistics.data.gov.uk/id/local-authority/38,Oxfordshire County Council,Support at Home U65 Learning Disability,12/03/2024,5688,,3111632584,600.34,ADVANCE HOUSING & SUPPORT LTD
http://statistics.data.gov.uk/id/local-authority/38,Oxfordshire County Council,Support at Home U65 Learning Disability,12/03/2024,5688,,3111632587,600.34,ADVANCE HOUSING & SUPPORT LTD
http://statistics.data.gov.uk/id/local-authority/38,Oxfordshire County Council,Support at Home U65 Learning Disability,12/03/2024,5688,,3111632589,600.34,ADVANCE HOUSING & SUPPORT LTD
http://statistics.data.gov.uk/id/local-authority/38,Oxfordshire County Council,Support at Home U65 Other /Soc Isolation,12/03/2024,5690,,3111633103,633.73,ADVANCE HOUSING & SUPPORT LTD
http://statistics.data.gov.uk/id/local-authority/38,Oxfordshire County Council,Support at Home U65 Learning Disability,12/03/2024,5690,,3111633107,739.35,ADVANCE HOUSING & SUPPORT LTD
http://statistics.data.gov.uk/id/local-authority/38,Oxfordshire County Council,Support at Home U65 Learning Disability,12/03/2024,5690,,3111633117,739.35,ADVANCE HOUSING & SUPPORT LTD
http://statistics.data.gov.uk/id/local-authority/38,Oxfordshire County Council,Support at Home U65 Learning Disability,12/03/2024,5690,,3111633119,739.35,ADVANCE HOUSING & SUPPORT LTD
http://statistics.data.gov.uk/id/local-authority/38,Oxfordshire County Council,Support at Home U65 Learning Disability,12/03/2024,5690,,3111633121,739.35,ADVANCE HOUSING & SUPPORT LTD
http://statistics.data.gov.uk/id/local-authority/38,Oxfordshire County Council,Support at Home U65 Learning Disability,12/03/2024,5690,,3111633115,768.45,ADVANCE HOUSING & SUPPORT LTD
http://statistics.data.gov.uk/id/local-authority/38,Oxfordshire County Council,Support at Home U65 Learning Disability,12/03/2024,5690,,3111633109,844.97,ADVANCE HOUSING & SUPPORT LTD
http://statistics.data.gov.uk/id/local-authority/38,Oxfordshire County Council,VOIDS/VACANCY COSTS,08/03/2024,3945,Rent,3111628763,"1,001.75",ADVANCE HOUSING & SUPPORT LTD
http://statistics.data.gov.uk/id/local-authority/38,Oxfordshire County Council,Support at Home U65 Learning Disability,12/03/2024,5690,,3111633099,"1,056.21",ADVANCE HOUSING & SUPPORT LTD
http://statistics.data.gov.uk/id/local-authority/38,Oxfordshire County Council,Support at Home U65 Learning Disability,12/03/2024,5690,,3111633111,"1,056.21",ADVANCE HOUSING & SUPPORT LTD
http://statistics.data.gov.uk/id/local-authority/38,Oxfordshire County Council,Support at Home U65 Learning Disability,12/03/2024,5690,,3111633093,"1,152.67",ADVANCE HOUSING & SUPPORT LTD
http://statistics.data.gov.uk/id/local-authority/38,Oxfordshire County Council,Support at Home U65 Learning Disability,12/03/2024,5690,,3111633101,"1,152.67",ADVANCE HOUSING & SUPPORT LTD
http://statistics.data.gov.uk/id/local-authority/38,Oxfordshire County Council,Support at Home U65 Physical Support,12/03/2024,5688,,3111631393,"1,344.78",ADVANCE HOUSING & SUPPORT LTD
http://statistics.data.gov.uk/id/local-authority/38,Oxfordshire County Council,Support at Home 65+ Learning Disability,12/03/2024,5690,,3111633095,"1,560.91",ADVANCE HOUSING & SUPPORT LTD
http://statistics.data.gov.uk/id/local-authority/38,Oxfordshire County Council,VOIDS/VACANCY COSTS,05/03/2024,3945,Rent,3111627202,"2,006.24",ADVANCE HOUSING & SUPPORT LTD
http://statistics.data.gov.uk/id/local-authority/38,Oxfordshire County Council,LD EXT RESP CONTRACT (Rent),12/03/2024,5544,B*Fostering - Temp/Respite,3111631626,"2,403.56",ADVANCE HOUSING & SUPPORT LTD
http://statistics.data.gov.uk/id/local-authority/38,Oxfordshire County Council,LD EXT RESP CONTRACT (Rent),12/03/2024,5544,B*Fostering - Temp/Respite,3111631623,"2,666.62",ADVANCE HOUSING & SUPPORT LTD
http://statistics.data.gov.uk/id/local-authority/38,Oxfordshire County Council,Support at Home 65+ Learning Disability,12/03/2024,5688,,3111631387,"2,684.60",ADVANCE HOUSING & SUPPORT LTD
http://statistics.data.gov.uk/id/local-authority/38,Oxfordshire County Council,Support at Home U65 Learning Disability,12/03/2024,5688,,3111631389,"2,689.56",ADVANCE HOUSING & SUPPORT LTD
http://statistics.data.gov.uk/id/local-authority/38,Oxfordshire County Council,Support at Home U65 HFA,12/03/2024,5688,,3111631391,"2,689.56",ADVANCE HOUSING & SUPPORT LTD
http://statistics.data.gov.uk/id/local-authority/38,Oxfordshire County Council,VOIDS/VACANCY COSTS,05/03/2024,3945,Rent,3111627201,"2,919.30",ADVANCE HOUSING & SUPPORT LTD
http://statistics.data.gov.uk/id/local-authority/38,Oxfordshire County Council,VOIDS/VACANCY COSTS,05/03/2024,3945,Rent,3111627200,"3,078.55",ADVANCE HOUSING & SUPPORT LTD
http://statistics.data.gov.uk/id/local-authority/38,Oxfordshire County Council,VOIDS/VACANCY COSTS,08/03/2024,3945,Rent,3111628762,"3,951.70",ADVANCE HOUSING & SUPPORT LTD
http://statistics.data.gov.uk/id/local-authority/38,Oxfordshire County Council,VOIDS/VACANCY COSTS,08/03/2024,3945,Rent,3111628761,"4,012.81",ADVANCE HOUSING & SUPPORT LTD
http://statistics.data.gov.uk/id/local-authority/38,Oxfordshire County Council,VOIDS/VACANCY COSTS,08/03/2024,3945,Rent,3111628760,"4,476.43",ADVANCE HOUSING & SUPPORT LTD
http://statistics.data.gov.uk/id/local-authority/38,Oxfordshire County Council,VOIDS/VACANCY COSTS,05/03/2024,3945,Rent,3111627199,"4,755.00",ADVANCE HOUSING & SUPPORT LTD
http://statistics.data.gov.uk/id/local-authority/38,Oxfordshire County Council,VOIDS/VACANCY COSTS,05/03/2024,3945,Rent,3111627198,"6,019.21",ADVANCE HOUSING & SUPPORT LTD
http://statistics.data.gov.uk/id/local-authority/38,Oxfordshire County Council,VOIDS/VACANCY COSTS,05/03/2024,3945,Rent,3111627197,"6,060.21",ADVANCE HOUSING & SUPPORT LTD
http://statistics.data.gov.uk/id/local-authority/38,Oxfordshire County Council,VOIDS/VACANCY COSTS,08/03/2024,3945,Rent,3111628759,"6,072.02",ADVANCE HOUSING & SUPPORT LTD
http://statistics.data.gov.uk/id/local-authority/38,Oxfordshire County Council,Support at Home U65 Learning Disability,12/03/2024,5688,,3111631371,"6,160.01",ADVANCE HOUSING & SUPPORT LTD
http://statistics.data.gov.uk/id/local-authority/38,Oxfordshire County Council,Support at Home U65 Learning Disability,12/03/2024,5688,,3111631381,"6,160.01",ADVANCE HOUSING & SUPPORT LTD
http://statistics.data.gov.uk/id/local-authority/38,Oxfordshire County Council,VOIDS/VACANCY COSTS,08/03/2024,3945,Rent,3111628758,"6,362.73",ADVANCE HOUSING & SUPPORT LTD
http://statistics.data.gov.uk/id/local-authority/38,Oxfordshire County Council,Support at Home U65 Learning Disability,12/03/2024,5688,,3111631373,"7,134.61",ADVANCE HOUSING & SUPPORT LTD
http://statistics.data.gov.uk/id/local-authority/38,Oxfordshire County Council,Support at Home U65 Learning Disability,12/03/2024,5688,,3111631375,"7,134.61",ADVANCE HOUSING & SUPPORT LTD
http://statistics.data.gov.uk/id/local-authority/38,Oxfordshire County Council,Support at Home U65 Learning Disability,12/03/2024,5688,,3111631383,"7,134.61",ADVANCE HOUSING & SUPPORT LTD
http://statistics.data.gov.uk/id/local-authority/38,Oxfordshire County Council,Support at Home U65 Learning Disability,12/03/2024,5688,,3111631385,"7,134.61",ADVANCE HOUSING & SUPPORT LTD
http://statistics.data.gov.uk/id/local-authority/38,Oxfordshire County Council,Support at Home U65 Learning Disability,12/03/2024,5688,,3111631379,"7,709.88",ADVANCE HOUSING & SUPPORT LTD
http://statistics.data.gov.uk/id/local-authority/38,Oxfordshire County Council,LD Continuing Care - Sup at Home - U65,12/03/2024,5688,,3111631377,"9,036.37",ADVANCE HOUSING & SUPPORT LTD
http://statistics.data.gov.uk/id/local-authority/38,Oxfordshire County Council,VOIDS/VACANCY COSTS,08/03/2024,3945,Rent,3111628757,"9,500.35",ADVANCE HOUSING & SUPPORT LTD
http://statistics.data.gov.uk/id/local-authority/38,Oxfordshire County Council,VOIDS/VACANCY COSTS,05/03/2024,3945,Rent,3111627196,"9,832.67",ADVANCE HOUSING & SUPPORT LTD
http://statistics.data.gov.uk/id/local-authority/38,Oxfordshire County Council,VOIDS/VACANCY COSTS,05/03/2024,3945,Rent,3111627195,"10,642.78",ADVANCE HOUSING & SUPPORT LTD
http://statistics.data.gov.uk/id/local-authority/38,Oxfordshire County Council,VOIDS/VACANCY COSTS,05/03/2024,3945,Rent,3111627194,"11,243.96",ADVANCE HOUSING & SUPPORT LTD
http://statistics.data.gov.uk/id/local-authority/38,Oxfordshire County Council,Climate Action Staffing,27/03/2024,4940,Other Services,2201214441,"2,000.00",ADVANCED INFRASTRUCTURE TECHNOLOGY
http://statistics.data.gov.uk/id/local-authority/38,Oxfordshire County Council,GYPSY & TRAVELLER SV,26/03/2024,4122,Other premises related costs,2201214287,907.50,Advanced Pest Control Ltd
http://statistics.data.gov.uk/id/local-authority/38,Oxfordshire County Council,COMM DRAWDOWN FUNDNG,26/03/2024,8004,Design Consultant,2201214106,"2,229.11",AECOM Infrastructure & Environment
http://statistics.data.gov.uk/id/local-authority/38,Oxfordshire County Council,COMM DRAWDOWN FUNDNG,27/03/2024,8004,Design Consultant,2201214899,"2,884.10",AECOM Infrastructure & Environment
http://statistics.data.gov.uk/id/local-authority/38,Oxfordshire County Council,COMM DRAWDOWN FUNDNG,27/03/2024,8004,Design Consultant,2201214911,"7,844.82",AECOM Infrastructure & Environment
http://statistics.data.gov.uk/id/local-authority/38,Oxfordshire County Council,COMM DRAWDOWN FUNDNG,25/03/2024,8004,Design Consultant,2201212926,"13,015.61",AECOM Infrastructure & Environment
http://statistics.data.gov.uk/id/local-authority/38,Oxfordshire County Council,COMM DRAWDOWN FUNDNG,27/03/2024,8004,Design Consultant,2201214347,"22,075.68",AECOM Infrastructure & Environment
http://statistics.data.gov.uk/id/local-authority/38,Oxfordshire County Council,COMM DRAWDOWN FUNDNG,25/03/2024,8004,Design Consultant,2201212927,"26,031.22",AECOM Infrastructure & Environment
http://statistics.data.gov.uk/id/local-authority/38,Oxfordshire County Council,COMM DRAWDOWN FUNDNG,25/03/2024,8004,Design Consultant,2201212929,"39,046.83",AECOM Infrastructure & Environment
http://statistics.data.gov.uk/id/local-authority/38,Oxfordshire County Council,Independent Foster,06/03/2024,5561,B* Bus Shelter Reps & Cleansing,3111628346,"3,641.53",AFFINITY FOSTERING SERVICES LTD
http://statistics.data.gov.uk/id/local-authority/38,Oxfordshire County Council,LD Continuing Care - Sup at Home - U65,12/03/2024,5688,,3111635851,"3,494.30",Affinity Trust
http://statistics.data.gov.uk/id/local-authority/38,Oxfordshire County Council,Support at Home U65 Learning Disability,12/03/2024,5688,,3111635834,"4,301.30",Affinity Trust
http://statistics.data.gov.uk/id/local-authority/38,Oxfordshire County Council,Support at Home U65 Learning Disability,12/03/2024,5688,,3111635846,"4,301.30",Affinity Trust
http://statistics.data.gov.uk/id/local-authority/38,Oxfordshire County Council,Support at Home U65 Learning Disability,12/03/2024,5688,,3111635854,"4,599.55",Affinity Trust
http://statistics.data.gov.uk/id/local-authority/38,Oxfordshire County Council,Support at Home U65 Learning Disability,12/03/2024,5688,,3111635855,"4,599.55",Affinity Trust
http://statistics.data.gov.uk/id/local-authority/38,Oxfordshire County Council,Support at Home U65 Learning Disability,12/03/2024,5688,,3111635850,"4,952.00",Affinity Trust
http://statistics.data.gov.uk/id/local-authority/38,Oxfordshire County Council,Support at Home U65 Learning Disability,12/03/2024,5688,,3111635836,"5,072.90",Affinity Trust
http://statistics.data.gov.uk/id/local-authority/38,Oxfordshire County Council,Support at Home 65+ Learning Disability,12/03/2024,5688,,3111635837,"5,072.90",Affinity Trust
http://statistics.data.gov.uk/id/local-authority/38,Oxfordshire County Council,Support at Home U65 Learning Disability,12/03/2024,5688,,3111635842,"5,072.90",Affinity Trust
http://statistics.data.gov.uk/id/local-authority/38,Oxfordshire County Council,Support at Home U65 Learning Disability,12/03/2024,5688,,3111635845,"5,072.90",Affinity Trust
http://statistics.data.gov.uk/id/local-authority/38,Oxfordshire County Council,Support at Home U65 Learning Disability,12/03/2024,5688,,3111635847,"5,072.90",Affinity Trust
http://statistics.data.gov.uk/id/local-authority/38,Oxfordshire County Council,Support at Home 65+ Learning Disability,12/03/2024,5688,,3111635849,"5,072.90",Affinity Trust
http://statistics.data.gov.uk/id/local-authority/38,Oxfordshire County Council,Support at Home U65 Learning Disability,12/03/2024,5688,,3111635844,"5,229.50",Affinity Trust
http://statistics.data.gov.uk/id/local-authority/38,Oxfordshire County Council,Support at Home 65+ Learning Disability,12/03/2024,5688,,3111635852,"5,506.70",Affinity Trust
http://statistics.data.gov.uk/id/local-authority/38,Oxfordshire County Council,Support at Home 65+ Learning Disability,12/03/2024,5688,,3111635853,"5,506.70",Affinity Trust
http://statistics.data.gov.uk/id/local-authority/38,Oxfordshire County Council,Support at Home U65 Learning Disability,12/03/2024,5688,,3111635843,"5,940.50",Affinity Trust
http://statistics.data.gov.uk/id/local-authority/38,Oxfordshire County Council,Support at Home U65 Learning Disability,12/03/2024,5688,,3111635840,"6,205.55",Affinity Trust
http://statistics.data.gov.uk/id/local-authority/38,Oxfordshire County Council,Support at Home U65 Learning Disability,12/03/2024,5688,,3111635833,"6,265.85",Affinity Trust
http://statistics.data.gov.uk/id/local-authority/38,Oxfordshire County Council,Support at Home U65 Learning Disability,12/03/2024,5688,,3111635838,"8,454.85",Affinity Trust
http://statistics.data.gov.uk/id/local-authority/38,Oxfordshire County Council,Support at Home U65 Learning Disability,12/03/2024,5688,,3111635839,"8,454.85",Affinity Trust
http://statistics.data.gov.uk/id/local-authority/38,Oxfordshire County Council,Support at Home U65 Learning Disability,12/03/2024,5688,,3111635841,"8,506.95",Affinity Trust
http://statistics.data.gov.uk/id/local-authority/38,Oxfordshire County Council,Support at Home U65 Learning Disability,12/03/2024,5688,,3111635848,"8,506.95",Affinity Trust
http://statistics.data.gov.uk/id/local-authority/38,Oxfordshire County Council,Support at Home 65+ Learning Disability,12/03/2024,5688,,3111635835,"9,973.15",Affinity Trust
http://statistics.data.gov.uk/id/local-authority/38,Oxfordshire County Council,NURSERY ED FUND,27/03/2024,5537,Payments to Other Establishments,3111643674,-671.88,Aflah Nursery
http://statistics.data.gov.uk/id/local-authority/38,Oxfordshire County Council,Mainstream Res,06/03/2024,5558,,3111628312,"28,681.00",AFON GOCH CHILDREN�S HOMES LTD
http://statistics.data.gov.uk/id/local-authority/38,Oxfordshire County Council,Support at Home U65 Learning Disability,12/03/2024,5899,Social Care - Direct Payments,3111630486,"1,128.00",Redacted Personal Data
http://statistics.data.gov.uk/id/local-authority/38,Oxfordshire County Council,Bikeability cost,19/03/2024,4685,Clothing and Uniforms,2201210971,"3,325.00",AG Promotional Products Ltd
http://statistics.data.gov.uk/id/local-authority/38,Oxfordshire County Council,INFORMATION & ADVICE,01/03/2024,4940,Other Services,3500103547,"47,250.00",Age UK Oxfordshire
http://statistics.data.gov.uk/id/local-authority/38,Oxfordshire County Council,INFORMATION & ADVICE,01/03/2024,4940,Other Services,3500103546,"48,133.00",Age UK Oxfordshire
http://statistics.data.gov.uk/id/local-authority/38,Oxfordshire County Council,Safeguarding commissioning,05/03/2024,3942,Hire of Accommodation and Facilities,2201205509,528.08,Agiito Limited
http://statistics.data.gov.uk/id/local-authority/38,Oxfordshire County Council,Safeguarding commissioning,04/03/2024,3942,Hire of Accommodation and Facilities,2201204690,548.90,Agiito Limited
http://statistics.data.gov.uk/id/local-authority/38,Oxfordshire County Council,Safeguarding commissioning,04/03/2024,3942,Hire of Accommodation and Facilities,2201204692,548.92,Agiito Limited
http://statistics.data.gov.uk/id/local-authority/38,Oxfordshire County Council,"Education, Employment & Training Team",12/03/2024,4494,Purchase of IT Equipment,2201208401,"1,401.00",Agile Collective Ltd
http://statistics.data.gov.uk/id/local-authority/38,Oxfordshire County Council,"Marketing, Communications & Engagement",19/03/2024,4495,IT Software,2201211214,"10,000.00",Agile Collective Ltd
http://statistics.data.gov.uk/id/local-authority/38,Oxfordshire County Council,"Marketing, Communications & Engagement",19/03/2024,4495,IT Software,2201211215,"18,000.00",Agile Collective Ltd
http://statistics.data.gov.uk/id/local-authority/38,Oxfordshire County Council,LANDLORD & TENANT,28/03/2024,8102,Payments to main contractor,2201215921,"15,468.00",Agility Eco Services Ltd
http://statistics.data.gov.uk/id/local-authority/38,Oxfordshire County Council,LANDLORD & TENANT,01/03/2024,8102,Payments to main contractor,2201204610,"20,250.00",Agility Eco Services Ltd
http://statistics.data.gov.uk/id/local-authority/38,Oxfordshire County Council,LANDLORD & TENANT,21/03/2024,8102,Payments to main contractor,2201212503,"20,250.00",Agility Eco Services Ltd
http://statistics.data.gov.uk/id/local-authority/38,Oxfordshire County Council,LANDLORD & TENANT,14/03/2024,8102,Payments to main contractor,2201209579,"28,562.15",Agility Eco Services Ltd
http://statistics.data.gov.uk/id/local-authority/38,Oxfordshire County Council,LANDLORD & TENANT,28/03/2024,8102,Payments to main contractor,2201215926,"37,265.00",Agility Eco Services Ltd
http://statistics.data.gov.uk/id/local-authority/38,Oxfordshire County Council,LANDLORD & TENANT,20/03/2024,8102,Payments to main contractor,2201211868,"78,115.28",Agility Eco Services Ltd
http://statistics.data.gov.uk/id/local-authority/38,Oxfordshire County Council,Support at Home U65 Learning Disability,12/03/2024,5688,,3111632592,"6,135.17",Agincare Enable Ltd
http://statistics.data.gov.uk/id/local-authority/38,Oxfordshire County Council,Support at Home 65+ Physical Support,26/03/2024,5699,,3111641132,563.14,Agincare UK Ltd
http://statistics.data.gov.uk/id/local-authority/38,Oxfordshire County Council,Support at Home 65+ Physical Support,26/03/2024,5699,,3111641070,576.87,Agincare UK Ltd
http://statistics.data.gov.uk/id/local-authority/38,Oxfordshire County Council,Support at Home U65 Physical Support,26/03/2024,5699,,3111641140,576.87,Agincare UK Ltd
http://statistics.data.gov.uk/id/local-authority/38,Oxfordshire County Council,Support at Home 65+ Physical Support,26/03/2024,5699,,3111641082,604.34,Agincare UK Ltd
http://statistics.data.gov.uk/id/local-authority/38,Oxfordshire County Council,Support at Home 65+ Physical Support,26/03/2024,5699,,3111641102,769.16,Agincare UK Ltd
http://statistics.data.gov.uk/id/local-authority/38,Oxfordshire County Council,Support at Home 65+ Physical Support,26/03/2024,5699,,3111641123,865.31,Agincare UK Ltd
http://statistics.data.gov.uk/id/local-authority/38,Oxfordshire County Council,Support at Home 65+ Physical Support,26/03/2024,5699,,3111641098,927.11,Agincare UK Ltd
http://statistics.data.gov.uk/id/local-authority/38,Oxfordshire County Council,Support at Home 65+ Physical Support,26/03/2024,5699,,3111641074,961.45,Agincare UK Ltd
http://statistics.data.gov.uk/id/local-authority/38,Oxfordshire County Council,Support at Home 65+ Physical Support,26/03/2024,5699,,3111641094,988.92,Agincare UK Ltd
http://statistics.data.gov.uk/id/local-authority/38,Oxfordshire County Council,Support at Home 65+ Physical Support,26/03/2024,5699,,3111641134,"1,126.27",Agincare UK Ltd
http://statistics.data.gov.uk/id/local-authority/38,Oxfordshire County Council,Support at Home 65+ Physical Support,26/03/2024,5699,,3111641078,"1,153.74",Agincare UK Ltd
http://statistics.data.gov.uk/id/local-authority/38,Oxfordshire County Council,Support at Home 65+ Physical Support,26/03/2024,5699,,3111641119,"1,249.89",Agincare UK Ltd
http://statistics.data.gov.uk/id/local-authority/38,Oxfordshire County Council,Support at Home 65+ Physical Support,26/03/2024,5699,,3111641121,"1,332.30",Agincare UK Ltd
http://statistics.data.gov.uk/id/local-authority/38,Oxfordshire County Council,Support at Home 65+ Physical Support,26/03/2024,5699,,3111641127,"1,346.03",Agincare UK Ltd
http://statistics.data.gov.uk/id/local-authority/38,Oxfordshire County Council,Support at Home 65+ Physical Support,26/03/2024,5699,,3111641088,"1,442.18",Agincare UK Ltd
http://statistics.data.gov.uk/id/local-authority/38,Oxfordshire County Council,Support at Home 65+ Physical Support,26/03/2024,5699,,3111641125,"1,572.66",Agincare UK Ltd
http://statistics.data.gov.uk/id/local-authority/38,Oxfordshire County Council,Support at Home 65+ Physical Support,26/03/2024,5699,,3111641108,"1,593.26",Agincare UK Ltd
http://statistics.data.gov.uk/id/local-authority/38,Oxfordshire County Council,Post Reablement Block,26/03/2024,5699,,3111641068,"2,252.54",Agincare UK Ltd
http://statistics.data.gov.uk/id/local-authority/38,Oxfordshire County Council,Support at Home 65+ Physical Support,26/03/2024,5699,,3111641086,"2,307.48",Agincare UK Ltd
http://statistics.data.gov.uk/id/local-authority/38,Oxfordshire County Council,Support at Home 65+ Physical Support,26/03/2024,5699,,3111641100,"2,307.48",Agincare UK Ltd
http://statistics.data.gov.uk/id/local-authority/38,Oxfordshire County Council,Support at Home U65 Physical Support,26/03/2024,5699,,3111641104,"2,637.12",Agincare UK Ltd
http://statistics.data.gov.uk/id/local-authority/38,Oxfordshire County Council,Support at Home 65+ Physical Support,26/03/2024,5699,,3111641080,"3,076.64",Agincare UK Ltd
http://statistics.data.gov.uk/id/local-authority/38,Oxfordshire County Council,Support at Home 65+ Physical Support,26/03/2024,5699,,3111641092,"3,076.64",Agincare UK Ltd
http://statistics.data.gov.uk/id/local-authority/38,Oxfordshire County Council,Hospital Discharge and Reablement,12/03/2024,5699,,3111631257,"3,327.54",Agincare UK Ltd
http://statistics.data.gov.uk/id/local-authority/38,Oxfordshire County Council,Support at Home 65+ Physical Support,26/03/2024,5699,,3111641096,"3,832.06",Agincare UK Ltd
http://statistics.data.gov.uk/id/local-authority/38,Oxfordshire County Council,Hospital Discharge and Reablement,12/03/2024,5699,,3111631256,"4,436.72",Agincare UK Ltd
http://statistics.data.gov.uk/id/local-authority/38,Oxfordshire County Council,Homes for Ukraine - Guests,20/03/2024,5896,Adult Social Care - Other Transfer Pay,3500103925,550.00,Redacted Personal Data
http://statistics.data.gov.uk/id/local-authority/38,Oxfordshire County Council,Support at Home U65 HFA,12/03/2024,5688,,3111632594,"11,831.46",Aim Up
http://statistics.data.gov.uk/id/local-authority/38,Oxfordshire County Council,FOSTERING MAIN,12/03/2024,5394,Other Expenses,3111629518,603.43,Redacted Personal Data
http://statistics.data.gov.uk/id/local-authority/38,Oxfordshire County Council,FOSTERING MAIN,05/03/2024,5394,Other Expenses,3111627457,678.90,Redacted Personal Data
http://statistics.data.gov.uk/id/local-authority/38,Oxfordshire County Council,FOSTERING MAIN,12/03/2024,5549,B*Fostering Allowance - Regulation 38,3111629312,"1,019.00",Redacted Personal Data
http://statistics.data.gov.uk/id/local-authority/38,Oxfordshire County Council,FOSTERING MAIN,19/03/2024,5549,B*Fostering Allowance - Regulation 38,3111637468,"1,019.00",Redacted Personal Data
http://statistics.data.gov.uk/id/local-authority/38,Oxfordshire County Council,FOSTERING MAIN,26/03/2024,5549,B*Fostering Allowance - Regulation 38,3111641259,"1,019.00",Redacted Personal Data
http://statistics.data.gov.uk/id/local-authority/38,Oxfordshire County Council,FOSTERING MAIN,05/03/2024,5541,B*Foster Parents,3111627294,"1,072.14",Redacted Personal Data
http://statistics.data.gov.uk/id/local-authority/38,Oxfordshire County Council,SEN TRANSPORT,06/03/2024,5227,Other Transport Arrangements,3111628121,"3,847.80",Airport Transfers Banbury Ltd
http://statistics.data.gov.uk/id/local-authority/38,Oxfordshire County Council,SEN TRANSPORT,06/03/2024,5227,Other Transport Arrangements,3111628126,"4,072.32",Airport Transfers Banbury Ltd
http://statistics.data.gov.uk/id/local-authority/38,Oxfordshire County Council,SEN TRANSPORT,06/03/2024,5227,Other Transport Arrangements,3111628123,"4,448.00",Airport Transfers Banbury Ltd
http://statistics.data.gov.uk/id/local-authority/38,Oxfordshire County Council,SEN TRANSPORT,06/03/2024,5227,Other Transport Arrangements,3111628127,"4,520.32",Airport Transfers Banbury Ltd
http://statistics.data.gov.uk/id/local-authority/38,Oxfordshire County Council,SEN TRANSPORT,06/03/2024,5227,Other Transport Arrangements,3111628125,"4,705.28",Airport Transfers Banbury Ltd
http://statistics.data.gov.uk/id/local-authority/38,Oxfordshire County Council,ContrO ASC Payments Control Account,25/03/2024,5554,Childrens' Social Care - Direct Payments,3111639553,"4,784.96",Redacted Personal Data
http://statistics.data.gov.uk/id/local-authority/38,Oxfordshire County Council,Thriving Lives Project,14/03/2024,5380,"Author, Speaker and Lecturer Fees",2201209574,"3,600.00",AJH Consulting
http://statistics.data.gov.uk/id/local-authority/38,Oxfordshire County Council,Support at Home 65+ Physical Support,05/03/2024,5227,Other Transport Arrangements,3111627260,"3,072.00",AKR Ltd
http://statistics.data.gov.uk/id/local-authority/38,Oxfordshire County Council,SEN TRANSPORT,05/03/2024,5227,Other Transport Arrangements,3111627237,"3,808.00",AKR Ltd
http://statistics.data.gov.uk/id/local-authority/38,Oxfordshire County Council,SEN TRANSPORT,05/03/2024,5227,Other Transport Arrangements,3111627240,"4,768.00",AKR Ltd
http://statistics.data.gov.uk/id/local-authority/38,Oxfordshire County Council,SEN TRANSPORT,06/03/2024,5227,Other Transport Arrangements,3111628119,"4,880.00",AKR Ltd
http://statistics.data.gov.uk/id/local-authority/38,Oxfordshire County Council,SEN TRANSPORT,05/03/2024,5227,Other Transport Arrangements,3111627229,"5,392.00",AKR Ltd
http://statistics.data.gov.uk/id/local-authority/38,Oxfordshire County Council,Homes for Ukraine - Guests,13/03/2024,5896,Adult Social Care - Other Transfer Pay,3500103823,550.00,Redacted Personal Data
http://statistics.data.gov.uk/id/local-authority/38,Oxfordshire County Council,Care Homes - Under 65 Autism / Abated,12/03/2024,5686,,3111631451,"13,350.77",ALBANY CARE (NORTHAMPTON)
http://statistics.data.gov.uk/id/local-authority/38,Oxfordshire County Council,Care Homes - Under 65 MH - OBC Contract,12/03/2024,5686,,3111631453,"14,013.82",ALBANY CARE (NORTHAMPTON)
http://statistics.data.gov.uk/id/local-authority/38,Oxfordshire County Council,Care Homes - Under 65 Mental Health,12/03/2024,5686,,3111633713,"9,115.33",ALBANY FARM CARE (OXFORD) LTD
http://statistics.data.gov.uk/id/local-authority/38,Oxfordshire County Council,Care Homes - Under 65 Mental Health,12/03/2024,5686,,3111633707,"9,566.60",ALBANY FARM CARE (OXFORD) LTD
http://statistics.data.gov.uk/id/local-authority/38,Oxfordshire County Council,Care Homes - Under 65 Leaning Disability,12/03/2024,5686,,3111633716,"9,570.50",ALBANY FARM CARE (OXFORD) LTD
http://statistics.data.gov.uk/id/local-authority/38,Oxfordshire County Council,Care Homes - Under 65 Autism / Abated,12/03/2024,5686,,3111633710,"9,657.16",ALBANY FARM CARE (OXFORD) LTD
http://statistics.data.gov.uk/id/local-authority/38,Oxfordshire County Council,Care Homes - Under 65 Leaning Disability,12/03/2024,5686,,3111633719,"10,469.54",ALBANY FARM CARE (OXFORD) LTD
http://statistics.data.gov.uk/id/local-authority/38,Oxfordshire County Council,Care Homes - Under 65 Leaning Disability,12/03/2024,5686,,3111633722,"13,185.23",ALBANY FARM CARE (OXFORD) LTD
http://statistics.data.gov.uk/id/local-authority/38,Oxfordshire County Council,Homes for Ukraine - Guests,25/03/2024,5896,Adult Social Care - Other Transfer Pay,3500103994,550.00,Redacted Personal Data
http://statistics.data.gov.uk/id/local-authority/38,Oxfordshire County Council,Support at Home U65 Learning Disability,12/03/2024,5688,,3111632597,"11,879.20",ALD Support Limited
http://statistics.data.gov.uk/id/local-authority/38,Oxfordshire County Council,Direct payments,25/03/2024,5554,Childrens' Social Care - Direct Payments,3111639537,"3,226.67",Redacted Personal Data
http://statistics.data.gov.uk/id/local-authority/38,Oxfordshire County Council,Homes for Ukraine - Guests,01/03/2024,5896,Adult Social Care - Other Transfer Pay,3500103562,550.00,Redacted Personal Data
http://statistics.data.gov.uk/id/local-authority/38,Oxfordshire County Council,Support at Home U65 Learning Disability,12/03/2024,5899,Social Care - Direct Payments,3111631211,"1,922.64",Redacted Personal Data
http://statistics.data.gov.uk/id/local-authority/38,Oxfordshire County Council,LEGAL SERVICES,21/03/2024,5251,Legal Costs,2201212444,"1,000.00",Alexander Forbes
http://statistics.data.gov.uk/id/local-authority/38,Oxfordshire County Council,Children & Family Legal Team,26/03/2024,5251,Legal Costs,2201214118,"1,000.00",Alexander Forbes
http://statistics.data.gov.uk/id/local-authority/38,Oxfordshire County Council,LEGAL SERVICES,21/03/2024,5251,Legal Costs,2201212442,"1,575.00",Alexander Forbes
http://statistics.data.gov.uk/id/local-authority/38,Oxfordshire County Council,Support at Home U65 Other /Soc Isolation,12/03/2024,5899,Social Care - Direct Payments,3111629948,620.88,Redacted Personal Data
http://statistics.data.gov.uk/id/local-authority/38,Oxfordshire County Council,Support at Home U65 HFA,12/03/2024,5899,Social Care - Direct Payments,3111630507,"3,503.96",Redacted Personal Data
http://statistics.data.gov.uk/id/local-authority/38,Oxfordshire County Council,Homes for Ukraine - Guests,11/03/2024,5896,Adult Social Care - Other Transfer Pay,3500103764,550.00,Redacted Personal Data
http://statistics.data.gov.uk/id/local-authority/38,Oxfordshire County Council,SEN Alternative Provision,25/03/2024,5554,Childrens' Social Care - Direct Payments,3111639567,"2,557.07",Redacted Personal Data
http://statistics.data.gov.uk/id/local-authority/38,Oxfordshire County Council,Support at Home U65 Learning Disability,19/03/2024,5899,Social Care - Direct Payments,3111637672,"2,398.00",Redacted Personal Data
http://statistics.data.gov.uk/id/local-authority/38,Oxfordshire County Council,Support at Home U65 Learning Disability,12/03/2024,5899,Social Care - Direct Payments,3111630248,"6,412.80",Redacted Personal Data
http://statistics.data.gov.uk/id/local-authority/38,Oxfordshire County Council,Direct payments,25/03/2024,5554,Childrens' Social Care - Direct Payments,3111639584,"2,426.96",Redacted Personal Data
http://statistics.data.gov.uk/id/local-authority/38,Oxfordshire County Council,Support at Home U65 Learning Disability,12/03/2024,5899,Social Care - Direct Payments,3111630522,"6,225.28",Redacted Personal Data
http://statistics.data.gov.uk/id/local-authority/38,Oxfordshire County Council,Homes for Ukraine - Guests,06/03/2024,5896,Adult Social Care - Other Transfer Pay,3500103643,550.00,Redacted Personal Data
http://statistics.data.gov.uk/id/local-authority/38,Oxfordshire County Council,Reactive Maintenance,27/03/2024,3787,Premises Repairs,2201214395,"1,521.55",Algar (Electric Motors) Ltd
http://statistics.data.gov.uk/id/local-authority/38,Oxfordshire County Council,Homes for Ukraine - Guests,21/03/2024,5896,Adult Social Care - Other Transfer Pay,3500103933,550.00,Redacted Personal Data
http://statistics.data.gov.uk/id/local-authority/38,Oxfordshire County Council,Support at Home 65+ Physical Support,26/03/2024,5689,,3111640435,769.10,Alina Homecare Ltd
http://statistics.data.gov.uk/id/local-authority/38,Oxfordshire County Council,Support at Home 65+ Learning Disability,26/03/2024,5689,,3111640437,"1,297.41",Alina Homecare Ltd
http://statistics.data.gov.uk/id/local-authority/38,Oxfordshire County Council,Support at Home 65+ Memory & Cognition,26/03/2024,5689,,3111640436,"1,942.90",Alina Homecare Ltd
http://statistics.data.gov.uk/id/local-authority/38,Oxfordshire County Council,Support at Home 65+ Physical Support,26/03/2024,5689,,3111640432,"2,295.41",Alina Homecare Ltd
http://statistics.data.gov.uk/id/local-authority/38,Oxfordshire County Council,Support at Home 65+ Memory & Cognition,26/03/2024,5689,,3111640434,"3,304.40",Alina Homecare Ltd
http://statistics.data.gov.uk/id/local-authority/38,Oxfordshire County Council,Support at Home U65 Physical Support,26/03/2024,5699,,3111641142,"3,458.01",Alina Homecare Ltd
http://statistics.data.gov.uk/id/local-authority/38,Oxfordshire County Council,Support at Home U65 Physical Support,26/03/2024,5699,,3111641144,"3,867.32",Alina Homecare Ltd
http://statistics.data.gov.uk/id/local-authority/38,Oxfordshire County Council,Support at Home 65+ Physical Support,26/03/2024,5689,,3111640431,"4,870.08",Alina Homecare Ltd
http://statistics.data.gov.uk/id/local-authority/38,Oxfordshire County Council,Support at Home U65 Learning Disability,06/03/2024,5227,Other Transport Arrangements,3111628157,540.00,Ali's Cabs
http://statistics.data.gov.uk/id/local-authority/38,Oxfordshire County Council,Support at Home U65 Learning Disability,06/03/2024,5227,Other Transport Arrangements,3111628156,654.00,Ali's Cabs
http://statistics.data.gov.uk/id/local-authority/38,Oxfordshire County Council,MEADOWBROOK TRANSPT,11/03/2024,4330,Transport to School Activities,3111629097,702.00,Ali's Cabs
http://statistics.data.gov.uk/id/local-authority/38,Oxfordshire County Council,POST 16 SEN,06/03/2024,4330,Transport to School Activities,3111628144,960.00,Ali's Cabs
http://statistics.data.gov.uk/id/local-authority/38,Oxfordshire County Council,POST 16 SEN,07/03/2024,4330,Transport to School Activities,3111628527,"1,309.00",Ali's Cabs
http://statistics.data.gov.uk/id/local-authority/38,Oxfordshire County Council,MEADOWBROOK TRANSPT,11/03/2024,4330,Transport to School Activities,3111629103,"2,532.00",Ali's Cabs
http://statistics.data.gov.uk/id/local-authority/38,Oxfordshire County Council,SEN Alternative Provision,25/03/2024,5554,Childrens' Social Care - Direct Payments,3111639568,"28,716.66",Redacted Personal Data
http://statistics.data.gov.uk/id/local-authority/38,Oxfordshire County Council,SEN Alternative Provision,04/03/2024,5554,Childrens' Social Care - Direct Payments,3111626460,"57,433.33",Redacted Personal Data
http://statistics.data.gov.uk/id/local-authority/38,Oxfordshire County Council,Homes for Ukraine - Guests,04/03/2024,5896,Adult Social Care - Other Transfer Pay,3500103587,550.00,Redacted Personal Data
http://statistics.data.gov.uk/id/local-authority/38,Oxfordshire County Council,Homes for Ukraine - Guests,13/03/2024,5896,Adult Social Care - Other Transfer Pay,3500103810,550.00,Redacted Personal Data
http://statistics.data.gov.uk/id/local-authority/38,Oxfordshire County Council,Homes for Ukraine - Guests,18/03/2024,5896,Adult Social Care - Other Transfer Pay,3500103858,550.00,Redacted Personal Data
http://statistics.data.gov.uk/id/local-authority/38,Oxfordshire County Council,FOSTERING MAIN,05/03/2024,5548,B*Fostering - Special Rates & Plus Amou,3111627301,533.98,Redacted Personal Data
http://statistics.data.gov.uk/id/local-authority/38,Oxfordshire County Council,Homes for Ukraine - Guests,06/03/2024,5896,Adult Social Care - Other Transfer Pay,3500103627,550.00,Redacted Personal Data
http://statistics.data.gov.uk/id/local-authority/38,Oxfordshire County Council,FOSTERING MAIN,12/03/2024,5394,Other Expenses,3111629329,510.00,Redacted Personal Data
http://statistics.data.gov.uk/id/local-authority/38,Oxfordshire County Council,Support at Home U65 Learning Disability,12/03/2024,5899,Social Care - Direct Payments,3111630186,"7,177.36",Redacted Personal Data
http://statistics.data.gov.uk/id/local-authority/38,Oxfordshire County Council,Support at Home 65+ Physical Support,26/03/2024,5696,,3111640918,515.83,All Care GB Ltd
http://statistics.data.gov.uk/id/local-authority/38,Oxfordshire County Council,Support at Home 65+ Physical Support,26/03/2024,5696,,3111640895,519.10,All Care GB Ltd
http://statistics.data.gov.uk/id/local-authority/38,Oxfordshire County Council,Support at Home 65+ Physical Support,26/03/2024,5696,,3111640903,526.80,All Care GB Ltd
http://statistics.data.gov.uk/id/local-authority/38,Oxfordshire County Council,Support at Home 65+ Mental Health,26/03/2024,5696,,3111640849,548.75,All Care GB Ltd
http://statistics.data.gov.uk/id/local-authority/38,Oxfordshire County Council,Support at Home 65+ Physical Support,26/03/2024,5696,,3111640865,548.75,All Care GB Ltd
http://statistics.data.gov.uk/id/local-authority/38,Oxfordshire County Council,Support at Home 65+ Memory & Cognition,26/03/2024,5696,,3111640860,559.73,All Care GB Ltd
http://statistics.data.gov.uk/id/local-authority/38,Oxfordshire County Council,Support at Home 65+ Memory & Cognition,26/03/2024,5696,,3111640861,559.73,All Care GB Ltd
http://statistics.data.gov.uk/id/local-authority/38,Oxfordshire County Council,Support at Home U65 MH OBC Contract,26/03/2024,5696,,3111640852,570.70,All Care GB Ltd
http://statistics.data.gov.uk/id/local-authority/38,Oxfordshire County Council,Support at Home 65+ Physical Support,26/03/2024,5699,,3111641160,590.61,All Care GB Ltd
http://statistics.data.gov.uk/id/local-authority/38,Oxfordshire County Council,Support at Home U65 Memory & Cognition,26/03/2024,5696,,3111640830,614.60,All Care GB Ltd
http://statistics.data.gov.uk/id/local-authority/38,Oxfordshire County Council,Support at Home U65 Mental Health,26/03/2024,5696,,3111640832,614.60,All Care GB Ltd
http://statistics.data.gov.uk/id/local-authority/38,Oxfordshire County Council,Support at Home 65+ Memory & Cognition,26/03/2024,5696,,3111640838,614.60,All Care GB Ltd
http://statistics.data.gov.uk/id/local-authority/38,Oxfordshire County Council,Support at Home 65+ Mental Health,26/03/2024,5696,,3111640853,614.60,All Care GB Ltd
http://statistics.data.gov.uk/id/local-authority/38,Oxfordshire County Council,Support at Home 65+ Physical Support,26/03/2024,5696,,3111640891,614.60,All Care GB Ltd
http://statistics.data.gov.uk/id/local-authority/38,Oxfordshire County Council,Support at Home 65+ Physical Support,26/03/2024,5696,,3111640894,614.60,All Care GB Ltd
http://statistics.data.gov.uk/id/local-authority/38,Oxfordshire County Council,Support at Home 65+ Physical Support,26/03/2024,5696,,3111640880,636.55,All Care GB Ltd
http://statistics.data.gov.uk/id/local-authority/38,Oxfordshire County Council,Support at Home 65+ Physical Support,26/03/2024,5696,,3111640890,658.50,All Care GB Ltd
http://statistics.data.gov.uk/id/local-authority/38,Oxfordshire County Council,Support at Home 65+ Physical Support,26/03/2024,5696,,3111640925,658.50,All Care GB Ltd
http://statistics.data.gov.uk/id/local-authority/38,Oxfordshire County Council,Support at Home 65+ Physical Support,26/03/2024,5696,,3111640896,689.52,All Care GB Ltd
http://statistics.data.gov.uk/id/local-authority/38,Oxfordshire County Council,Support at Home U65 Learning Disability,26/03/2024,5696,,3111640872,702.40,All Care GB Ltd
http://statistics.data.gov.uk/id/local-authority/38,Oxfordshire County Council,Support at Home 65+ Physical Support,26/03/2024,5696,,3111640902,702.40,All Care GB Ltd
http://statistics.data.gov.uk/id/local-authority/38,Oxfordshire County Council,Support at Home U65 Physical Support,26/03/2024,5696,,3111640886,708.00,All Care GB Ltd
http://statistics.data.gov.uk/id/local-authority/38,Oxfordshire County Council,Support at Home 65+ Physical Support,26/03/2024,5699,,3111641152,741.70,All Care GB Ltd
http://statistics.data.gov.uk/id/local-authority/38,Oxfordshire County Council,Support at Home U65 Physical Support,26/03/2024,5696,,3111640846,746.30,All Care GB Ltd
http://statistics.data.gov.uk/id/local-authority/38,Oxfordshire County Council,Support at Home 65+ Physical Support,26/03/2024,5696,,3111640898,763.08,All Care GB Ltd
http://statistics.data.gov.uk/id/local-authority/38,Oxfordshire County Council,Support at Home U65 Physical Support,26/03/2024,5699,,3111641112,769.16,All Care GB Ltd
http://statistics.data.gov.uk/id/local-authority/38,Oxfordshire County Council,Support at Home 65+ Physical Support,26/03/2024,5699,,3111641122,769.16,All Care GB Ltd
http://statistics.data.gov.uk/id/local-authority/38,Oxfordshire County Council,Support at Home 65+ Physical Support,26/03/2024,5699,,3111641129,769.16,All Care GB Ltd
http://statistics.data.gov.uk/id/local-authority/38,Oxfordshire County Council,Support at Home 65+ Physical Support,26/03/2024,5699,,3111641131,769.16,All Care GB Ltd
http://statistics.data.gov.uk/id/local-authority/38,Oxfordshire County Council,Support at Home 65+ Physical Support,26/03/2024,5699,,3111641137,769.16,All Care GB Ltd
http://statistics.data.gov.uk/id/local-authority/38,Oxfordshire County Council,Support at Home 65+ Physical Support,26/03/2024,5699,,3111641139,769.16,All Care GB Ltd
http://statistics.data.gov.uk/id/local-authority/38,Oxfordshire County Council,Support at Home U65 Physical Support,26/03/2024,5696,,3111640851,779.66,All Care GB Ltd
http://statistics.data.gov.uk/id/local-authority/38,Oxfordshire County Council,Support at Home 65+ Physical Support,26/03/2024,5699,,3111641164,828.68,All Care GB Ltd
http://statistics.data.gov.uk/id/local-authority/38,Oxfordshire County Council,Support at Home 65+ Memory & Cognition,26/03/2024,5696,,3111640835,834.10,All Care GB Ltd
http://statistics.data.gov.uk/id/local-authority/38,Oxfordshire County Council,Support at Home 65+ Physical Support,26/03/2024,5696,,3111640876,839.63,All Care GB Ltd
http://statistics.data.gov.uk/id/local-authority/38,Oxfordshire County Council,Support at Home 65+ Physical Support,26/03/2024,5696,,3111640869,856.05,All Care GB Ltd
http://statistics.data.gov.uk/id/local-authority/38,Oxfordshire County Council,Support at Home 65+ Memory & Cognition,26/03/2024,5696,,3111640912,856.05,All Care GB Ltd
http://statistics.data.gov.uk/id/local-authority/38,Oxfordshire County Council,Support at Home 65+ Physical Support,26/03/2024,5696,,3111640879,863.87,All Care GB Ltd
http://statistics.data.gov.uk/id/local-authority/38,Oxfordshire County Council,Support at Home U65 Learning Disability,26/03/2024,5696,,3111640837,888.98,All Care GB Ltd
http://statistics.data.gov.uk/id/local-authority/38,Oxfordshire County Council,Support at Home U65 Physical Support,26/03/2024,5696,,3111640901,921.91,All Care GB Ltd
http://statistics.data.gov.uk/id/local-authority/38,Oxfordshire County Council,Support at Home 65+ Learning Disability,26/03/2024,5696,,3111640859,936.54,All Care GB Ltd
http://statistics.data.gov.uk/id/local-authority/38,Oxfordshire County Council,Support at Home 65+ Physical Support,26/03/2024,5696,,3111640844,943.85,All Care GB Ltd
http://statistics.data.gov.uk/id/local-authority/38,Oxfordshire County Council,Support at Home 65+ Learning Disability,26/03/2024,5696,,3111640850,946.77,All Care GB Ltd
http://statistics.data.gov.uk/id/local-authority/38,Oxfordshire County Council,Support at Home 65+ Physical Support,26/03/2024,5696,,3111640909,960.31,All Care GB Ltd
http://statistics.data.gov.uk/id/local-authority/38,Oxfordshire County Council,Support at Home 65+ Physical Support,26/03/2024,5696,,3111640899,965.80,All Care GB Ltd
http://statistics.data.gov.uk/id/local-authority/38,Oxfordshire County Council,Support at Home 65+ Memory & Cognition,26/03/2024,5696,,3111640831,998.73,All Care GB Ltd
http://statistics.data.gov.uk/id/local-authority/38,Oxfordshire County Council,Support at Home 65+ Physical Support,26/03/2024,5696,,3111640904,"1,009.70",All Care GB Ltd
http://statistics.data.gov.uk/id/local-authority/38,Oxfordshire County Council,Support at Home 65+ Memory & Cognition,26/03/2024,5696,,3111640924,"1,009.70",All Care GB Ltd
http://statistics.data.gov.uk/id/local-authority/38,Oxfordshire County Council,Support at Home 65+ Sensory Support,26/03/2024,5696,,3111640871,"1,053.60",All Care GB Ltd
http://statistics.data.gov.uk/id/local-authority/38,Oxfordshire County Council,Support at Home 65+ Physical Support,26/03/2024,5696,,3111640893,"1,053.60",All Care GB Ltd
http://statistics.data.gov.uk/id/local-authority/38,Oxfordshire County Council,Support at Home 65+ Physical Support,26/03/2024,5696,,3111640882,"1,075.55",All Care GB Ltd
http://statistics.data.gov.uk/id/local-authority/38,Oxfordshire County Council,Support at Home 65+ Physical Support,26/03/2024,5696,,3111640845,"1,107.91",All Care GB Ltd
http://statistics.data.gov.uk/id/local-authority/38,Oxfordshire County Council,Support at Home 65+ Physical Support,26/03/2024,5699,,3111641150,"1,109.18",All Care GB Ltd
http://statistics.data.gov.uk/id/local-authority/38,Oxfordshire County Council,Support at Home 65+ Physical Support,26/03/2024,5699,,3111641154,"1,109.18",All Care GB Ltd
http://statistics.data.gov.uk/id/local-authority/38,Oxfordshire County Council,Support at Home 65+ Physical Support,26/03/2024,5696,,3111640868,"1,119.45",All Care GB Ltd
http://statistics.data.gov.uk/id/local-authority/38,Oxfordshire County Council,Support at Home U65 Other /Soc Isolation,26/03/2024,5699,,3111641120,"1,153.74",All Care GB Ltd
http://statistics.data.gov.uk/id/local-authority/38,Oxfordshire County Council,Support at Home U65 Physical Support,26/03/2024,5699,,3111641156,"1,153.74",All Care GB Ltd
http://statistics.data.gov.uk/id/local-authority/38,Oxfordshire County Council,Support at Home 65+ Physical Support,26/03/2024,5696,,3111640921,"1,179.81",All Care GB Ltd
http://statistics.data.gov.uk/id/local-authority/38,Oxfordshire County Council,Support at Home 65+ Physical Support,26/03/2024,5696,,3111640885,"1,196.28",All Care GB Ltd
http://statistics.data.gov.uk/id/local-authority/38,Oxfordshire County Council,Support at Home 65+ Learning Disability,26/03/2024,5696,,3111640843,"1,207.25",All Care GB Ltd
http://statistics.data.gov.uk/id/local-authority/38,Oxfordshire County Council,Support at Home U65 Physical Support,26/03/2024,5696,,3111640836,"1,225.54",All Care GB Ltd
http://statistics.data.gov.uk/id/local-authority/38,Oxfordshire County Council,Support at Home 65+ Other /Soc Isolation,26/03/2024,5696,,3111640833,"1,229.20",All Care GB Ltd
http://statistics.data.gov.uk/id/local-authority/38,Oxfordshire County Council,Support at Home 65+ Physical Support,26/03/2024,5696,,3111640911,"1,229.20",All Care GB Ltd
http://statistics.data.gov.uk/id/local-authority/38,Oxfordshire County Council,Support at Home 65+ Physical Support,26/03/2024,5696,,3111640916,"1,229.20",All Care GB Ltd
http://statistics.data.gov.uk/id/local-authority/38,Oxfordshire County Council,Support at Home 65+ Memory & Cognition,26/03/2024,5696,,3111640892,"1,251.15",All Care GB Ltd
http://statistics.data.gov.uk/id/local-authority/38,Oxfordshire County Council,Support at Home 65+ Memory & Cognition,26/03/2024,5696,,3111640908,"1,317.00",All Care GB Ltd
http://statistics.data.gov.uk/id/local-authority/38,Oxfordshire County Council,Support at Home 65+ Physical Support,26/03/2024,5696,,3111640928,"1,323.40",All Care GB Ltd
http://statistics.data.gov.uk/id/local-authority/38,Oxfordshire County Council,Support at Home U65 MH OBC Contract,26/03/2024,5696,,3111640874,"1,368.22",All Care GB Ltd
http://statistics.data.gov.uk/id/local-authority/38,Oxfordshire County Council,Support at Home 65+ Physical Support,26/03/2024,5696,,3111640883,"1,382.85",All Care GB Ltd
http://statistics.data.gov.uk/id/local-authority/38,Oxfordshire County Council,Support at Home 65+ Learning Disability,26/03/2024,5696,,3111640857,"1,404.80",All Care GB Ltd
http://statistics.data.gov.uk/id/local-authority/38,Oxfordshire County Council,Support at Home 65+ Memory & Cognition,26/03/2024,5696,,3111640881,"1,404.80",All Care GB Ltd
http://statistics.data.gov.uk/id/local-authority/38,Oxfordshire County Council,Support at Home U65 Mental Health,26/03/2024,5696,,3111640910,"1,404.80",All Care GB Ltd
http://statistics.data.gov.uk/id/local-authority/38,Oxfordshire County Council,Support at Home 65+ Physical Support,26/03/2024,5696,,3111640889,"1,513.57",All Care GB Ltd
http://statistics.data.gov.uk/id/local-authority/38,Oxfordshire County Council,Support at Home 65+ Physical Support,26/03/2024,5696,,3111640875,"1,535.43",All Care GB Ltd
http://statistics.data.gov.uk/id/local-authority/38,Oxfordshire County Council,Support at Home 65+ Memory & Cognition,26/03/2024,5696,,3111640888,"1,558.45",All Care GB Ltd
http://statistics.data.gov.uk/id/local-authority/38,Oxfordshire County Council,Support at Home 65+ Physical Support,26/03/2024,5696,,3111640905,"1,558.45",All Care GB Ltd
http://statistics.data.gov.uk/id/local-authority/38,Oxfordshire County Council,Support at Home U65 Mental Health,26/03/2024,5696,,3111640854,"1,624.30",All Care GB Ltd
http://statistics.data.gov.uk/id/local-authority/38,Oxfordshire County Council,Support at Home 65+ Physical Support,26/03/2024,5696,,3111640923,"1,712.10",All Care GB Ltd
http://statistics.data.gov.uk/id/local-authority/38,Oxfordshire County Council,Support at Home 65+ Physical Support,26/03/2024,5696,,3111640922,"1,734.05",All Care GB Ltd
http://statistics.data.gov.uk/id/local-authority/38,Oxfordshire County Council,Support at Home 65+ Learning Disability,26/03/2024,5696,,3111640897,"1,827.34",All Care GB Ltd
http://statistics.data.gov.uk/id/local-authority/38,Oxfordshire County Council,Support at Home 65+ Physical Support,26/03/2024,5696,,3111640917,"1,919.60",All Care GB Ltd
http://statistics.data.gov.uk/id/local-authority/38,Oxfordshire County Council,Support at Home 65+ Physical Support,26/03/2024,5699,,3111641124,"1,922.90",All Care GB Ltd
http://statistics.data.gov.uk/id/local-authority/38,Oxfordshire County Council,Support at Home 65+ Physical Support,26/03/2024,5696,,3111640906,"2,173.89",All Care GB Ltd
http://statistics.data.gov.uk/id/local-authority/38,Oxfordshire County Council,Support at Home 65+ Physical Support,26/03/2024,5696,,3111640878,"2,616.73",All Care GB Ltd
http://statistics.data.gov.uk/id/local-authority/38,Oxfordshire County Council,Support at Home 65+ Memory & Cognition,26/03/2024,5699,,3111641162,"3,255.20",All Care GB Ltd
http://statistics.data.gov.uk/id/local-authority/38,Oxfordshire County Council,Support at Home U65 Physical Support,26/03/2024,5696,,3111640900,"3,667.85",All Care GB Ltd
http://statistics.data.gov.uk/id/local-authority/38,Oxfordshire County Council,Support at Home 65+ Physical Support,26/03/2024,5696,,3111640920,"4,811.61",All Care GB Ltd
http://statistics.data.gov.uk/id/local-authority/38,Oxfordshire County Council,Post Reablement Block,26/03/2024,5699,,3111641110,"5,988.46",All Care GB Ltd
http://statistics.data.gov.uk/id/local-authority/38,Oxfordshire County Council,Hospital Discharge and Reablement,12/03/2024,5699,,3111631258,"15,528.52",All Care GB Ltd
http://statistics.data.gov.uk/id/local-authority/38,Oxfordshire County Council,ECH Central Costs,12/03/2024,5696,,3111633007,"32,370.96",All Care GB Ltd
http://statistics.data.gov.uk/id/local-authority/38,Oxfordshire County Council,ECH Central Costs,12/03/2024,5696,,3111633009,"32,370.96",All Care GB Ltd
http://statistics.data.gov.uk/id/local-authority/38,Oxfordshire County Council,NURSERY ED FUND,08/03/2024,5537,Payments to Other Establishments,3111628958,"-19,789.92",All Saints C of E Primary School
http://statistics.data.gov.uk/id/local-authority/38,Oxfordshire County Council,NURSERY ED FUND,08/03/2024,5537,Payments to Other Establishments,3111629004,687.15,All Saints C of E Primary School
http://statistics.data.gov.uk/id/local-authority/38,Oxfordshire County Council,NURSERY ED FUND,08/03/2024,5537,Payments to Other Establishments,3111629001,839.85,All Saints C of E Primary School
http://statistics.data.gov.uk/id/local-authority/38,Oxfordshire County Council,NURSERY ED FUND,08/03/2024,5537,Payments to Other Establishments,3111628981,900.93,All Saints C of E Primary School
http://statistics.data.gov.uk/id/local-authority/38,Oxfordshire County Council,NURSERY ED FUND,08/03/2024,5537,Payments to Other Establishments,3111628983,900.93,All Saints C of E Primary School
http://statistics.data.gov.uk/id/local-authority/38,Oxfordshire County Council,NURSERY ED FUND,08/03/2024,5537,Payments to Other Establishments,3111628986,900.93,All Saints C of E Primary School
http://statistics.data.gov.uk/id/local-authority/38,Oxfordshire County Council,NURSERY ED FUND,08/03/2024,5537,Payments to Other Establishments,3111628991,900.93,All Saints C of E Primary School
http://statistics.data.gov.uk/id/local-authority/38,Oxfordshire County Council,NURSERY ED FUND,08/03/2024,5537,Payments to Other Establishments,3111628997,900.93,All Saints C of E Primary School
http://statistics.data.gov.uk/id/local-authority/38,Oxfordshire County Council,NURSERY ED FUND,08/03/2024,5537,Payments to Other Establishments,3111629002,900.93,All Saints C of E Primary School
http://statistics.data.gov.uk/id/local-authority/38,Oxfordshire County Council,NURSERY ED FUND,08/03/2024,5537,Payments to Other Establishments,3111628977,916.20,All Saints C of E Primary School
http://statistics.data.gov.uk/id/local-authority/38,Oxfordshire County Council,NURSERY ED FUND,08/03/2024,5537,Payments to Other Establishments,3111628979,916.20,All Saints C of E Primary School
http://statistics.data.gov.uk/id/local-authority/38,Oxfordshire County Council,NURSERY ED FUND,08/03/2024,5537,Payments to Other Establishments,3111628980,916.20,All Saints C of E Primary School
http://statistics.data.gov.uk/id/local-authority/38,Oxfordshire County Council,NURSERY ED FUND,08/03/2024,5537,Payments to Other Establishments,3111628982,916.20,All Saints C of E Primary School
http://statistics.data.gov.uk/id/local-authority/38,Oxfordshire County Council,NURSERY ED FUND,08/03/2024,5537,Payments to Other Establishments,3111628987,916.20,All Saints C of E Primary School
http://statistics.data.gov.uk/id/local-authority/38,Oxfordshire County Council,NURSERY ED FUND,08/03/2024,5537,Payments to Other Establishments,3111628990,916.20,All Saints C of E Primary School
http://statistics.data.gov.uk/id/local-authority/38,Oxfordshire County Council,NURSERY ED FUND,08/03/2024,5537,Payments to Other Establishments,3111628992,916.20,All Saints C of E Primary School
http://statistics.data.gov.uk/id/local-authority/38,Oxfordshire County Council,NURSERY ED FUND,08/03/2024,5537,Payments to Other Establishments,3111628996,916.20,All Saints C of E Primary School
http://statistics.data.gov.uk/id/local-authority/38,Oxfordshire County Council,NURSERY ED FUND,08/03/2024,5537,Payments to Other Establishments,3111629000,916.20,All Saints C of E Primary School
http://statistics.data.gov.uk/id/local-authority/38,Oxfordshire County Council,NURSERY ED FUND,08/03/2024,5537,Payments to Other Establishments,3111629005,916.20,All Saints C of E Primary School
http://statistics.data.gov.uk/id/local-authority/38,Oxfordshire County Council,NURSERY ED FUND,08/03/2024,5537,Payments to Other Establishments,3111628989,"1,026.30",All Saints C of E Primary School
http://statistics.data.gov.uk/id/local-authority/38,Oxfordshire County Council,Quality TPPG,28/03/2024,5537,Payments to Other Establishments,3111644359,"1,092.00",All Saints C of E Primary School
http://statistics.data.gov.uk/id/local-authority/38,Oxfordshire County Council,Early Years Pupil Premium,08/03/2024,5537,Payments to Other Establishments,3111628988,"1,119.60",All Saints C of E Primary School
http://statistics.data.gov.uk/id/local-authority/38,Oxfordshire County Council,NURSERY ED FUND,08/03/2024,5537,Payments to Other Establishments,3111628984,"1,801.86",All Saints C of E Primary School
http://statistics.data.gov.uk/id/local-authority/38,Oxfordshire County Council,NURSERY ED FUND,08/03/2024,5537,Payments to Other Establishments,3111628995,"1,801.86",All Saints C of E Primary School
http://statistics.data.gov.uk/id/local-authority/38,Oxfordshire County Council,NURSERY ED FUND,08/03/2024,5537,Payments to Other Establishments,3111629003,"1,801.86",All Saints C of E Primary School
http://statistics.data.gov.uk/id/local-authority/38,Oxfordshire County Council,NURSERY ED FUND,08/03/2024,5537,Payments to Other Establishments,3111628978,"1,832.40",All Saints C of E Primary School
http://statistics.data.gov.uk/id/local-authority/38,Oxfordshire County Council,NURSERY ED FUND,08/03/2024,5537,Payments to Other Establishments,3111628985,"1,832.40",All Saints C of E Primary School
http://statistics.data.gov.uk/id/local-authority/38,Oxfordshire County Council,NURSERY ED FUND,08/03/2024,5537,Payments to Other Establishments,3111628993,"1,832.40",All Saints C of E Primary School
http://statistics.data.gov.uk/id/local-authority/38,Oxfordshire County Council,NURSERY ED FUND,08/03/2024,5537,Payments to Other Establishments,3111628994,"1,832.40",All Saints C of E Primary School
http://statistics.data.gov.uk/id/local-authority/38,Oxfordshire County Council,NURSERY ED FUND,08/03/2024,5537,Payments to Other Establishments,3111628998,"1,832.40",All Saints C of E Primary School
http://statistics.data.gov.uk/id/local-authority/38,Oxfordshire County Council,NURSERY ED FUND,08/03/2024,5537,Payments to Other Establishments,3111628999,"1,832.40",All Saints C of E Primary School
http://statistics.data.gov.uk/id/local-authority/38,Oxfordshire County Council,SEN Additional Funding,04/03/2024,5537,Payments to Other Establishments,3111626925,"3,514.28",All Saints C of E Primary School
http://statistics.data.gov.uk/id/local-authority/38,Oxfordshire County Council,SEN Additional Funding,04/03/2024,5537,Payments to Other Establishments,3111626927,"3,514.28",All Saints C of E Primary School
http://statistics.data.gov.uk/id/local-authority/38,Oxfordshire County Council,SEN Additional Funding,04/03/2024,5537,Payments to Other Establishments,3111626929,"3,885.92",All Saints C of E Primary School
http://statistics.data.gov.uk/id/local-authority/38,Oxfordshire County Council,LAC PUPIL PREMIUM,25/03/2024,5537,Payments to Other Establishments,3111639456,680.00,All Saints C.E Primary School
http://statistics.data.gov.uk/id/local-authority/38,Oxfordshire County Council,LAC PUPIL PREMIUM,25/03/2024,5537,Payments to Other Establishments,3111639455,730.00,All Saints C.E Primary School
http://statistics.data.gov.uk/id/local-authority/38,Oxfordshire County Council,HSF Welfare Support Grant & FSM support,19/03/2024,4939,,3111636877,"1,110.00",All Saints C.E Primary School
http://statistics.data.gov.uk/id/local-authority/38,Oxfordshire County Council,Homes for Ukraine - Education,21/03/2024,5537,Payments to Other Establishments,3111638650,"2,745.00",All Saints C.E Primary School
http://statistics.data.gov.uk/id/local-authority/38,Oxfordshire County Council,Independent Foster,06/03/2024,5559,,3111628348,"4,251.69",ALL4U Fostering Ltd
http://statistics.data.gov.uk/id/local-authority/38,Oxfordshire County Council,Independent Foster,06/03/2024,5559,,3111628349,"4,523.13",ALL4U Fostering Ltd
http://statistics.data.gov.uk/id/local-authority/38,Oxfordshire County Council,Independent Foster,27/03/2024,5559,,3111643974,"4,544.91",ALL4U Fostering Ltd
http://statistics.data.gov.uk/id/local-authority/38,Oxfordshire County Council,Independent Foster,27/03/2024,5559,,3111643975,"4,835.07",ALL4U Fostering Ltd
http://statistics.data.gov.uk/id/local-authority/38,Oxfordshire County Council,Independent Foster,06/03/2024,5559,,3111628347,"5,401.25",ALL4U Fostering Ltd
http://statistics.data.gov.uk/id/local-authority/38,Oxfordshire County Council,Independent Foster,27/03/2024,5559,,3111643973,"5,773.75",ALL4U Fostering Ltd
http://statistics.data.gov.uk/id/local-authority/38,Oxfordshire County Council,Care Homes - Over 65 Memory & Cognition,12/03/2024,5685,B*Cycle tracks,3111631455,"4,011.18",Alliance Care (Dales Homes) Ltd
http://statistics.data.gov.uk/id/local-authority/38,Oxfordshire County Council,Independent Foster,06/03/2024,5559,,3111628350,"3,382.27",Alliance Foster Care Limited
http://statistics.data.gov.uk/id/local-authority/38,Oxfordshire County Council,Independent Foster,13/03/2024,5559,,3111636034,"3,615.53",Alliance Foster Care Limited
http://statistics.data.gov.uk/id/local-authority/38,Oxfordshire County Council,Care Homes Under 65 Other Soc Isolation,12/03/2024,5686,,3111631457,"5,222.48",ALLIED CARE LTD
http://statistics.data.gov.uk/id/local-authority/38,Oxfordshire County Council,Support at Home 65+ Physical Support,26/03/2024,5689,,3111640452,799.78,Allied Health-Services Limited
http://statistics.data.gov.uk/id/local-authority/38,Oxfordshire County Council,Support at Home 65+ Mental Health,26/03/2024,5689,,3111640453,838.69,Allied Health-Services Limited
http://statistics.data.gov.uk/id/local-authority/38,Oxfordshire County Council,Support at Home 65+ Physical Support,26/03/2024,5689,,3111640451,842.35,Allied Health-Services Limited
http://statistics.data.gov.uk/id/local-authority/38,Oxfordshire County Council,Support at Home 65+ Physical Support,26/03/2024,5689,,3111640449,"1,030.51",Allied Health-Services Limited
http://statistics.data.gov.uk/id/local-authority/38,Oxfordshire County Council,Support at Home 65+ Physical Support,26/03/2024,5693,,3111640454,"1,616.05",Allied Health-Services Limited
http://statistics.data.gov.uk/id/local-authority/38,Oxfordshire County Council,Support at Home 65+ Physical Support,26/03/2024,5689,,3111640450,"1,684.70",Allied Health-Services Limited
http://statistics.data.gov.uk/id/local-authority/38,Oxfordshire County Council,Support at Home 65+ Memory & Cognition,26/03/2024,5689,,3111640446,"1,927.80",Allied Health-Services Limited
http://statistics.data.gov.uk/id/local-authority/38,Oxfordshire County Council,Support at Home 65+ Physical Support,26/03/2024,5689,,3111640448,"1,961.22",Allied Health-Services Limited
http://statistics.data.gov.uk/id/local-authority/38,Oxfordshire County Council,Support at Home U65 Physical Support,26/03/2024,5689,,3111640447,"2,206.60",Allied Health-Services Limited
http://statistics.data.gov.uk/id/local-authority/38,Oxfordshire County Council,Support at Home U65 Physical Support,26/03/2024,5699,,3111641675,"2,449.87",Allied Health-Services Limited
http://statistics.data.gov.uk/id/local-authority/38,Oxfordshire County Council,Blue Badge Concessionary Fares,20/03/2024,5394,Other Expenses,2201211357,"2,012.57",Allied Public Services
http://statistics.data.gov.uk/id/local-authority/38,Oxfordshire County Council,Community Support Service Banbury,14/03/2024,4232,Vehicle Fuel,2201209292,502.41,Allstar Business Solutions Ltd
http://statistics.data.gov.uk/id/local-authority/38,Oxfordshire County Council,Community Support Service - Abingdon,07/03/2024,4232,Vehicle Fuel,2201206174,761.07,Allstar Business Solutions Ltd
http://statistics.data.gov.uk/id/local-authority/38,Oxfordshire County Council,Community Support Service Oxford,11/03/2024,4232,Vehicle Fuel,2201207242,846.36,Allstar Business Solutions Ltd
http://statistics.data.gov.uk/id/local-authority/38,Oxfordshire County Council,Community Support Service Wantage,05/03/2024,4232,Vehicle Fuel,2201205371,"1,100.21",Allstar Business Solutions Ltd
http://statistics.data.gov.uk/id/local-authority/38,Oxfordshire County Council,TRANSPORT GENERAL,06/03/2024,4232,Vehicle Fuel,2201205605,"1,406.27",Allstar Business Solutions Ltd
http://statistics.data.gov.uk/id/local-authority/38,Oxfordshire County Council,PROCUREMENT,05/03/2024,4232,Vehicle Fuel,2201205315,"4,873.31",Allstar Business Solutions Ltd
http://statistics.data.gov.uk/id/local-authority/38,Oxfordshire County Council,Planned Maintenance,28/03/2024,3954,Non System - Liquid Propane Gas,2201215846,"6,550.12",Allstar Business Solutions Ltd
http://statistics.data.gov.uk/id/local-authority/38,Oxfordshire County Council,Planned Maintenance,08/03/2024,3954,Non System - Liquid Propane Gas,2201206753,"7,141.05",Allstar Business Solutions Ltd
http://statistics.data.gov.uk/id/local-authority/38,Oxfordshire County Council,FLEET OPERATIONS,06/03/2024,4232,Vehicle Fuel,2201205853,"12,098.73",Allstar Business Solutions Ltd
http://statistics.data.gov.uk/id/local-authority/38,Oxfordshire County Council,SCH CAUSING CONCERN,12/03/2024,5380,"Author, Speaker and Lecturer Fees",2201208256,"1,750.00",Allyson Milward
http://statistics.data.gov.uk/id/local-authority/38,Oxfordshire County Council,SCH CAUSING CONCERN,12/03/2024,5380,"Author, Speaker and Lecturer Fees",2201208259,"2,100.00",Allyson Milward
http://statistics.data.gov.uk/id/local-authority/38,Oxfordshire County Council,SEN TRANSPORT,21/03/2024,4330,Transport to School Activities,3111638607,"3,000.00",Alpha Care Ambulance Service
http://statistics.data.gov.uk/id/local-authority/38,Oxfordshire County Council,Reactive Maintenance,04/03/2024,3787,Premises Repairs,2201204719,715.00,Altus Technical Services Ltd
http://statistics.data.gov.uk/id/local-authority/38,Oxfordshire County Council,Homes for Ukraine - Guests,06/03/2024,5896,Adult Social Care - Other Transfer Pay,3500103640,550.00,Redacted Personal Data
http://statistics.data.gov.uk/id/local-authority/38,Oxfordshire County Council,Homes for Ukraine - Guests,11/03/2024,5896,Adult Social Care - Other Transfer Pay,3500103761,550.00,Redacted Personal Data
http://statistics.data.gov.uk/id/local-authority/38,Oxfordshire County Council,Homes for Ukraine - Guests,12/03/2024,5896,Adult Social Care - Other Transfer Pay,3500103774,550.00,Redacted Personal Data
http://statistics.data.gov.uk/id/local-authority/38,Oxfordshire County Council,Support at Home U65 Physical Support,12/03/2024,5899,Social Care - Direct Payments,3111630544,"1,675.40",Redacted Personal Data
http://statistics.data.gov.uk/id/local-authority/38,Oxfordshire County Council,Homes for Ukraine - Guests,29/03/2024,5896,Adult Social Care - Other Transfer Pay,3500104096,550.00,Redacted Personal Data
http://statistics.data.gov.uk/id/local-authority/38,Oxfordshire County Council,Homes for Ukraine - Guests,06/03/2024,5896,Adult Social Care - Other Transfer Pay,3500103628,550.00,Redacted Personal Data
http://statistics.data.gov.uk/id/local-authority/38,Oxfordshire County Council,Support at Home U65 Learning Disability,12/03/2024,5899,Social Care - Direct Payments,3111630302,"1,155.36",Redacted Personal Data
http://statistics.data.gov.uk/id/local-authority/38,Oxfordshire County Council,MAINSTREAM-PRIMARY,13/03/2024,4330,Transport to School Activities,3111635993,"1,360.00",AMBASSADOR CARS (OXON) LTD
http://statistics.data.gov.uk/id/local-authority/38,Oxfordshire County Council,MAINSTREAM-SECONDARY,13/03/2024,4330,Transport to School Activities,3111635992,"1,500.00",AMBASSADOR CARS (OXON) LTD
http://statistics.data.gov.uk/id/local-authority/38,Oxfordshire County Council,MAINSTREAM-SECONDARY,13/03/2024,4330,Transport to School Activities,3111635994,"2,000.00",AMBASSADOR CARS (OXON) LTD
http://statistics.data.gov.uk/id/local-authority/38,Oxfordshire County Council,SEN TRANSPORT,13/03/2024,5227,Other Transport Arrangements,3111635996,"3,424.00",AMBASSADOR CARS (OXON) LTD
http://statistics.data.gov.uk/id/local-authority/38,Oxfordshire County Council,SEN TRANSPORT,13/03/2024,5227,Other Transport Arrangements,3111636002,"4,480.00",AMBASSADOR CARS (OXON) LTD
http://statistics.data.gov.uk/id/local-authority/38,Oxfordshire County Council,SEN TRANSPORT,13/03/2024,5227,Other Transport Arrangements,3111635998,"4,800.00",AMBASSADOR CARS (OXON) LTD
http://statistics.data.gov.uk/id/local-authority/38,Oxfordshire County Council,Support at Home U65 Learning Disability,12/03/2024,5688,,3111632599,"11,531.56",AMBER RESIDENTIAL CARE HOMES (ARCH)
http://statistics.data.gov.uk/id/local-authority/38,Oxfordshire County Council,Reactive Maintenance,28/03/2024,3787,Premises Repairs,2201215254,510.00,Ambiflex Ltd
http://statistics.data.gov.uk/id/local-authority/38,Oxfordshire County Council,Support at Home U65 Learning Disability,12/03/2024,5899,Social Care - Direct Payments,3111630286,"1,060.20",Redacted Personal Data
http://statistics.data.gov.uk/id/local-authority/38,Oxfordshire County Council,LANDLORD & TENANT,27/03/2024,8102,Payments to main contractor,2201215050,"9,981.75",Ameresco Limited
http://statistics.data.gov.uk/id/local-authority/38,Oxfordshire County Council,LANDLORD & TENANT,27/03/2024,8102,Payments to main contractor,2201215053,"11,908.00",Ameresco Limited
http://statistics.data.gov.uk/id/local-authority/38,Oxfordshire County Council,CAP CHRGES-EARL,18/03/2024,8102,Payments to main contractor,2201210328,"24,953.00",Amity Insulation Services Limited
http://statistics.data.gov.uk/id/local-authority/38,Oxfordshire County Council,Support at Home U65 Learning Disability,12/03/2024,5899,Social Care - Direct Payments,3111630404,"1,045.48",Redacted Personal Data
http://statistics.data.gov.uk/id/local-authority/38,Oxfordshire County Council,Support at Home U65 Learning Disability,12/03/2024,5899,Social Care - Direct Payments,3111630437,"2,953.52",Redacted Personal Data
http://statistics.data.gov.uk/id/local-authority/38,Oxfordshire County Council,Support at Home U65 Other /Soc Isolation,12/03/2024,5899,Social Care - Direct Payments,3111629806,"1,871.76",Redacted Personal Data
http://statistics.data.gov.uk/id/local-authority/38,Oxfordshire County Council,Support at Home U65 Learning Disability,12/03/2024,5899,Social Care - Direct Payments,3111630577,"7,036.40",Redacted Personal Data
http://statistics.data.gov.uk/id/local-authority/38,Oxfordshire County Council,Safeguarding commissioning,22/03/2024,5380,"Author, Speaker and Lecturer Fees",2201212617,605.00,Amy Spicer
http://statistics.data.gov.uk/id/local-authority/38,Oxfordshire County Council,RESIDENTIAL TREATMEN,05/03/2024,5686,,2201205487,"1,000.00",ANA
http://statistics.data.gov.uk/id/local-authority/38,Oxfordshire County Council,RESIDENTIAL TREATMEN,05/03/2024,5686,,2201205484,"1,492.86",ANA
http://statistics.data.gov.uk/id/local-authority/38,Oxfordshire County Council,RESIDENTIAL TREATMEN,05/03/2024,5686,,2201205485,"1,492.86",ANA
http://statistics.data.gov.uk/id/local-authority/38,Oxfordshire County Council,RESIDENTIAL TREATMEN,05/03/2024,5686,,2201205483,"3,935.71",ANA
http://statistics.data.gov.uk/id/local-authority/38,Oxfordshire County Council,RESIDENTIAL TREATMEN,05/03/2024,5686,,2201205486,"4,500.00",ANA
http://statistics.data.gov.uk/id/local-authority/38,Oxfordshire County Council,Care Homes - Over 65 Physical Sypport,12/03/2024,5686,,3111635023,"3,379.89",Anchor Hanover
http://statistics.data.gov.uk/id/local-authority/38,Oxfordshire County Council,Care Homes - Over 65 Physical Sypport,12/03/2024,5686,,3111631495,"5,535.71",Anchor Hanover
http://statistics.data.gov.uk/id/local-authority/38,Oxfordshire County Council,Care Homes - Over 65 Memory & Cognition,12/03/2024,5686,,3111634139,"3,573.86",Anchor Hanover Group
http://statistics.data.gov.uk/id/local-authority/38,Oxfordshire County Council,Care Homes - Under 65 Leaning Disability,12/03/2024,5685,B*Cycle tracks,3111631498,"5,297.99",ANDOVER CARE LIMITED
http://statistics.data.gov.uk/id/local-authority/38,Oxfordshire County Council,Homes for Ukraine - Guests,12/03/2024,5896,Adult Social Care - Other Transfer Pay,3500103792,550.00,Redacted Personal Data
http://statistics.data.gov.uk/id/local-authority/38,Oxfordshire County Council,Homes for Ukraine - Guests,07/03/2024,5896,Adult Social Care - Other Transfer Pay,3500103657,550.00,Redacted Personal Data
http://statistics.data.gov.uk/id/local-authority/38,Oxfordshire County Council,Children & Family Legal Team,21/03/2024,5251,Legal Costs,2201212437,"1,500.00",Andrew Bagchi KC
http://statistics.data.gov.uk/id/local-authority/38,Oxfordshire County Council,Wokingham Adoption Support Fund,21/03/2024,4861,Hired and Contracted Services,2201212387,-612.40,Andrew Baker
http://statistics.data.gov.uk/id/local-authority/38,Oxfordshire County Council,Wokingham Adoption Support Fund,22/03/2024,4861,Hired and Contracted Services,2201212522,758.40,Andrew Baker
http://statistics.data.gov.uk/id/local-authority/38,Oxfordshire County Council,Wokingham Adoption Support Fund,26/03/2024,4861,Hired and Contracted Services,2201213611,758.40,Andrew Baker
http://statistics.data.gov.uk/id/local-authority/38,Oxfordshire County Council,Support at Home U65 Learning Disability,12/03/2024,5899,Social Care - Direct Payments,3111629640,"1,952.12",Redacted Personal Data
http://statistics.data.gov.uk/id/local-authority/38,Oxfordshire County Council,Support at Home U65 Physical Support,12/03/2024,5899,Social Care - Direct Payments,3111629739,"3,198.08",Redacted Personal Data
http://statistics.data.gov.uk/id/local-authority/38,Oxfordshire County Council,Homes for Ukraine - Guests,28/03/2024,5896,Adult Social Care - Other Transfer Pay,3500104091,550.00,Redacted Personal Data
http://statistics.data.gov.uk/id/local-authority/38,Oxfordshire County Council,Homes for Ukraine - Guests,18/03/2024,5896,Adult Social Care - Other Transfer Pay,3500103861,550.00,Redacted Personal Data
http://statistics.data.gov.uk/id/local-authority/38,Oxfordshire County Council,Support at Home U65 Learning Disability,12/03/2024,5899,Social Care - Direct Payments,3111630503,"1,584.60",Redacted Personal Data
http://statistics.data.gov.uk/id/local-authority/38,Oxfordshire County Council,Homes for Ukraine - Guests,11/03/2024,5896,Adult Social Care - Other Transfer Pay,3500103762,550.00,Redacted Personal Data
http://statistics.data.gov.uk/id/local-authority/38,Oxfordshire County Council,Support at Home U65 Physical Support,12/03/2024,5899,Social Care - Direct Payments,3111630596,"6,066.76",Redacted Personal Data
http://statistics.data.gov.uk/id/local-authority/38,Oxfordshire County Council,Homes for Ukraine - Guests,22/03/2024,5896,Adult Social Care - Other Transfer Pay,3500103957,550.00,Redacted Personal Data
http://statistics.data.gov.uk/id/local-authority/38,Oxfordshire County Council,Homes for Ukraine - Guests,25/03/2024,5896,Adult Social Care - Other Transfer Pay,3500103981,550.00,Redacted Personal Data
http://statistics.data.gov.uk/id/local-authority/38,Oxfordshire County Council,Support at Home U65 HFA,12/03/2024,5899,Social Care - Direct Payments,3111630224,"1,576.64",Redacted Personal Data
http://statistics.data.gov.uk/id/local-authority/38,Oxfordshire County Council,Personal Health Budgets  - U65,12/03/2024,5899,Social Care - Direct Payments,3111630247,"11,396.88",Redacted Personal Data
http://statistics.data.gov.uk/id/local-authority/38,Oxfordshire County Council,Homes for Ukraine - Guests,27/03/2024,5896,Adult Social Care - Other Transfer Pay,3500104062,550.00,Redacted Personal Data
http://statistics.data.gov.uk/id/local-authority/38,Oxfordshire County Council,Homes for Ukraine - Guests,01/03/2024,5896,Adult Social Care - Other Transfer Pay,3500103558,550.00,Redacted Personal Data
http://statistics.data.gov.uk/id/local-authority/38,Oxfordshire County Council,Homes for Ukraine - Guests,18/03/2024,5896,Adult Social Care - Other Transfer Pay,3500103854,550.00,Redacted Personal Data
http://statistics.data.gov.uk/id/local-authority/38,Oxfordshire County Council,Homes for Ukraine - Guests,07/03/2024,5896,Adult Social Care - Other Transfer Pay,3500103663,550.00,Redacted Personal Data
http://statistics.data.gov.uk/id/local-authority/38,Oxfordshire County Council,Support at Home 65+ Memory & Cognition,26/03/2024,5699,,3111641208,576.87,Angel Care Group
http://statistics.data.gov.uk/id/local-authority/38,Oxfordshire County Council,Support at Home U65 Physical Support,26/03/2024,5699,,3111641202,700.49,Angel Care Group
http://statistics.data.gov.uk/id/local-authority/38,Oxfordshire County Council,Support at Home 65+ Physical Support,26/03/2024,5699,,3111641205,721.09,Angel Care Group
http://statistics.data.gov.uk/id/local-authority/38,Oxfordshire County Council,Support at Home 65+ Physical Support,20/03/2024,5693,,3111638231,769.16,Angel Care Group
http://statistics.data.gov.uk/id/local-authority/38,Oxfordshire County Council,Support at Home 65+ Physical Support,26/03/2024,5699,,3111641188,769.16,Angel Care Group
http://statistics.data.gov.uk/id/local-authority/38,Oxfordshire County Council,Support at Home 65+ Physical Support,26/03/2024,5699,,3111641184,851.57,Angel Care Group
http://statistics.data.gov.uk/id/local-authority/38,Oxfordshire County Council,Support at Home 65+ Physical Support,26/03/2024,5699,,3111641170,865.31,Angel Care Group
http://statistics.data.gov.uk/id/local-authority/38,Oxfordshire County Council,Support at Home 65+ Memory & Cognition,20/03/2024,5693,,3111638226,961.24,Angel Care Group
http://statistics.data.gov.uk/id/local-authority/38,Oxfordshire County Council,Support at Home 65+ Memory & Cognition,20/03/2024,5693,,3111638230,988.72,Angel Care Group
http://statistics.data.gov.uk/id/local-authority/38,Oxfordshire County Council,Support at Home 65+ Physical Support,20/03/2024,5693,,3111638224,"1,098.60",Angel Care Group
http://statistics.data.gov.uk/id/local-authority/38,Oxfordshire County Council,Support at Home 65+ Physical Support,26/03/2024,5699,,3111641203,"1,109.18",Angel Care Group
http://statistics.data.gov.uk/id/local-authority/38,Oxfordshire County Council,Support at Home U65 Physical Support,26/03/2024,5699,,3111641168,"1,297.96",Angel Care Group
http://statistics.data.gov.uk/id/local-authority/38,Oxfordshire County Council,Support at Home 65+ Physical Support,26/03/2024,5699,,3111641174,"1,442.18",Angel Care Group
http://statistics.data.gov.uk/id/local-authority/38,Oxfordshire County Council,Support at Home 65+ Physical Support,26/03/2024,5699,,3111641178,"1,442.18",Angel Care Group
http://statistics.data.gov.uk/id/local-authority/38,Oxfordshire County Council,Support at Home 65+ Physical Support,26/03/2024,5699,,3111641190,"1,442.18",Angel Care Group
http://statistics.data.gov.uk/id/local-authority/38,Oxfordshire County Council,Support at Home 65+ Physical Support,26/03/2024,5699,,3111641201,"1,442.18",Angel Care Group
http://statistics.data.gov.uk/id/local-authority/38,Oxfordshire County Council,Support at Home 65+ Physical Support,26/03/2024,5699,,3111641196,"1,497.12",Angel Care Group
http://statistics.data.gov.uk/id/local-authority/38,Oxfordshire County Council,Support at Home 65+ Physical Support,20/03/2024,5693,,3111638220,"1,538.60",Angel Care Group
http://statistics.data.gov.uk/id/local-authority/38,Oxfordshire County Council,Support at Home U65 Physical Support,20/03/2024,5693,,3111638223,"1,593.80",Angel Care Group
http://statistics.data.gov.uk/id/local-authority/38,Oxfordshire County Council,Support at Home 65+ Physical Support,26/03/2024,5699,,3111641207,"1,668.81",Angel Care Group
http://statistics.data.gov.uk/id/local-authority/38,Oxfordshire County Council,Support at Home 65+ Physical Support,20/03/2024,5693,,3111638233,"1,730.40",Angel Care Group
http://statistics.data.gov.uk/id/local-authority/38,Oxfordshire County Council,Support at Home 65+ Physical Support,20/03/2024,5693,,3111638219,"1,730.96",Angel Care Group
http://statistics.data.gov.uk/id/local-authority/38,Oxfordshire County Council,Support at Home U65 Physical Support,26/03/2024,5699,,3111641194,"1,970.97",Angel Care Group
http://statistics.data.gov.uk/id/local-authority/38,Oxfordshire County Council,Support at Home 65+ Physical Support,26/03/2024,5699,,3111641172,"2,019.05",Angel Care Group
http://statistics.data.gov.uk/id/local-authority/38,Oxfordshire County Council,Support at Home 65+ Physical Support,26/03/2024,5699,,3111641198,"2,019.05",Angel Care Group
http://statistics.data.gov.uk/id/local-authority/38,Oxfordshire County Council,Support at Home 65+ Physical Support,26/03/2024,5699,,3111641206,"2,019.05",Angel Care Group
http://statistics.data.gov.uk/id/local-authority/38,Oxfordshire County Council,Support at Home 65+ Physical Support,26/03/2024,5699,,3111641204,"2,163.26",Angel Care Group
http://statistics.data.gov.uk/id/local-authority/38,Oxfordshire County Council,Support at Home 65+ Physical Support,26/03/2024,5699,,3111641200,"2,163.27",Angel Care Group
http://statistics.data.gov.uk/id/local-authority/38,Oxfordshire County Council,Support at Home 65+ Physical Support,20/03/2024,5693,,3111638222,"2,362.40",Angel Care Group
http://statistics.data.gov.uk/id/local-authority/38,Oxfordshire County Council,Support at Home 65+ Physical Support,26/03/2024,5699,,3111641182,"2,595.92",Angel Care Group
http://statistics.data.gov.uk/id/local-authority/38,Oxfordshire County Council,Support at Home 65+ Physical Support,26/03/2024,5699,,3111641192,"2,839.48",Angel Care Group
http://statistics.data.gov.uk/id/local-authority/38,Oxfordshire County Council,Support at Home 65+ Physical Support,20/03/2024,5693,,3111638218,"2,888.00",Angel Care Group
http://statistics.data.gov.uk/id/local-authority/38,Oxfordshire County Council,Support at Home 65+ Physical Support,20/03/2024,5693,,3111638229,"3,460.24",Angel Care Group
http://statistics.data.gov.uk/id/local-authority/38,Oxfordshire County Council,Support at Home 65+ Physical Support,26/03/2024,5699,,3111641180,"3,461.22",Angel Care Group
http://statistics.data.gov.uk/id/local-authority/38,Oxfordshire County Council,Support at Home 65+ Physical Support,20/03/2024,5693,,3111638221,"3,461.92",Angel Care Group
http://statistics.data.gov.uk/id/local-authority/38,Oxfordshire County Council,Support at Home 65+ Physical Support,20/03/2024,5693,,3111638232,"3,461.92",Angel Care Group
http://statistics.data.gov.uk/id/local-authority/38,Oxfordshire County Council,Support at Home 65+ Physical Support,20/03/2024,5693,,3111638216,"4,230.80",Angel Care Group
http://statistics.data.gov.uk/id/local-authority/38,Oxfordshire County Council,Support at Home 65+ Physical Support,20/03/2024,5693,,3111638225,"4,917.04",Angel Care Group
http://statistics.data.gov.uk/id/local-authority/38,Oxfordshire County Council,Support at Home U65 Physical Support,12/03/2024,5899,Social Care - Direct Payments,3111630338,"2,551.12",Redacted Personal Data
http://statistics.data.gov.uk/id/local-authority/38,Oxfordshire County Council,Support at Home 65+ Physical Support,12/03/2024,5899,Social Care - Direct Payments,3111630181,"2,280.00",Redacted Personal Data
http://statistics.data.gov.uk/id/local-authority/38,Oxfordshire County Council,Homes for Ukraine - Guests,06/03/2024,5896,Adult Social Care - Other Transfer Pay,3500103633,550.00,Redacted Personal Data
http://statistics.data.gov.uk/id/local-authority/38,Oxfordshire County Council,Support at Home 65+ Physical Support,12/03/2024,5899,Social Care - Direct Payments,3111630264,588.00,Redacted Personal Data
http://statistics.data.gov.uk/id/local-authority/38,Oxfordshire County Council,GYPSY & TRAVELLER SV,21/03/2024,3956,Non System - Water - Metered,2201212288,935.16,Anglian Water Business National
http://statistics.data.gov.uk/id/local-authority/38,Oxfordshire County Council,UTILITIES,19/03/2024,3956,Non System - Water - Metered,2201211009,"1,168.27",Anglian Water Business National
http://statistics.data.gov.uk/id/local-authority/38,Oxfordshire County Council,GYPSY & TRAVELLER SV,21/03/2024,3956,Non System - Water - Metered,2201212287,"2,742.35",Anglian Water Business National
http://statistics.data.gov.uk/id/local-authority/38,Oxfordshire County Council,Homes for Ukraine - Guests,27/03/2024,5896,Adult Social Care - Other Transfer Pay,3500104060,550.00,Redacted Personal Data
http://statistics.data.gov.uk/id/local-authority/38,Oxfordshire County Council,Personal Health Budgets  - U65,12/03/2024,5899,Social Care - Direct Payments,3111630204,"5,949.20",Redacted Personal Data
http://statistics.data.gov.uk/id/local-authority/38,Oxfordshire County Council,Support at Home 65+ Physical Support,12/03/2024,5899,Social Care - Direct Payments,3111630036,"1,311.04",Redacted Personal Data
http://statistics.data.gov.uk/id/local-authority/38,Oxfordshire County Council,Homes for Ukraine - Guests,28/03/2024,5896,Adult Social Care - Other Transfer Pay,3500104084,550.00,Redacted Personal Data
http://statistics.data.gov.uk/id/local-authority/38,Oxfordshire County Council,Homes for Ukraine - Guests,22/03/2024,5896,Adult Social Care - Other Transfer Pay,3500103968,"1,100.00",Redacted Personal Data
http://statistics.data.gov.uk/id/local-authority/38,Oxfordshire County Council,Support at Home 65+ Memory & Cognition,12/03/2024,5899,Social Care - Direct Payments,3111630617,"3,576.96",Redacted Personal Data
http://statistics.data.gov.uk/id/local-authority/38,Oxfordshire County Council,Homes for Ukraine - Guests,19/03/2024,5896,Adult Social Care - Other Transfer Pay,3500103870,550.00,Redacted Personal Data
http://statistics.data.gov.uk/id/local-authority/38,Oxfordshire County Council,FOSTERING MAIN,19/03/2024,5227,Other Transport Arrangements,3111637507,540.22,Redacted Personal Data
http://statistics.data.gov.uk/id/local-authority/38,Oxfordshire County Council,NURSERY ED FUND,27/03/2024,5537,Payments to Other Establishments,3111643018,610.80,Annabelles Pre-school (Longcot)
http://statistics.data.gov.uk/id/local-authority/38,Oxfordshire County Council,Homes for Ukraine - Guests,27/03/2024,5896,Adult Social Care - Other Transfer Pay,3500104049,550.00,Redacted Personal Data
http://statistics.data.gov.uk/id/local-authority/38,Oxfordshire County Council,Homes for Ukraine - Guests,27/03/2024,5896,Adult Social Care - Other Transfer Pay,3500104059,550.00,Redacted Personal Data
http://statistics.data.gov.uk/id/local-authority/38,Oxfordshire County Council,Personal Health Budgets  - Over 65,12/03/2024,5899,Social Care - Direct Payments,3111630393,"11,262.28",Redacted Personal Data
http://statistics.data.gov.uk/id/local-authority/38,Oxfordshire County Council,Support at Home 65+ Physical Support,12/03/2024,5899,Social Care - Direct Payments,3111629954,"1,370.00",Redacted Personal Data
http://statistics.data.gov.uk/id/local-authority/38,Oxfordshire County Council,Homes for Ukraine - Guests,27/03/2024,5896,Adult Social Care - Other Transfer Pay,3500104043,550.00,Redacted Personal Data
http://statistics.data.gov.uk/id/local-authority/38,Oxfordshire County Council,Homes for Ukraine - Guests,25/03/2024,5896,Adult Social Care - Other Transfer Pay,3500103986,550.00,Redacted Personal Data
http://statistics.data.gov.uk/id/local-authority/38,Oxfordshire County Council,FOSTERING MAIN,05/03/2024,5532,B*Fostering - Loan Equipment,3111627314,520.00,Redacted Personal Data
http://statistics.data.gov.uk/id/local-authority/38,Oxfordshire County Council,FOSTERING MAIN,05/03/2024,5532,B*Fostering - Loan Equipment,3111627313,587.14,Redacted Personal Data
http://statistics.data.gov.uk/id/local-authority/38,Oxfordshire County Council,Support at Home 65+ Memory & Cognition,12/03/2024,5899,Social Care - Direct Payments,3111630236,"4,800.00",Redacted Personal Data
http://statistics.data.gov.uk/id/local-authority/38,Oxfordshire County Council,Homes for Ukraine - Guests,08/03/2024,5896,Adult Social Care - Other Transfer Pay,3500103683,550.00,Redacted Personal Data
http://statistics.data.gov.uk/id/local-authority/38,Oxfordshire County Council,Homes for Ukraine - Guests,20/03/2024,5896,Adult Social Care - Other Transfer Pay,3500103912,550.00,Redacted Personal Data
http://statistics.data.gov.uk/id/local-authority/38,Oxfordshire County Council,Support at Home 65+ Physical Support,12/03/2024,5899,Social Care - Direct Payments,3111630131,"3,041.04",Redacted Personal Data
http://statistics.data.gov.uk/id/local-authority/38,Oxfordshire County Council,SHARED LIVES B & L,12/03/2024,5555,Payments to Carers,3111632486,"1,981.96",Redacted Personal Data
http://statistics.data.gov.uk/id/local-authority/38,Oxfordshire County Council,FOSTERING MAIN,12/03/2024,5548,B*Fostering - Special Rates & Plus Amou,3111629352,807.86,Redacted Personal Data
http://statistics.data.gov.uk/id/local-authority/38,Oxfordshire County Council,FOSTERING MAIN,05/03/2024,5549,B*Fostering Allowance - Regulation 38,3111627315,542.00,Redacted Personal Data
http://statistics.data.gov.uk/id/local-authority/38,Oxfordshire County Council,FOSTERING MAIN,12/03/2024,5549,B*Fostering Allowance - Regulation 38,3111629356,542.00,Redacted Personal Data
http://statistics.data.gov.uk/id/local-authority/38,Oxfordshire County Council,FOSTERING MAIN,19/03/2024,5549,B*Fostering Allowance - Regulation 38,3111637514,542.00,Redacted Personal Data
http://statistics.data.gov.uk/id/local-authority/38,Oxfordshire County Council,FOSTERING MAIN,26/03/2024,5549,B*Fostering Allowance - Regulation 38,3111641297,542.00,Redacted Personal Data
http://statistics.data.gov.uk/id/local-authority/38,Oxfordshire County Council,Lib ICT Supprt&Maint,21/03/2024,4705,Printing,2201212162,"1,191.05",Annodata Limited
http://statistics.data.gov.uk/id/local-authority/38,Oxfordshire County Council,TRAINING MANAGEMENT,20/03/2024,3100,Educational and Vocational Training,2201211613,540.00,Ann's Munchies Ltd
http://statistics.data.gov.uk/id/local-authority/38,Oxfordshire County Council,Homes for Ukraine - Guests,28/03/2024,5896,Adult Social Care - Other Transfer Pay,3500104085,550.00,Redacted Personal Data
http://statistics.data.gov.uk/id/local-authority/38,Oxfordshire County Council,UASC 16&17,13/03/2024,5559,,3111636035,"3,293.57",ANSACARE FOSTERING AGENCY LTD
http://statistics.data.gov.uk/id/local-authority/38,Oxfordshire County Council,Oxfordshire Climate,27/03/2024,4940,Other Services,2201214434,"12,462.50",Anthesis (UK) Limited
http://statistics.data.gov.uk/id/local-authority/38,Oxfordshire County Council,Support at Home U65 Learning Disability,12/03/2024,5899,Social Care - Direct Payments,3111630435,"3,795.72",Redacted Personal Data
http://statistics.data.gov.uk/id/local-authority/38,Oxfordshire County Council,Homes for Ukraine - Guests,05/03/2024,5896,Adult Social Care - Other Transfer Pay,3500103602,550.00,Redacted Personal Data
http://statistics.data.gov.uk/id/local-authority/38,Oxfordshire County Council,Homes for Ukraine - Guests,18/03/2024,5896,Adult Social Care - Other Transfer Pay,3500103849,550.00,Redacted Personal Data
http://statistics.data.gov.uk/id/local-authority/38,Oxfordshire County Council,Support at Home U65 Learning Disability,12/03/2024,5899,Social Care - Direct Payments,3111629909,"1,438.24",Redacted Personal Data
http://statistics.data.gov.uk/id/local-authority/38,Oxfordshire County Council,POST18 UASC DCSF FND,27/03/2024,4685,Clothing and Uniforms,3111643477,550.00,Redacted Personal Data
http://statistics.data.gov.uk/id/local-authority/38,Oxfordshire County Council,FOSTERING MAIN,05/03/2024,5548,B*Fostering - Special Rates & Plus Amou,3111627317,914.29,Redacted Personal Data
http://statistics.data.gov.uk/id/local-authority/38,Oxfordshire County Council,SEN Alternative Provision,25/03/2024,4861,Hired and Contracted Services,3111639167,"8,140.00",Apricot Online Ltd
http://statistics.data.gov.uk/id/local-authority/38,Oxfordshire County Council,L&D CORE PROGRAMME,21/03/2024,3103,Other Training Courses and Qualification,2201212251,"1,352.00",APSE
http://statistics.data.gov.uk/id/local-authority/38,Oxfordshire County Council,L&D CORE PROGRAMME,07/03/2024,3103,Other Training Courses and Qualification,2201206561,"1,423.00",APSE
http://statistics.data.gov.uk/id/local-authority/38,Oxfordshire County Council,L&D CORE PROGRAMME,21/03/2024,3103,Other Training Courses and Qualification,2201212249,"1,543.80",APSE
http://statistics.data.gov.uk/id/local-authority/38,Oxfordshire County Council,L&D CORE PROGRAMME,27/03/2024,3103,Other Training Courses and Qualification,2201215060,"3,680.00",APSE
http://statistics.data.gov.uk/id/local-authority/38,Oxfordshire County Council,Support at Home U65 Learning Disability,12/03/2024,5899,Social Care - Direct Payments,3111630232,890.36,Redacted Personal Data
http://statistics.data.gov.uk/id/local-authority/38,Oxfordshire County Council,UASC 16&17,12/03/2024,5549,B*Fostering Allowance - Regulation 38,3111629702,702.98,Redacted Personal Data
http://statistics.data.gov.uk/id/local-authority/38,Oxfordshire County Council,Mainstream Res,06/03/2024,5558,,3111628313,"31,376.43",Arboretum House Ltd
http://statistics.data.gov.uk/id/local-authority/38,Oxfordshire County Council,CORPORATE FINANCE,18/03/2024,4940,Other Services,2201210354,"24,230.00",Arcadis Consulting (UK) Limited
http://statistics.data.gov.uk/id/local-authority/38,Oxfordshire County Council,Homes for Ukraine - Guests,27/03/2024,5896,Adult Social Care - Other Transfer Pay,3500104041,550.00,Redacted Personal Data
http://statistics.data.gov.uk/id/local-authority/38,Oxfordshire County Council,Mainstream Res,20/03/2024,5558,,3111638502,"32,150.54",ARGF LIMITED
http://statistics.data.gov.uk/id/local-authority/38,Oxfordshire County Council,Support at Home U65 Mental Health,27/03/2024,5697,,3111642893,653.80,Arise Youth Support Limited
http://statistics.data.gov.uk/id/local-authority/38,Oxfordshire County Council,SHARED LIVES B & L,12/03/2024,5555,Payments to Carers,3111632361,"1,981.96",Redacted Personal Data
http://statistics.data.gov.uk/id/local-authority/38,Oxfordshire County Council,Support at Home 65+ Physical Support,12/03/2024,5899,Social Care - Direct Payments,3111629623,"2,732.88",Redacted Personal Data
http://statistics.data.gov.uk/id/local-authority/38,Oxfordshire County Council,CONCESSIONARY FARES,10/03/2024,5781,Payments to Transport Operators,3500103741,"1,683.71",ARRIVA THE SHIRES LIMITED
http://statistics.data.gov.uk/id/local-authority/38,Oxfordshire County Council,BUS SUBSIDY,10/03/2024,5781,Payments to Transport Operators,3500103740,"4,412.59",ARRIVA THE SHIRES LIMITED
http://statistics.data.gov.uk/id/local-authority/38,Oxfordshire County Council,CONCESSIONARY FARES,12/03/2024,5781,Payments to Transport Operators,2201208402,"22,985.13",Arriva The Shires Ltd
http://statistics.data.gov.uk/id/local-authority/38,Oxfordshire County Council,Homes for Ukraine - Guests,12/03/2024,5896,Adult Social Care - Other Transfer Pay,3500103801,550.00,Redacted Personal Data
http://statistics.data.gov.uk/id/local-authority/38,Oxfordshire County Council,"INFORMATION, SURVEILLANCE & RESEARCH",06/03/2024,5340,Research,2201205822,722.50,Arts at the Old Fire Station
http://statistics.data.gov.uk/id/local-authority/38,Oxfordshire County Council,PUBLIC HEALTH GENERA,12/03/2024,3942,Hire of Accommodation and Facilities,2201208467,"1,245.00",Arts at the Old Fire Station
http://statistics.data.gov.uk/id/local-authority/38,Oxfordshire County Council,NURSERY ED FUND,27/03/2024,5537,Payments to Other Establishments,3111643310,"-1,496.52",Ascott-under-Wychwood Pre-School
http://statistics.data.gov.uk/id/local-authority/38,Oxfordshire County Council,NURSERY ED FUND,20/03/2024,5537,Payments to Other Establishments,3111638303,-534.48,Ascott-under-Wychwood Pre-School
http://statistics.data.gov.uk/id/local-authority/38,Oxfordshire County Council,NURSERY ED FUND,27/03/2024,5537,Payments to Other Establishments,3111643326,"1,740.84",Ascott-under-Wychwood Pre-School
http://statistics.data.gov.uk/id/local-authority/38,Oxfordshire County Council,LAC PUPIL PREMIUM,25/03/2024,5537,Payments to Other Establishments,3111639469,"2,000.00",Ash Lea School
http://statistics.data.gov.uk/id/local-authority/38,Oxfordshire County Council,POST 16 SEN,07/03/2024,4330,Transport to School Activities,3111628542,"1,690.00",ASH PRESTIGE CARS LIMITED
http://statistics.data.gov.uk/id/local-authority/38,Oxfordshire County Council,SEN TRANSPORT,07/03/2024,5227,Other Transport Arrangements,3111628536,"2,896.00",ASH PRESTIGE CARS LIMITED
http://statistics.data.gov.uk/id/local-authority/38,Oxfordshire County Council,Support at Home 65+ Mental Health,12/03/2024,5688,,3111632737,"2,818.25",Ashamber Homes Limited
http://statistics.data.gov.uk/id/local-authority/38,Oxfordshire County Council,Support at Home 65+ Physical Support,12/03/2024,5688,,3111632730,"3,178.50",Ashamber Homes Limited
http://statistics.data.gov.uk/id/local-authority/38,Oxfordshire County Council,Support at Home U65 Physical Support,12/03/2024,5688,,3111632732,"4,517.14",Ashamber Homes Limited
http://statistics.data.gov.uk/id/local-authority/38,Oxfordshire County Council,Care Homes - Over 65 Mental Health,12/03/2024,5686,,3111631502,"4,674.84",Ashamber Homes Limited
http://statistics.data.gov.uk/id/local-authority/38,Oxfordshire County Council,Support at Home U65 Learning Disability,12/03/2024,5688,,3111632735,"7,898.36",Ashamber Homes Limited
http://statistics.data.gov.uk/id/local-authority/38,Oxfordshire County Council,Care Homes - Under 65 Leaning Disability,12/03/2024,5686,,3111631504,"9,565.32",Ashamber Homes Limited
http://statistics.data.gov.uk/id/local-authority/38,Oxfordshire County Council,NURSERY ED FUND,27/03/2024,5537,Payments to Other Establishments,3111643839,975.60,Ashbury CE Primary School - Academy
http://statistics.data.gov.uk/id/local-authority/38,Oxfordshire County Council,COMM DRAWDOWN FUNDNG,12/03/2024,8510,Other expenses,2201208324,875.00,ASHDOWN PHILLIPS & PARTNERS (MANAGE
http://statistics.data.gov.uk/id/local-authority/38,Oxfordshire County Council,COMM DRAWDOWN FUNDNG,12/03/2024,8510,Other expenses,2201208327,"1,750.00",ASHDOWN PHILLIPS & PARTNERS (MANAGE
http://statistics.data.gov.uk/id/local-authority/38,Oxfordshire County Council,COMM DRAWDOWN FUNDNG,12/03/2024,8510,Other expenses,2201208329,"2,798.40",ASHDOWN PHILLIPS & PARTNERS (MANAGE
http://statistics.data.gov.uk/id/local-authority/38,Oxfordshire County Council,Support at Home 65+ Physical Support,18/03/2024,5693,,3111636748,"4,620.00",Ashfield Care Homes Limited
http://statistics.data.gov.uk/id/local-authority/38,Oxfordshire County Council,Care Homes - Over 65 Mental Health,12/03/2024,5686,,3111631508,"4,853.80",ASHGABLES HOUSE LTD
http://statistics.data.gov.uk/id/local-authority/38,Oxfordshire County Council,Support at Home U65 Learning Disability,12/03/2024,5899,Social Care - Direct Payments,3111630575,"4,926.76",Redacted Personal Data
http://statistics.data.gov.uk/id/local-authority/38,Oxfordshire County Council,Support at Home U65 Learning Disability,12/03/2024,5899,Social Care - Direct Payments,3111629586,"1,928.96",Redacted Personal Data
http://statistics.data.gov.uk/id/local-authority/38,Oxfordshire County Council,Support at Home U65 Learning Disability,12/03/2024,5899,Social Care - Direct Payments,3111630169,"2,058.68",Redacted Personal Data
http://statistics.data.gov.uk/id/local-authority/38,Oxfordshire County Council,TRAINING MANAGEMENT,20/03/2024,3100,Educational and Vocational Training,2201211232,810.00,ASIAN FIRE SERVICE ASSOCIATION (AFS
http://statistics.data.gov.uk/id/local-authority/38,Oxfordshire County Council,TRAINING MANAGEMENT,27/03/2024,3103,Other Training Courses and Qualification,2201214336,"1,000.00",ASIAN FIRE SERVICE ASSOCIATION (AFS
http://statistics.data.gov.uk/id/local-authority/38,Oxfordshire County Council,LIBRARY COLLECTIONS,18/03/2024,4539,"Books, DVDs and CDs",3111636738,500.73,ASKEWS & HOLTS LIBRARY SERVICES LTD
http://statistics.data.gov.uk/id/local-authority/38,Oxfordshire County Council,LIBRARY COLLECTIONS,11/03/2024,4539,"Books, DVDs and CDs",3111629119,518.83,ASKEWS & HOLTS LIBRARY SERVICES LTD
http://statistics.data.gov.uk/id/local-authority/38,Oxfordshire County Council,LIBRARY COLLECTIONS,14/03/2024,4539,"Books, DVDs and CDs",3111636206,524.76,ASKEWS & HOLTS LIBRARY SERVICES LTD
http://statistics.data.gov.uk/id/local-authority/38,Oxfordshire County Council,LIBRARY COLLECTIONS,04/03/2024,4539,"Books, DVDs and CDs",3111626714,532.79,ASKEWS & HOLTS LIBRARY SERVICES LTD
http://statistics.data.gov.uk/id/local-authority/38,Oxfordshire County Council,LIBRARY COLLECTIONS,04/03/2024,4539,"Books, DVDs and CDs",3111626936,540.08,ASKEWS & HOLTS LIBRARY SERVICES LTD
http://statistics.data.gov.uk/id/local-authority/38,Oxfordshire County Council,LIBRARY COLLECTIONS,18/03/2024,4539,"Books, DVDs and CDs",3111636741,552.49,ASKEWS & HOLTS LIBRARY SERVICES LTD
http://statistics.data.gov.uk/id/local-authority/38,Oxfordshire County Council,LIBRARY COLLECTIONS,27/03/2024,4539,"Books, DVDs and CDs",3111643903,557.79,ASKEWS & HOLTS LIBRARY SERVICES LTD
http://statistics.data.gov.uk/id/local-authority/38,Oxfordshire County Council,LIBRARY COLLECTIONS,25/03/2024,4539,"Books, DVDs and CDs",3111639184,562.19,ASKEWS & HOLTS LIBRARY SERVICES LTD
http://statistics.data.gov.uk/id/local-authority/38,Oxfordshire County Council,LIBRARY COLLECTIONS,14/03/2024,4539,"Books, DVDs and CDs",3111636205,581.24,ASKEWS & HOLTS LIBRARY SERVICES LTD
http://statistics.data.gov.uk/id/local-authority/38,Oxfordshire County Council,LIBRARY COLLECTIONS,14/03/2024,4539,"Books, DVDs and CDs",3111636489,596.80,ASKEWS & HOLTS LIBRARY SERVICES LTD
http://statistics.data.gov.uk/id/local-authority/38,Oxfordshire County Council,LIBRARY COLLECTIONS,04/03/2024,4539,"Books, DVDs and CDs",3111626718,603.65,ASKEWS & HOLTS LIBRARY SERVICES LTD
http://statistics.data.gov.uk/id/local-authority/38,Oxfordshire County Council,LIBRARY COLLECTIONS,15/03/2024,4539,"Books, DVDs and CDs",3111636511,635.29,ASKEWS & HOLTS LIBRARY SERVICES LTD
http://statistics.data.gov.uk/id/local-authority/38,Oxfordshire County Council,LIBRARY COLLECTIONS,27/03/2024,4539,"Books, DVDs and CDs",3111643910,642.36,ASKEWS & HOLTS LIBRARY SERVICES LTD
http://statistics.data.gov.uk/id/local-authority/38,Oxfordshire County Council,LIBRARY COLLECTIONS,14/03/2024,4539,"Books, DVDs and CDs",3111636487,652.58,ASKEWS & HOLTS LIBRARY SERVICES LTD
http://statistics.data.gov.uk/id/local-authority/38,Oxfordshire County Council,LIBRARY COLLECTIONS,25/03/2024,4539,"Books, DVDs and CDs",3111639187,666.48,ASKEWS & HOLTS LIBRARY SERVICES LTD
http://statistics.data.gov.uk/id/local-authority/38,Oxfordshire County Council,LIBRARY COLLECTIONS,18/03/2024,4539,"Books, DVDs and CDs",3111636739,689.96,ASKEWS & HOLTS LIBRARY SERVICES LTD
http://statistics.data.gov.uk/id/local-authority/38,Oxfordshire County Council,LIBRARY COLLECTIONS,18/03/2024,4539,"Books, DVDs and CDs",3111636743,692.24,ASKEWS & HOLTS LIBRARY SERVICES LTD
http://statistics.data.gov.uk/id/local-authority/38,Oxfordshire County Council,LIBRARY COLLECTIONS,18/03/2024,4539,"Books, DVDs and CDs",3111636740,696.50,ASKEWS & HOLTS LIBRARY SERVICES LTD
http://statistics.data.gov.uk/id/local-authority/38,Oxfordshire County Council,LIBRARY COLLECTIONS,27/03/2024,4539,"Books, DVDs and CDs",3111643902,705.53,ASKEWS & HOLTS LIBRARY SERVICES LTD
http://statistics.data.gov.uk/id/local-authority/38,Oxfordshire County Council,LIBRARY COLLECTIONS,26/03/2024,4539,"Books, DVDs and CDs",3111640326,732.16,ASKEWS & HOLTS LIBRARY SERVICES LTD
http://statistics.data.gov.uk/id/local-authority/38,Oxfordshire County Council,LIBRARY COLLECTIONS,11/03/2024,4539,"Books, DVDs and CDs",3111629125,735.17,ASKEWS & HOLTS LIBRARY SERVICES LTD
http://statistics.data.gov.uk/id/local-authority/38,Oxfordshire County Council,LIBRARY COLLECTIONS,14/03/2024,4539,"Books, DVDs and CDs",3111636490,735.98,ASKEWS & HOLTS LIBRARY SERVICES LTD
http://statistics.data.gov.uk/id/local-authority/38,Oxfordshire County Council,LIBRARY COLLECTIONS,15/03/2024,4539,"Books, DVDs and CDs",3111636516,745.06,ASKEWS & HOLTS LIBRARY SERVICES LTD
http://statistics.data.gov.uk/id/local-authority/38,Oxfordshire County Council,LIBRARY COLLECTIONS,25/03/2024,4539,"Books, DVDs and CDs",3111639790,751.67,ASKEWS & HOLTS LIBRARY SERVICES LTD
http://statistics.data.gov.uk/id/local-authority/38,Oxfordshire County Council,LIBRARY COLLECTIONS,26/03/2024,4539,"Books, DVDs and CDs",3111640329,766.07,ASKEWS & HOLTS LIBRARY SERVICES LTD
http://statistics.data.gov.uk/id/local-authority/38,Oxfordshire County Council,LIBRARY COLLECTIONS,25/03/2024,4539,"Books, DVDs and CDs",3111639183,772.40,ASKEWS & HOLTS LIBRARY SERVICES LTD
http://statistics.data.gov.uk/id/local-authority/38,Oxfordshire County Council,LIBRARY COLLECTIONS,15/03/2024,4539,"Books, DVDs and CDs",3111636508,776.94,ASKEWS & HOLTS LIBRARY SERVICES LTD
http://statistics.data.gov.uk/id/local-authority/38,Oxfordshire County Council,LIBRARY COLLECTIONS,27/03/2024,4539,"Books, DVDs and CDs",3111643990,783.62,ASKEWS & HOLTS LIBRARY SERVICES LTD
http://statistics.data.gov.uk/id/local-authority/38,Oxfordshire County Council,LIBRARY COLLECTIONS,27/03/2024,4539,"Books, DVDs and CDs",3111643904,925.39,ASKEWS & HOLTS LIBRARY SERVICES LTD
http://statistics.data.gov.uk/id/local-authority/38,Oxfordshire County Council,LIBRARY COLLECTIONS,04/03/2024,4539,"Books, DVDs and CDs",3111626937,928.17,ASKEWS & HOLTS LIBRARY SERVICES LTD
http://statistics.data.gov.uk/id/local-authority/38,Oxfordshire County Council,LIBRARY COLLECTIONS,04/03/2024,4539,"Books, DVDs and CDs",3111626715,944.68,ASKEWS & HOLTS LIBRARY SERVICES LTD
http://statistics.data.gov.uk/id/local-authority/38,Oxfordshire County Council,LIBRARY COLLECTIONS,04/03/2024,4539,"Books, DVDs and CDs",3111626721,"1,020.73",ASKEWS & HOLTS LIBRARY SERVICES LTD
http://statistics.data.gov.uk/id/local-authority/38,Oxfordshire County Council,LIBRARY COLLECTIONS,27/03/2024,4539,"Books, DVDs and CDs",3111643906,"1,025.14",ASKEWS & HOLTS LIBRARY SERVICES LTD
http://statistics.data.gov.uk/id/local-authority/38,Oxfordshire County Council,LIBRARY COLLECTIONS,11/03/2024,4539,"Books, DVDs and CDs",3111629124,"1,052.87",ASKEWS & HOLTS LIBRARY SERVICES LTD
http://statistics.data.gov.uk/id/local-authority/38,Oxfordshire County Council,LIBRARY COLLECTIONS,26/03/2024,4539,"Books, DVDs and CDs",3111640328,"1,056.68",ASKEWS & HOLTS LIBRARY SERVICES LTD
http://statistics.data.gov.uk/id/local-authority/38,Oxfordshire County Council,LIBRARY COLLECTIONS,14/03/2024,4539,"Books, DVDs and CDs",3111636494,"1,081.46",ASKEWS & HOLTS LIBRARY SERVICES LTD
http://statistics.data.gov.uk/id/local-authority/38,Oxfordshire County Council,LIBRARY COLLECTIONS,14/03/2024,4539,"Books, DVDs and CDs",3111636204,"1,092.49",ASKEWS & HOLTS LIBRARY SERVICES LTD
http://statistics.data.gov.uk/id/local-authority/38,Oxfordshire County Council,LIBRARY COLLECTIONS,15/03/2024,4539,"Books, DVDs and CDs",3111636510,"1,129.57",ASKEWS & HOLTS LIBRARY SERVICES LTD
http://statistics.data.gov.uk/id/local-authority/38,Oxfordshire County Council,LIBRARY COLLECTIONS,18/03/2024,4539,"Books, DVDs and CDs",3111636744,"1,132.93",ASKEWS & HOLTS LIBRARY SERVICES LTD
http://statistics.data.gov.uk/id/local-authority/38,Oxfordshire County Council,LIBRARY COLLECTIONS,19/03/2024,4539,"Books, DVDs and CDs",3111636808,"1,260.33",ASKEWS & HOLTS LIBRARY SERVICES LTD
http://statistics.data.gov.uk/id/local-authority/38,Oxfordshire County Council,LIBRARY COLLECTIONS,25/03/2024,4539,"Books, DVDs and CDs",3111639182,"1,291.90",ASKEWS & HOLTS LIBRARY SERVICES LTD
http://statistics.data.gov.uk/id/local-authority/38,Oxfordshire County Council,LIBRARY COLLECTIONS,18/03/2024,4539,"Books, DVDs and CDs",3111636736,"1,313.52",ASKEWS & HOLTS LIBRARY SERVICES LTD
http://statistics.data.gov.uk/id/local-authority/38,Oxfordshire County Council,LIBRARY COLLECTIONS,25/03/2024,4539,"Books, DVDs and CDs",3111639189,"1,360.90",ASKEWS & HOLTS LIBRARY SERVICES LTD
http://statistics.data.gov.uk/id/local-authority/38,Oxfordshire County Council,LIBRARY COLLECTIONS,19/03/2024,4539,"Books, DVDs and CDs",3111636814,"1,460.12",ASKEWS & HOLTS LIBRARY SERVICES LTD
http://statistics.data.gov.uk/id/local-authority/38,Oxfordshire County Council,LIBRARY COLLECTIONS,26/03/2024,4539,"Books, DVDs and CDs",3111640323,"1,592.26",ASKEWS & HOLTS LIBRARY SERVICES LTD
http://statistics.data.gov.uk/id/local-authority/38,Oxfordshire County Council,LIBRARY COLLECTIONS,18/03/2024,4539,"Books, DVDs and CDs",3111636680,"1,632.20",ASKEWS & HOLTS LIBRARY SERVICES LTD
http://statistics.data.gov.uk/id/local-authority/38,Oxfordshire County Council,LIBRARY COLLECTIONS,27/03/2024,4539,"Books, DVDs and CDs",3111643905,"1,670.42",ASKEWS & HOLTS LIBRARY SERVICES LTD
http://statistics.data.gov.uk/id/local-authority/38,Oxfordshire County Council,TRAINING MANAGEMENT,15/03/2024,3100,Educational and Vocational Training,2201209908,740.00,ASM Auto Recycling Ltd
http://statistics.data.gov.uk/id/local-authority/38,Oxfordshire County Council,TRAINING MANAGEMENT,28/03/2024,3100,Educational and Vocational Training,2201215891,"4,810.00",ASM Auto Recycling Ltd
http://statistics.data.gov.uk/id/local-authority/38,Oxfordshire County Council,Reactive Maintenance,13/03/2024,3787,Premises Repairs,2201208901,584.88,Aspect Contracts Limited
http://statistics.data.gov.uk/id/local-authority/38,Oxfordshire County Council,Reactive Maintenance,13/03/2024,3787,Premises Repairs,2201208898,642.00,Aspect Contracts Limited
